{"text_format":"1","workbook":"xlsx","n_sheets":9,"sheets":["Anleitung","Input_Generell","Input_IKT_Einzel","Resultate_IKT_Einzel","Berechnung_IKT_Einzel","Input_IKT_Gesamt","Resultate_IKT_Gesamt","Berechnung_IKT_Gesamt","Anhang"],"not_rendered":{"charts":4,"images":3,"macros":1,"external_links":0,"defined_names":42,"comments":8,"pivot_tables":0},"unopened":[],"bounds":{"document_bytes":16777216,"sheet_cells":100000,"rows_first":2000,"rows_last":500,"rows_between":2000,"halvings":0,"cell_chars":16384,"cell_head_chars":4096},"cells_cut":0,"cells_raw":0,"read":"whole","date_system":"1900"}

{"sheet":"Anleitung","index":0,"n_rows":24,"n_cols":4,"rows_kept":24,"cut":false,"hidden":false,"merged":[[23,1,23,8],[17,3,18,8],[19,3,19,8],[4,1,4,8],[20,1,20,8],[7,3,7,8],[8,3,8,8],[9,3,9,8],[10,3,10,8],[13,3,14,8]]}
[null,"ANLEITUNG"]
[]
[null,"Einleitung"]
[]
[null,"Mit dem vorliegenden Excel-Tool können die Lebenszykluskosten (Definition siehe Anhang) von IKT-Geräten in Form von Einzelbeschaffungen (z.B. X Tablets) oder Gesamtbeschaffungen (z.B. X Laptops mit Monitor und Maus) berechnet werden. Das Tool wurde von der Geschäftsstelle Vorbild Energie und Klima entwickelt und unterstützt die Akteure bei der Umsetzung der gemeinsamen Massnahme 'Nr. 10 Lebenszykluskosten-Betrachtung'.\n\nDas Tool richtet sich in erster Linie an Personen im Beschaffungsprozess, kann aber auch anderen Nutzergruppen wie internen und externen Fachingenieuren dienlich sein. Bei komplexen Beschaffungen wird die Zusammenarbeit mit Fachexperten erwartet, die beim Befüllen der gefragten Daten unterstützen. Im Tabellenblatt \"Anhang\" finden Sie Quellenangaben sowie weitere Informationen zum Tool und zu verwendeten Begriffen."]
[null,"Vorgehen"]
[]
[null,null,"1)","Wählen Sie die Produktegruppe (solange keine Produktegruppe ausgewählt ist, wird alles eingeblendet).\nGeben Sie allgemeine Angaben wie Kalkulationszinssatz und Energiepreise ein, falls Sie nicht mit den Default-Werten rechnen wollen."]
[null,null,"2)","Füllen Sie die gefragen Daten zum Produkt ein."]
[null,null,"3)","Vergleichen Sie die Lebenszykluskosten der Varianten."]
[null,null,"4)","Falls Sie die Berechnungen einsehen möchten, können Sie diese im Blatt \"Berechnung_Produkt\" finden."]
[null,"Bedienung"]
[]
[null,null,null,"Eingabefelder und Überschreiben von Default-Werten. Wenn Default-Werte verfügbar sind, müssen keine eigenen Daten eingesetzt werden und die Defaultwerte werden für die Berechnungen verwendet."]
[]
[null,"BITTE WÄHLEN",null,"Auswahlfelder: Durch Anklicken erscheint ein Dropdown."]
[]
[null,"K",null,"Kommentarfelder mit Hilfestellungen zur Dateneingabe, Quellenangaben, etc.\nKommentarfelder sind, wo möglich, am linken Rand."]
[]
[null,null,null,"Alle Berechnungen können eingesehen werden. Damit das Tool übersichtlich erscheint, sind die Berechnungen teilweise durch Gruppierung ausgeblendet. Diese können durch Klicken auf das \"+\" in den Zeilen-, respektive Spaltenüberschriften jederzeit eingeblendet werden."]
[null,"Das Excel-Tool ist ohne Passwort geschützt. Der Blattschutz kann unter \"Überprüfen -> Blattschutz aufheben\" aufgehoben werden.\nDas Tool kann grundsätzlich nach eigenen Bedürfnissen angepasst werden. Es ist jedoch zu berücksichtigen, dass dadurch Berechnungsfehler entstehen könnten. Möglicherweise muss auch der Visual Basic Code angepasst werden."]
[null,"Hinweise zum Tool"]
[]
[null,"Die Geschäftsstelle Vorbild Energie und Klima übernimmt keine Haftung für die Richtigkeit der Berechnungen."]

{"sheet":"Input_Generell","index":1,"n_rows":44,"n_cols":12,"rows_kept":44,"cut":false,"hidden":false,"merged":[[10,1,10,3],[7,2,7,3],[7,4,7,5],[4,2,4,5],[7,6,7,7]]}
[null,"GRUNDLAGENDATEN"]
[]
[null,"Wahl der Produktegruppe"]
[]
["K","Produktegruppe","BITTE WÄHLEN"]
[]
[null,"Angaben zum Strom und Treibhausgasen",null,null,null,null,null,null,null,"Rechenwerte"]
["K",null,"Energiepreis [Rp./kWh]",null,"Treibhausgase\n[g CO2eq/kWh]",null,"Umweltbelastungsp. UBP'13 [UBP/kWh]",null,null,"Energiepreis [Rp./kWh]","Treibhausgase\n[g CO2eq/kWh]","UBP'13 [UBP/kWh]"]
[null,"Strom",null,"Default über-schreiben",null,"Default über-schreiben",null,"Default über-schreiben",null,0,0,0]
["K","STROMPRODUKT BITTE WÄHLEN",{"$f":"VLOOKUP($B$10,$B$26:$H$32,2,0)","v":0},null,{"$f":"VLOOKUP($B$10,$B$26:$H$32,5,0)","v":0},null,{"$f":"VLOOKUP($B$10,$B$26:$H$32,6,0)","v":0},null,null,{"$f":"IF(ISNUMBER(D10),D10,C10)","v":0},{"$f":"IF(ISNUMBER(F10),F10,E10)","v":0},{"$f":"IF(ISNUMBER(H10),H10,G10)","v":0}]
[null,"Wie sollen die externen Kosten von Treibhausgasemissionen (THG) in die LCC-Berechnung eingerechnet werden?",null,null,"Default über-schreiben"]
["K","BITTE WÄHLEN","CHF/tCO2eq",{"$f":"VLOOKUP(B12,B36:C39,2,0)","v":0},null,null,null,null,null,{"$f":"IF(ISNUMBER(E12),E12,D12)","v":0}]
[]
[null,"Angaben zu Zinssatz und Preissteigerungen"]
[null,null,null,null,"Default über-schreiben"]
["K","Energiepreissteigerung",null,0.01,null,null,null,null,null,{"$f":"IF(ISNUMBER(E16),E16,D16)","v":0.01}]
["K","Kalkulationszinssatz",null,2.5000000000000001E-2,null,null,null,null,null,{"$f":"IF(ISNUMBER(E17),E17,D17)","v":2.5000000000000001E-2}]
["K","Preissteigerung",null,0.01,null,null,null,null,null,{"$f":"IF(ISNUMBER(E18),E18,D18)","v":0.01}]
[]
[]
[]
[]
[null,"Auswahllisten"]
[null,"Auswahlliste Strommix und Defaultwerte"]
[null,"Stromprodukt","Energie-preis [Rp./kWh]","Hochtarif\n[Rp./kWh]","Niedertarif\n[Rp./kWh]","Treibhaus-gase [gCO2eq/ kWh]","UBP'13 [UBP/kWh]","Leistungs-preis [CHF/kW]"]
[null,"STROMPRODUKT BITTE WÄHLEN",0,0,0,0,0,0]
[null,"Mix Stromprodukte aus erneuerbaren Energien",{"$f":"1.5*C28","v":13.5},{"$f":"1.5*D28","v":15},12,15,47.8,10]
[null,"CH-Verbrauchermix (nicht erneuerb. Strompr.) ",9,10,8,102,347,10]
[null,"ENTSO-E-Mix (Strom aus europäischem Netz)",9,10,8,524,548,10]
[null,"Photovoltaik ",{"$f":"2*C28","v":18},{"$f":"2*D28","v":20},16,96,174,10]
[null,"Wasserkraft ",{"$f":"1.5*C28","v":13.5},{"$f":"1.5*D28","v":15},12,12,43.8,10]
[null,"Weitere","kein Default","kein Default","kein Default","kein Default","kein Default",10]
[]
[null,"Auswahlliste Kosten Treibhausgase"]
[null,"Kostenpunkt","CHF/tCO2eq","Anzeige","Einheit","Anzeige mit Einheit"]
[null,"BITTE WÄHLEN",0,"Kosten für THG: nicht gewählt",null,{"$f":"D36","v":"Kosten für THG: nicht gewählt"}]
[null,"Keine Kosten für THG berücksichtigen",0,"Kosten für THG: nicht berücksichtigt",null,{"$f":"D37","v":"Kosten für THG: nicht berücksichtigt"}]
[null,"Externe Kosten Treibhausgasemissionen",121.5,"Externe Kosten Treibhausgasemissionen","[CHF]",{"$f":"D38&\" \"&E38","v":"Externe Kosten Treibhausgasemissionen [CHF]"}]
[null,"Kompensationskosten Treibhausgase",30,"Kompensationskosten Treibhausgase","[CHF]",{"$f":"D39&\" \"&E39","v":"Kompensationskosten Treibhausgase [CHF]"}]
[]
["K","Auswahlliste Produktegruppe"]
[null,"BITTE WÄHLEN"]
[null,"IKT-Einzelprodukt"]
[null,"IKT-Gesamteinrichtung"]

{"sheet":"Input_IKT_Einzel","index":2,"n_rows":60,"n_cols":27,"rows_kept":60,"cut":false,"hidden":false,"merged":[[4,2,4,4],[6,2,6,4],[11,2,11,4],[5,2,5,4]]}
[null,"DATENEINGABE  IKT-EINZELPRODUKT"]
[]
[null,"Allgemeine Angaben"]
[]
[null,"Projekt"]
[null,"Unternehmen"]
[null,"Zuständig"]
[null,"Datum",null,null,null,null,null,null,null,null,null,null,null,null,null,null,null,null,null,null,null,null,null,null,null,null,"Auswahlliste Methode Berechnung Energieverbrauch"]
[]
["K","Stückzahl",null,null,null,null,null,null,null,null,null,null,null,null,null,null,null,null,null,null,null,null,null,null,null,null,"BITTE WÄHLEN"]
["K","Betrachtungszeit der Lebenszyklusrechnung",null,"Jahre",null,null,null,null,null,null,null,null,null,null,null,null,null,null,null,null,null,null,null,null,null,null,"Energieverbrauch gemäss E TEC - Wert von Energy Star"]
["K","Berechnungsmethode Energieverbrauch","BITTE WÄHLEN",null,null,null,null,null,null,null,null,null,null,null,null,null,null,null,null,null,null,null,null,null,null,null,"Energieverbrauch über Leistungsaufnahme berechnen"]
[]
["K","Computer, Notebooks, Tablets, Workstations","Anteile der Betriebszustände","Default überschreiben",null,null,null,null,null,null,null,null,null,null,null,null,null,null,null,null,null,null,null,null,null,null,"Rechenwerte"]
[null,"Idle-Zustand",0.3,null,null,null,null,null,null,null,null,null,null,null,null,null,null,null,null,null,null,null,null,null,null,null,{"$f":"IF(ISNUMBER(D15),D15,C15)","v":0.3}]
[null,"Sleep-Zustand",0.1,null,null,null,null,null,null,null,null,null,null,null,null,null,null,null,null,null,null,null,null,null,null,null,{"$f":"IF(ISNUMBER(D16),D16,C16)","v":0.1}]
[null,"Off-Zustand",0.6,null,{"$f":"IF(OR(SUM(D15:D17)=0,SUM(D15:D17)=1),\"\",\"Achtung: Summe muss 100% ergeben\")","v":""},null,null,null,null,null,null,null,null,null,null,null,null,null,null,null,null,null,null,null,null,null,{"$f":"IF(ISNUMBER(D17),D17,C17)","v":0.6}]
["K","Monitor","Anteile der Betriebszustände","Default überschreiben"]
[null,"On-Zustand",0.35,null,null,null,null,null,null,null,null,null,null,null,null,null,null,null,null,null,null,null,null,null,null,null,{"$f":"IF(ISNUMBER(D19),D19,C19)","v":0.35}]
[null,"Sleep-/Standby-Zustand",0.65,null,{"$f":"IF(OR(SUM(D19:D20)=0,SUM(D19:D20)=1),\"\",\"Achtung: Summe muss 100% ergeben\")","v":""},null,null,null,null,null,null,null,null,null,null,null,null,null,null,null,null,null,null,null,null,null,{"$f":"IF(ISNUMBER(D20),D20,C20)","v":0.65}]
[]
[null,"Produkt"]
[null,"Variante",null,"V1","V2","V3","V4","V5","V6","V7","V8","V9","V10","V11","V12","V13","V14","V15","V16","V17","V18","V19","V20"]
[null,"Produktbezeichnung Hersteller"]
[null,"Anbieter"]
["K","Variantenbezeichnung"]
[]
[null,"Beschaffungskosten"]
[]
[null,"Offertpreis Brutto","CHF/Stück"]
[null,"Rabatt","%"]
[null,"Einkaufspreis verhandelt","CHF",{"$f":"D30*(1-D31)","v":0},{"$f":"E30*(1-E31)","v":0},0,0,0,0,0,0,0,0,0,0,0,0,0,0,0,0,0,0]
[null,"Transportkosten","CHF/Stück"]
[null,"Installationskosten einmalig","CHF/Stück"]
[]
[null,"Energieverbrauch und Treibhausgas-Emissionen (Angaben zur Berechnung der Energiekosten und externen Kosten)"]
[]
["K","Product Carbon Footprint (ohne Phase \"Use\")","kgCO2eq/Stück"]
["K","Energieverbrauch gemäss Energy Star (ETEC-Wert)","kWh/Stück/a"]
[null,"Computer, Notebooks, Tablets, Workstations"]
[null,"Leistung im Idle-Zustand (PIDLE)","W/Stück"]
[null,"Leistung im Sleep-Zustand (PSLEEP)","W/Stück"]
[null,"Leistung im Off-Zustand (POFF)","W/Stück"]
[null,"Monitor"]
[null,"Leistung im On-Zustand (PON)","W/Stück"]
[null,"Leistung im Sleep-/Standby-Zustand (PSLEEP)","W/Stück"]
[]
[null,"Betriebskosten"]
[]
[null,"Ersatzinstallation","CHF/Stück/a"]
[null,"Lagerkosten","CHF/Stück/a"]
[null,"Wartung intern (Service- und Materialkosten)","CHF/Stück/a"]
[null,"Wartung extern (Service- und Materialkosten)","CHF/Stück/a"]
[null,"Versicherungen, Steuern und Gebühren","CHF/Stück/a"]
[null,"Weitere Betriebskosten","CHF/Stück/a"]
[]
[null,"Entsorgungskosten"]
[]
["K","Entsorgungskosten","CHF/Stück"]
["K","Restwert am Ende der Lebenszyklusrechnung","CHF/Stück"]

{"sheet":"Resultate_IKT_Einzel","index":3,"n_rows":77,"n_cols":23,"rows_kept":77,"cut":false,"hidden":false,"merged":[]}
[null,"RESULTATE  IKT-EINZELPRODUKT"]
[]
[null,"Lebenszykluskosten"]
[null,"Kosten der verschiedenen Varianten über den gesamten Lebenszyklus gesehen (in Form des Nettobarwertes)."]
[null,null,null,{"$f":"Input_IKT_Einzel!D$23&IF(ISBLANK(Input_IKT_Einzel!D$26),\"\",\" (\"&LEFT(Input_IKT_Einzel!D$26,MIN(8,LEN(Input_IKT_Einzel!D$26)))&\")\")","v":"V1"},{"$f":"Input_IKT_Einzel!E$23&IF(ISBLANK(Input_IKT_Einzel!E$26),\"\",\" (\"&LEFT(Input_IKT_Einzel!E$26,MIN(8,LEN(Input_IKT_Einzel!E$26)))&\")\")","v":"V2"},{"$f":"Input_IKT_Einzel!F$23&IF(ISBLANK(Input_IKT_Einzel!F$26),\"\",\" (\"&LEFT(Input_IKT_Einzel!F$26,MIN(8,LEN(Input_IKT_Einzel!F$26)))&\")\")","v":"V3"},{"$f":"Input_IKT_Einzel!G$23&IF(ISBLANK(Input_IKT_Einzel!G$26),\"\",\" (\"&LEFT(Input_IKT_Einzel!G$26,MIN(8,LEN(Input_IKT_Einzel!G$26)))&\")\")","v":"V4"},{"$f":"Input_IKT_Einzel!H$23&IF(ISBLANK(Input_IKT_Einzel!H$26),\"\",\" (\"&LEFT(Input_IKT_Einzel!H$26,MIN(8,LEN(Input_IKT_Einzel!H$26)))&\")\")","v":"V5"},{"$f":"Input_IKT_Einzel!I$23&IF(ISBLANK(Input_IKT_Einzel!I$26),\"\",\" (\"&LEFT(Input_IKT_Einzel!I$26,MIN(8,LEN(Input_IKT_Einzel!I$26)))&\")\")","v":"V6"},{"$f":"Input_IKT_Einzel!J$23&IF(ISBLANK(Input_IKT_Einzel!J$26),\"\",\" (\"&LEFT(Input_IKT_Einzel!J$26,MIN(8,LEN(Input_IKT_Einzel!J$26)))&\")\")","v":"V7"},{"$f":"Input_IKT_Einzel!K$23&IF(ISBLANK(Input_IKT_Einzel!K$26),\"\",\" (\"&LEFT(Input_IKT_Einzel!K$26,MIN(8,LEN(Input_IKT_Einzel!K$26)))&\")\")","v":"V8"},{"$f":"Input_IKT_Einzel!L$23&IF(ISBLANK(Input_IKT_Einzel!L$26),\"\",\" (\"&LEFT(Input_IKT_Einzel!L$26,MIN(8,LEN(Input_IKT_Einzel!L$26)))&\")\")","v":"V9"},{"$f":"Input_IKT_Einzel!M$23&IF(ISBLANK(Input_IKT_Einzel!M$26),\"\",\" (\"&LEFT(Input_IKT_Einzel!M$26,MIN(8,LEN(Input_IKT_Einzel!M$26)))&\")\")","v":"V10"},{"$f":"Input_IKT_Einzel!N$23&IF(ISBLANK(Input_IKT_Einzel!N$26),\"\",\" (\"&LEFT(Input_IKT_Einzel!N$26,MIN(8,LEN(Input_IKT_Einzel!N$26)))&\")\")","v":"V11"},{"$f":"Input_IKT_Einzel!O$23&IF(ISBLANK(Input_IKT_Einzel!O$26),\"\",\" (\"&LEFT(Input_IKT_Einzel!O$26,MIN(8,LEN(Input_IKT_Einzel!O$26)))&\")\")","v":"V12"},{"$f":"Input_IKT_Einzel!P$23&IF(ISBLANK(Input_IKT_Einzel!P$26),\"\",\" (\"&LEFT(Input_IKT_Einzel!P$26,MIN(8,LEN(Input_IKT_Einzel!P$26)))&\")\")","v":"V13"},{"$f":"Input_IKT_Einzel!Q$23&IF(ISBLANK(Input_IKT_Einzel!Q$26),\"\",\" (\"&LEFT(Input_IKT_Einzel!Q$26,MIN(8,LEN(Input_IKT_Einzel!Q$26)))&\")\")","v":"V14"},{"$f":"Input_IKT_Einzel!R$23&IF(ISBLANK(Input_IKT_Einzel!R$26),\"\",\" (\"&LEFT(Input_IKT_Einzel!R$26,MIN(8,LEN(Input_IKT_Einzel!R$26)))&\")\")","v":"V15"},{"$f":"Input_IKT_Einzel!S$23&IF(ISBLANK(Input_IKT_Einzel!S$26),\"\",\" (\"&LEFT(Input_IKT_Einzel!S$26,MIN(8,LEN(Input_IKT_Einzel!S$26)))&\")\")","v":"V16"},{"$f":"Input_IKT_Einzel!T$23&IF(ISBLANK(Input_IKT_Einzel!T$26),\"\",\" (\"&LEFT(Input_IKT_Einzel!T$26,MIN(8,LEN(Input_IKT_Einzel!T$26)))&\")\")","v":"V17"},{"$f":"Input_IKT_Einzel!U$23&IF(ISBLANK(Input_IKT_Einzel!U$26),\"\",\" (\"&LEFT(Input_IKT_Einzel!U$26,MIN(8,LEN(Input_IKT_Einzel!U$26)))&\")\")","v":"V18"},{"$f":"Input_IKT_Einzel!V$23&IF(ISBLANK(Input_IKT_Einzel!V$26),\"\",\" (\"&LEFT(Input_IKT_Einzel!V$26,MIN(8,LEN(Input_IKT_Einzel!V$26)))&\")\")","v":"V19"},{"$f":"Input_IKT_Einzel!W$23&IF(ISBLANK(Input_IKT_Einzel!W$26),\"\",\" (\"&LEFT(Input_IKT_Einzel!W$26,MIN(8,LEN(Input_IKT_Einzel!W$26)))&\")\")","v":"V20"}]
[null,"Nettobarwert",null,{"$f":"Input_IKT_Einzel!D24","v":0},{"$f":"Input_IKT_Einzel!E24","v":0},{"$f":"Input_IKT_Einzel!F24","v":0},{"$f":"Input_IKT_Einzel!G24","v":0},{"$f":"Input_IKT_Einzel!H24","v":0},{"$f":"Input_IKT_Einzel!I24","v":0},{"$f":"Input_IKT_Einzel!J24","v":0},{"$f":"Input_IKT_Einzel!K24","v":0},{"$f":"Input_IKT_Einzel!L24","v":0},{"$f":"Input_IKT_Einzel!M24","v":0},{"$f":"Input_IKT_Einzel!N24","v":0},{"$f":"Input_IKT_Einzel!O24","v":0},{"$f":"Input_IKT_Einzel!P24","v":0},{"$f":"Input_IKT_Einzel!Q24","v":0},{"$f":"Input_IKT_Einzel!R24","v":0},{"$f":"Input_IKT_Einzel!S24","v":0},{"$f":"Input_IKT_Einzel!T24","v":0},{"$f":"Input_IKT_Einzel!U24","v":0},{"$f":"Input_IKT_Einzel!V24","v":0},{"$f":"Input_IKT_Einzel!W24","v":0}]
[null,"Beschaffung: Anschaffungskosten abzüglich Restwert","CHF",{"$f":"Berechnung_IKT_Einzel!Y24*Anzahl_IKT","v":0},{"$f":"Berechnung_IKT_Einzel!Z24*Anzahl_IKT","v":0},{"$f":"Berechnung_IKT_Einzel!AA24*Anzahl_IKT","v":0},{"$f":"Berechnung_IKT_Einzel!AB24*Anzahl_IKT","v":0},{"$f":"Berechnung_IKT_Einzel!AC24*Anzahl_IKT","v":0},{"$f":"Berechnung_IKT_Einzel!AD24*Anzahl_IKT","v":0},{"$f":"Berechnung_IKT_Einzel!AE24*Anzahl_IKT","v":0},{"$f":"Berechnung_IKT_Einzel!AF24*Anzahl_IKT","v":0},{"$f":"Berechnung_IKT_Einzel!AG24*Anzahl_IKT","v":0},{"$f":"Berechnung_IKT_Einzel!AH24*Anzahl_IKT","v":0},{"$f":"Berechnung_IKT_Einzel!AI24*Anzahl_IKT","v":0},{"$f":"Berechnung_IKT_Einzel!AJ24*Anzahl_IKT","v":0},{"$f":"Berechnung_IKT_Einzel!AK24*Anzahl_IKT","v":0},{"$f":"Berechnung_IKT_Einzel!AL24*Anzahl_IKT","v":0},{"$f":"Berechnung_IKT_Einzel!AM24*Anzahl_IKT","v":0},{"$f":"Berechnung_IKT_Einzel!AN24*Anzahl_IKT","v":0},{"$f":"Berechnung_IKT_Einzel!AO24*Anzahl_IKT","v":0},{"$f":"Berechnung_IKT_Einzel!AP24*Anzahl_IKT","v":0},{"$f":"Berechnung_IKT_Einzel!AQ24*Anzahl_IKT","v":0},{"$f":"Berechnung_IKT_Einzel!AR24*Anzahl_IKT","v":0}]
[null,"Energiekosten","CHF",{"$f":"Berechnung_IKT_Einzel!Y47*Anzahl_IKT","v":0},{"$f":"Berechnung_IKT_Einzel!Z47*Anzahl_IKT","v":0},{"$f":"Berechnung_IKT_Einzel!AA47*Anzahl_IKT","v":0},{"$f":"Berechnung_IKT_Einzel!AB47*Anzahl_IKT","v":0},{"$f":"Berechnung_IKT_Einzel!AC47*Anzahl_IKT","v":0},{"$f":"Berechnung_IKT_Einzel!AD47*Anzahl_IKT","v":0},{"$f":"Berechnung_IKT_Einzel!AE47*Anzahl_IKT","v":0},{"$f":"Berechnung_IKT_Einzel!AF47*Anzahl_IKT","v":0},{"$f":"Berechnung_IKT_Einzel!AG47*Anzahl_IKT","v":0},{"$f":"Berechnung_IKT_Einzel!AH47*Anzahl_IKT","v":0},{"$f":"Berechnung_IKT_Einzel!AI47*Anzahl_IKT","v":0},{"$f":"Berechnung_IKT_Einzel!AJ47*Anzahl_IKT","v":0},{"$f":"Berechnung_IKT_Einzel!AK47*Anzahl_IKT","v":0},{"$f":"Berechnung_IKT_Einzel!AL47*Anzahl_IKT","v":0},{"$f":"Berechnung_IKT_Einzel!AM47*Anzahl_IKT","v":0},{"$f":"Berechnung_IKT_Einzel!AN47*Anzahl_IKT","v":0},{"$f":"Berechnung_IKT_Einzel!AO47*Anzahl_IKT","v":0},{"$f":"Berechnung_IKT_Einzel!AP47*Anzahl_IKT","v":0},{"$f":"Berechnung_IKT_Einzel!AQ47*Anzahl_IKT","v":0},{"$f":"Berechnung_IKT_Einzel!AR47*Anzahl_IKT","v":0}]
[null,"Betriebskosten","CHF",{"$f":"Berechnung_IKT_Einzel!Y71*Anzahl_IKT","v":0},{"$f":"Berechnung_IKT_Einzel!Z71*Anzahl_IKT","v":0},{"$f":"Berechnung_IKT_Einzel!AA71*Anzahl_IKT","v":0},{"$f":"Berechnung_IKT_Einzel!AB71*Anzahl_IKT","v":0},{"$f":"Berechnung_IKT_Einzel!AC71*Anzahl_IKT","v":0},{"$f":"Berechnung_IKT_Einzel!AD71*Anzahl_IKT","v":0},{"$f":"Berechnung_IKT_Einzel!AE71*Anzahl_IKT","v":0},{"$f":"Berechnung_IKT_Einzel!AF71*Anzahl_IKT","v":0},{"$f":"Berechnung_IKT_Einzel!AG71*Anzahl_IKT","v":0},{"$f":"Berechnung_IKT_Einzel!AH71*Anzahl_IKT","v":0},{"$f":"Berechnung_IKT_Einzel!AI71*Anzahl_IKT","v":0},{"$f":"Berechnung_IKT_Einzel!AJ71*Anzahl_IKT","v":0},{"$f":"Berechnung_IKT_Einzel!AK71*Anzahl_IKT","v":0},{"$f":"Berechnung_IKT_Einzel!AL71*Anzahl_IKT","v":0},{"$f":"Berechnung_IKT_Einzel!AM71*Anzahl_IKT","v":0},{"$f":"Berechnung_IKT_Einzel!AN71*Anzahl_IKT","v":0},{"$f":"Berechnung_IKT_Einzel!AO71*Anzahl_IKT","v":0},{"$f":"Berechnung_IKT_Einzel!AP71*Anzahl_IKT","v":0},{"$f":"Berechnung_IKT_Einzel!AQ71*Anzahl_IKT","v":0},{"$f":"Berechnung_IKT_Einzel!AR71*Anzahl_IKT","v":0}]
["K",{"$f":"VLOOKUP(Input_Generell!$B$12,Input_Generell!$B$36:$D$39,3,0)","v":"Kosten für THG: nicht gewählt"},"CHF",{"$f":"Berechnung_IKT_Einzel!Y95*Anzahl_IKT","v":0},{"$f":"Berechnung_IKT_Einzel!Z95*Anzahl_IKT","v":0},{"$f":"Berechnung_IKT_Einzel!AA95*Anzahl_IKT","v":0},{"$f":"Berechnung_IKT_Einzel!AB95*Anzahl_IKT","v":0},{"$f":"Berechnung_IKT_Einzel!AC95*Anzahl_IKT","v":0},{"$f":"Berechnung_IKT_Einzel!AD95*Anzahl_IKT","v":0},{"$f":"Berechnung_IKT_Einzel!AE95*Anzahl_IKT","v":0},{"$f":"Berechnung_IKT_Einzel!AF95*Anzahl_IKT","v":0},{"$f":"Berechnung_IKT_Einzel!AG95*Anzahl_IKT","v":0},{"$f":"Berechnung_IKT_Einzel!AH95*Anzahl_IKT","v":0},{"$f":"Berechnung_IKT_Einzel!AI95*Anzahl_IKT","v":0},{"$f":"Berechnung_IKT_Einzel!AJ95*Anzahl_IKT","v":0},{"$f":"Berechnung_IKT_Einzel!AK95*Anzahl_IKT","v":0},{"$f":"Berechnung_IKT_Einzel!AL95*Anzahl_IKT","v":0},{"$f":"Berechnung_IKT_Einzel!AM95*Anzahl_IKT","v":0},{"$f":"Berechnung_IKT_Einzel!AN95*Anzahl_IKT","v":0},{"$f":"Berechnung_IKT_Einzel!AO95*Anzahl_IKT","v":0},{"$f":"Berechnung_IKT_Einzel!AP95*Anzahl_IKT","v":0},{"$f":"Berechnung_IKT_Einzel!AQ95*Anzahl_IKT","v":0},{"$f":"Berechnung_IKT_Einzel!AR95*Anzahl_IKT","v":0}]
[null,"Entsorgung: Entsorgungskosten","CHF",{"$f":"Berechnung_IKT_Einzel!Y114*Anzahl_IKT","v":0},{"$f":"Berechnung_IKT_Einzel!Z114*Anzahl_IKT","v":0},{"$f":"Berechnung_IKT_Einzel!AA114*Anzahl_IKT","v":0},{"$f":"Berechnung_IKT_Einzel!AB114*Anzahl_IKT","v":0},{"$f":"Berechnung_IKT_Einzel!AC114*Anzahl_IKT","v":0},{"$f":"Berechnung_IKT_Einzel!AD114*Anzahl_IKT","v":0},{"$f":"Berechnung_IKT_Einzel!AE114*Anzahl_IKT","v":0},{"$f":"Berechnung_IKT_Einzel!AF114*Anzahl_IKT","v":0},{"$f":"Berechnung_IKT_Einzel!AG114*Anzahl_IKT","v":0},{"$f":"Berechnung_IKT_Einzel!AH114*Anzahl_IKT","v":0},{"$f":"Berechnung_IKT_Einzel!AI114*Anzahl_IKT","v":0},{"$f":"Berechnung_IKT_Einzel!AJ114*Anzahl_IKT","v":0},{"$f":"Berechnung_IKT_Einzel!AK114*Anzahl_IKT","v":0},{"$f":"Berechnung_IKT_Einzel!AL114*Anzahl_IKT","v":0},{"$f":"Berechnung_IKT_Einzel!AM114*Anzahl_IKT","v":0},{"$f":"Berechnung_IKT_Einzel!AN114*Anzahl_IKT","v":0},{"$f":"Berechnung_IKT_Einzel!AO114*Anzahl_IKT","v":0},{"$f":"Berechnung_IKT_Einzel!AP114*Anzahl_IKT","v":0},{"$f":"Berechnung_IKT_Einzel!AQ114*Anzahl_IKT","v":0},{"$f":"Berechnung_IKT_Einzel!AR114*Anzahl_IKT","v":0}]
[null,"Total","CHF",{"$f":"SUM(D7:D11)","v":0},{"$f":"SUM(E7:E11)","v":0},{"$f":"SUM(F7:F11)","v":0},{"$f":"SUM(G7:G11)","v":0},{"$f":"SUM(H7:H11)","v":0},{"$f":"SUM(I7:I11)","v":0},0,0,0,0,0,0,0,0,0,0,0,0,0,0]
[]
["K","Umweltbelastungspunkte UBP'13 Betrieb","UBP",{"$f":"Berechnung_IKT_Einzel!C76*Betrachtungszeit_IKT_Einzel*Anzahl_IKT","v":0},{"$f":"Berechnung_IKT_Einzel!D76*Betrachtungszeit_IKT_Einzel*Anzahl_IKT","v":0},{"$f":"Berechnung_IKT_Einzel!E76*Betrachtungszeit_IKT_Einzel*Anzahl_IKT","v":0},{"$f":"Berechnung_IKT_Einzel!F76*Betrachtungszeit_IKT_Einzel*Anzahl_IKT","v":0},{"$f":"Berechnung_IKT_Einzel!G76*Betrachtungszeit_IKT_Einzel*Anzahl_IKT","v":0},{"$f":"Berechnung_IKT_Einzel!H76*Betrachtungszeit_IKT_Einzel*Anzahl_IKT","v":0},{"$f":"Berechnung_IKT_Einzel!I76*Betrachtungszeit_IKT_Einzel*Anzahl_IKT","v":0},{"$f":"Berechnung_IKT_Einzel!J76*Betrachtungszeit_IKT_Einzel*Anzahl_IKT","v":0},{"$f":"Berechnung_IKT_Einzel!K76*Betrachtungszeit_IKT_Einzel*Anzahl_IKT","v":0},{"$f":"Berechnung_IKT_Einzel!L76*Betrachtungszeit_IKT_Einzel*Anzahl_IKT","v":0},{"$f":"Berechnung_IKT_Einzel!M76*Betrachtungszeit_IKT_Einzel*Anzahl_IKT","v":0},{"$f":"Berechnung_IKT_Einzel!N76*Betrachtungszeit_IKT_Einzel*Anzahl_IKT","v":0},{"$f":"Berechnung_IKT_Einzel!O76*Betrachtungszeit_IKT_Einzel*Anzahl_IKT","v":0},{"$f":"Berechnung_IKT_Einzel!P76*Betrachtungszeit_IKT_Einzel*Anzahl_IKT","v":0},{"$f":"Berechnung_IKT_Einzel!Q76*Betrachtungszeit_IKT_Einzel*Anzahl_IKT","v":0},{"$f":"Berechnung_IKT_Einzel!R76*Betrachtungszeit_IKT_Einzel*Anzahl_IKT","v":0},{"$f":"Berechnung_IKT_Einzel!S76*Betrachtungszeit_IKT_Einzel*Anzahl_IKT","v":0},{"$f":"Berechnung_IKT_Einzel!T76*Betrachtungszeit_IKT_Einzel*Anzahl_IKT","v":0},{"$f":"Berechnung_IKT_Einzel!U76*Betrachtungszeit_IKT_Einzel*Anzahl_IKT","v":0},{"$f":"Berechnung_IKT_Einzel!V76*Betrachtungszeit_IKT_Einzel*Anzahl_IKT","v":0}]
[null,"Treibhausgasemissionen Betrieb (Scope 2)","tCO2eq",{"$f":"Berechnung_IKT_Einzel!C77*Betrachtungszeit_IKT_Einzel*Anzahl_IKT","v":0},{"$f":"Berechnung_IKT_Einzel!D77*Betrachtungszeit_IKT_Einzel*Anzahl_IKT","v":0},{"$f":"Berechnung_IKT_Einzel!E77*Betrachtungszeit_IKT_Einzel*Anzahl_IKT","v":0},{"$f":"Berechnung_IKT_Einzel!F77*Betrachtungszeit_IKT_Einzel*Anzahl_IKT","v":0},{"$f":"Berechnung_IKT_Einzel!G77*Betrachtungszeit_IKT_Einzel*Anzahl_IKT","v":0},{"$f":"Berechnung_IKT_Einzel!H77*Betrachtungszeit_IKT_Einzel*Anzahl_IKT","v":0},{"$f":"Berechnung_IKT_Einzel!I77*Betrachtungszeit_IKT_Einzel*Anzahl_IKT","v":0},{"$f":"Berechnung_IKT_Einzel!J77*Betrachtungszeit_IKT_Einzel*Anzahl_IKT","v":0},{"$f":"Berechnung_IKT_Einzel!K77*Betrachtungszeit_IKT_Einzel*Anzahl_IKT","v":0},{"$f":"Berechnung_IKT_Einzel!L77*Betrachtungszeit_IKT_Einzel*Anzahl_IKT","v":0},{"$f":"Berechnung_IKT_Einzel!M77*Betrachtungszeit_IKT_Einzel*Anzahl_IKT","v":0},{"$f":"Berechnung_IKT_Einzel!N77*Betrachtungszeit_IKT_Einzel*Anzahl_IKT","v":0},{"$f":"Berechnung_IKT_Einzel!O77*Betrachtungszeit_IKT_Einzel*Anzahl_IKT","v":0},{"$f":"Berechnung_IKT_Einzel!P77*Betrachtungszeit_IKT_Einzel*Anzahl_IKT","v":0},{"$f":"Berechnung_IKT_Einzel!Q77*Betrachtungszeit_IKT_Einzel*Anzahl_IKT","v":0},{"$f":"Berechnung_IKT_Einzel!R77*Betrachtungszeit_IKT_Einzel*Anzahl_IKT","v":0},{"$f":"Berechnung_IKT_Einzel!S77*Betrachtungszeit_IKT_Einzel*Anzahl_IKT","v":0},{"$f":"Berechnung_IKT_Einzel!T77*Betrachtungszeit_IKT_Einzel*Anzahl_IKT","v":0},{"$f":"Berechnung_IKT_Einzel!U77*Betrachtungszeit_IKT_Einzel*Anzahl_IKT","v":0},{"$f":"Berechnung_IKT_Einzel!V77*Betrachtungszeit_IKT_Einzel*Anzahl_IKT","v":0}]
[null,"Treibhausgasemissionen Herstellung (Scope 3)","tCO2eq",{"$f":"Berechnung_IKT_Einzel!C80*Anzahl_IKT","v":0},{"$f":"Berechnung_IKT_Einzel!D80*Anzahl_IKT","v":0},{"$f":"Berechnung_IKT_Einzel!E80*Anzahl_IKT","v":0},{"$f":"Berechnung_IKT_Einzel!F80*Anzahl_IKT","v":0},{"$f":"Berechnung_IKT_Einzel!G80*Anzahl_IKT","v":0},{"$f":"Berechnung_IKT_Einzel!H80*Anzahl_IKT","v":0},{"$f":"Berechnung_IKT_Einzel!I80*Anzahl_IKT","v":0},{"$f":"Berechnung_IKT_Einzel!J80*Anzahl_IKT","v":0},{"$f":"Berechnung_IKT_Einzel!K80*Anzahl_IKT","v":0},{"$f":"Berechnung_IKT_Einzel!L80*Anzahl_IKT","v":0},{"$f":"Berechnung_IKT_Einzel!M80*Anzahl_IKT","v":0},{"$f":"Berechnung_IKT_Einzel!N80*Anzahl_IKT","v":0},{"$f":"Berechnung_IKT_Einzel!O80*Anzahl_IKT","v":0},{"$f":"Berechnung_IKT_Einzel!P80*Anzahl_IKT","v":0},{"$f":"Berechnung_IKT_Einzel!Q80*Anzahl_IKT","v":0},{"$f":"Berechnung_IKT_Einzel!R80*Anzahl_IKT","v":0},{"$f":"Berechnung_IKT_Einzel!S80*Anzahl_IKT","v":0},{"$f":"Berechnung_IKT_Einzel!T80*Anzahl_IKT","v":0},{"$f":"Berechnung_IKT_Einzel!U80*Anzahl_IKT","v":0},{"$f":"Berechnung_IKT_Einzel!V80*Anzahl_IKT","v":0}]
[]
[null,"Lebenszykluskosten Diagramm"]
[]
[]
[null,"Aufsummierte Kosten (Barwerte) der einzelnen Varianten über die Betrachtungszeit"]
[]
[]
[null,null,null,null,null,null,null,null,"Dargestellte Varianten"]
[null,null,null,null,null,null,null,null,"BITTE WÄHLEN"]
[null,null,null,null,null,null,null,null,"BITTE WÄHLEN"]
[null,null,null,null,null,null,null,null,"BITTE WÄHLEN"]
[null,null,null,null,null,null,null,null,"BITTE WÄHLEN"]
[]
[]
[]
[]
[]
[]
[]
[]
[]
[]
[]
[]
[]
[]
[]
[]
[]
[]
[]
[]
[]
[]
[]
[]
[]
[]
[null,"Auswahlfeld Dastellung Variante"]
[null,"BITTE WÄHLEN"]
[null,{"$f":"D$5","v":"V1"}]
[null,{"$f":"E$5","v":"V2"}]
[null,{"$f":"F$5","v":"V3"}]
[null,{"$f":"G$5","v":"V4"}]
[null,{"$f":"H$5","v":"V5"}]
[null,{"$f":"I$5","v":"V6"}]
[null,{"$f":"J$5","v":"V7"}]
[null,{"$f":"K$5","v":"V8"}]
[null,{"$f":"L$5","v":"V9"}]
[null,{"$f":"L$5","v":"V9"}]
[null,{"$f":"M$5","v":"V10"}]
[null,{"$f":"N$5","v":"V11"}]
[null,{"$f":"O$5","v":"V12"}]
[null,{"$f":"P$5","v":"V13"}]
[null,{"$f":"Q$5","v":"V14"}]
[null,{"$f":"R$5","v":"V15"}]
[null,{"$f":"S$5","v":"V16"}]
[null,{"$f":"T$5","v":"V17"}]
[null,{"$f":"U$5","v":"V18"}]
[null,{"$f":"V$5","v":"V19"}]
[null,{"$f":"W$5","v":"V20"}]

{"sheet":"Berechnung_IKT_Einzel","index":4,"n_rows":145,"n_cols":44,"rows_kept":145,"cut":false,"hidden":false,"merged":[[115,23,115,43],[132,28,133,28],[2,1,2,6],[72,1,72,6],[96,1,96,6],[25,1,25,6],[2,23,2,28],[25,23,25,28],[48,23,48,28]]}
[null,"BERECHNUNGEN PRO STÜCK (IKT-EINZELPRODUKT)"]
[]
[null,"Beschaffung",null,null,null,null,null,null,null,null,null,null,null,null,null,null,null,null,null,null,null,null,null,{"$f":"\"Barwert \"&B3","v":"Barwert Beschaffung"}]
[]
[null,null,"V1","V2","V3","V4","V5","V6","V7","V8","V9","V10","V11","V12","V13","V14","V15","V16","V17","V18","V19","V20"]
[null,"Anschaffungskosten [CHF]",{"$f":"Input_IKT_Einzel!D32","v":0},{"$f":"Input_IKT_Einzel!E32","v":0},{"$f":"Input_IKT_Einzel!F32","v":0},{"$f":"Input_IKT_Einzel!G32","v":0},{"$f":"Input_IKT_Einzel!H32","v":0},{"$f":"Input_IKT_Einzel!I32","v":0},{"$f":"Input_IKT_Einzel!J32","v":0},{"$f":"Input_IKT_Einzel!K32","v":0},{"$f":"Input_IKT_Einzel!L32","v":0},{"$f":"Input_IKT_Einzel!M32","v":0},{"$f":"Input_IKT_Einzel!N32","v":0},{"$f":"Input_IKT_Einzel!O32","v":0},{"$f":"Input_IKT_Einzel!P32","v":0},{"$f":"Input_IKT_Einzel!Q32","v":0},{"$f":"Input_IKT_Einzel!R32","v":0},{"$f":"Input_IKT_Einzel!S32","v":0},{"$f":"Input_IKT_Einzel!T32","v":0},{"$f":"Input_IKT_Einzel!U32","v":0},{"$f":"Input_IKT_Einzel!V32","v":0},{"$f":"Input_IKT_Einzel!W32","v":0}]
[null,"Transportkosten [CHF]",{"$f":"Input_IKT_Einzel!D33","v":0},{"$f":"Input_IKT_Einzel!E33","v":0},{"$f":"Input_IKT_Einzel!F33","v":0},{"$f":"Input_IKT_Einzel!G33","v":0},{"$f":"Input_IKT_Einzel!H33","v":0},{"$f":"Input_IKT_Einzel!I33","v":0},{"$f":"Input_IKT_Einzel!J33","v":0},{"$f":"Input_IKT_Einzel!K33","v":0},{"$f":"Input_IKT_Einzel!L33","v":0},{"$f":"Input_IKT_Einzel!M33","v":0},{"$f":"Input_IKT_Einzel!N33","v":0},{"$f":"Input_IKT_Einzel!O33","v":0},{"$f":"Input_IKT_Einzel!P33","v":0},{"$f":"Input_IKT_Einzel!Q33","v":0},{"$f":"Input_IKT_Einzel!R33","v":0},{"$f":"Input_IKT_Einzel!S33","v":0},{"$f":"Input_IKT_Einzel!T33","v":0},{"$f":"Input_IKT_Einzel!U33","v":0},{"$f":"Input_IKT_Einzel!V33","v":0},{"$f":"Input_IKT_Einzel!W33","v":0}]
[null,"Installationskosten einmalig [CHF]",{"$f":"Input_IKT_Einzel!D34","v":0},{"$f":"Input_IKT_Einzel!E34","v":0},{"$f":"Input_IKT_Einzel!F34","v":0},{"$f":"Input_IKT_Einzel!G34","v":0},{"$f":"Input_IKT_Einzel!H34","v":0},{"$f":"Input_IKT_Einzel!I34","v":0},{"$f":"Input_IKT_Einzel!J34","v":0},{"$f":"Input_IKT_Einzel!K34","v":0},{"$f":"Input_IKT_Einzel!L34","v":0},{"$f":"Input_IKT_Einzel!M34","v":0},{"$f":"Input_IKT_Einzel!N34","v":0},{"$f":"Input_IKT_Einzel!O34","v":0},{"$f":"Input_IKT_Einzel!P34","v":0},{"$f":"Input_IKT_Einzel!Q34","v":0},{"$f":"Input_IKT_Einzel!R34","v":0},{"$f":"Input_IKT_Einzel!S34","v":0},{"$f":"Input_IKT_Einzel!T34","v":0},{"$f":"Input_IKT_Einzel!U34","v":0},{"$f":"Input_IKT_Einzel!V34","v":0},{"$f":"Input_IKT_Einzel!W34","v":0}]
[null,"Total [CHF]",{"$f":"SUM(C6:C8)","v":0},0,0,0,0,0,0,0,0,0,0,0,0,0,0,0,0,0,0,0]
["K","Restwert am Ende des Lebenszyklus [CHF]",{"$f":"Input_IKT_Einzel!D60","v":0},{"$f":"Input_IKT_Einzel!E60","v":0},{"$f":"Input_IKT_Einzel!F60","v":0},{"$f":"Input_IKT_Einzel!G60","v":0},{"$f":"Input_IKT_Einzel!H60","v":0},{"$f":"Input_IKT_Einzel!I60","v":0},{"$f":"Input_IKT_Einzel!J60","v":0},{"$f":"Input_IKT_Einzel!K60","v":0},{"$f":"Input_IKT_Einzel!L60","v":0},{"$f":"Input_IKT_Einzel!M60","v":0},{"$f":"Input_IKT_Einzel!N60","v":0},{"$f":"Input_IKT_Einzel!O60","v":0},{"$f":"Input_IKT_Einzel!P60","v":0},{"$f":"Input_IKT_Einzel!Q60","v":0},{"$f":"Input_IKT_Einzel!R60","v":0},{"$f":"Input_IKT_Einzel!S60","v":0},{"$f":"Input_IKT_Einzel!T60","v":0},{"$f":"Input_IKT_Einzel!U60","v":0},{"$f":"Input_IKT_Einzel!V60","v":0},{"$f":"Input_IKT_Einzel!W60","v":0}]
[null,"Anschaffungskosten abzügl. Restwert [CHF] mit Berücksichtigung der Preissteigerung im Jahr…"]
[null,null,"V1","V2","V3","V4","V5","V6","V7","V8","V9","V10","V11","V12","V13","V14","V15","V16","V17","V18","V19","V20",null,"Jahr","V1","V2","V3","V4","V5","V6","V7","V8","V9","V10","V11","V12","V13","V14","V15","V16","V17","V18","V19","V20"]
[null,0,{"$f":"C9","v":0},0,0,0,0,0,0,0,0,0,0,0,0,0,0,0,0,0,0,0,null,0,{"$f":"C13*(1+Kalkulationszinssatz)^-$X13","v":0},{"$f":"D13*(1+Kalkulationszinssatz)^-$X13","v":0},{"$f":"E13*(1+Kalkulationszinssatz)^-$X13","v":0},{"$f":"F13*(1+Kalkulationszinssatz)^-$X13","v":0},{"$f":"G13*(1+Kalkulationszinssatz)^-$X13","v":0},{"$f":"H13*(1+Kalkulationszinssatz)^-$X13","v":0},{"$f":"I13*(1+Kalkulationszinssatz)^-$X13","v":0},{"$f":"J13*(1+Kalkulationszinssatz)^-$X13","v":0},{"$f":"K13*(1+Kalkulationszinssatz)^-$X13","v":0},{"$f":"L13*(1+Kalkulationszinssatz)^-$X13","v":0},{"$f":"M13*(1+Kalkulationszinssatz)^-$X13","v":0},{"$f":"N13*(1+Kalkulationszinssatz)^-$X13","v":0},{"$f":"O13*(1+Kalkulationszinssatz)^-$X13","v":0},{"$f":"P13*(1+Kalkulationszinssatz)^-$X13","v":0},{"$f":"Q13*(1+Kalkulationszinssatz)^-$X13","v":0},{"$f":"R13*(1+Kalkulationszinssatz)^-$X13","v":0},{"$f":"S13*(1+Kalkulationszinssatz)^-$X13","v":0},{"$f":"T13*(1+Kalkulationszinssatz)^-$X13","v":0},{"$f":"U13*(1+Kalkulationszinssatz)^-$X13","v":0},{"$f":"V13*(1+Kalkulationszinssatz)^-$X13","v":0}]
[null,1,{"$f":"IF($B14=Betrachtungszeit_IKT_Einzel,C$10*(1+Inflationsindex)^$B14,0)","v":0},{"$f":"IF($B14=Betrachtungszeit_IKT_Einzel,D$10*(1+Inflationsindex)^$B14,0)","v":0},0,0,0,0,0,0,0,0,0,0,0,0,0,0,{"$f":"IF($B14=Betrachtungszeit_IKT_Einzel,S$10*(1+Inflationsindex)^$B14,0)","v":0},0,0,0,null,1,0,0,0,0,0,0,0,0,0,0,0,0,0,0,0,0,0,0,0,0]
[null,2,{"$f":"IF($B15=Betrachtungszeit_IKT_Einzel,C$10*(1+Inflationsindex)^$B15,0)","v":0},0,0,0,0,0,0,0,0,0,0,0,0,0,0,0,0,0,0,0,null,2,0,0,0,0,0,0,0,0,0,0,0,0,0,0,0,0,0,0,0,0]
[null,3,0,0,0,0,0,0,0,0,0,0,0,0,0,0,0,0,0,0,0,0,null,3,0,0,0,0,0,0,0,0,0,0,0,0,0,0,0,0,0,0,0,0]
[null,4,0,0,0,0,0,0,0,0,0,0,0,0,0,0,0,0,0,0,0,0,null,4,0,0,0,0,0,0,0,0,0,0,0,0,0,0,0,0,0,0,0,0]
[null,5,0,0,0,0,0,0,0,0,0,0,0,0,0,0,0,0,0,0,0,0,null,5,0,0,0,0,0,0,0,0,0,0,0,0,0,0,0,0,0,0,0,0]
[null,6,0,0,0,0,0,0,0,0,0,0,0,0,0,0,0,0,0,0,0,0,null,6,0,0,0,0,0,0,0,0,0,0,0,0,0,0,0,0,0,0,0,0]
[null,7,0,0,0,0,0,0,0,0,0,0,0,0,0,0,0,0,0,0,0,0,null,7,0,0,0,0,0,0,0,0,0,0,0,0,0,0,0,0,0,0,0,0]
[null,8,0,0,0,0,0,0,0,0,0,0,0,0,0,0,0,0,0,0,0,0,null,8,0,0,0,0,0,0,0,0,0,0,0,0,0,0,0,0,0,0,0,0]
[null,9,0,0,0,0,0,0,0,0,0,0,0,0,0,0,0,0,0,0,0,0,null,9,0,0,0,0,0,0,0,0,0,0,0,0,0,0,0,0,0,0,0,0]
[null,10,0,0,0,0,0,0,0,0,0,0,0,0,0,0,0,0,0,0,0,0,null,10,0,0,0,0,0,0,0,0,0,0,0,0,0,0,0,0,0,0,0,0]
[null,null,null,null,null,null,null,null,null,null,null,null,null,null,null,null,null,null,null,null,null,null,null,"Total",{"$f":"SUM(Y13:Y23)","v":0},0,0,0,0,0,0,0,0,0,0,0,0,0,0,0,0,0,0,0]
[]
[null,"Energiekosten",null,null,null,null,null,null,null,null,null,null,null,null,null,null,null,null,null,null,null,null,null,{"$f":"\"Barwert \"&B26","v":"Barwert Energiekosten"}]
[]
["K","Methode der Energieverbrauchs-Berechnung","V1","V2","V3","V4","V5","V6","V7","V8","V9","V10","V11","V12","V13","V14","V15","V16","V17","V18","V19","V20"]
[null,{"$f":"Input_IKT_Einzel!AA10","v":"BITTE WÄHLEN"},0,0,0,0,0,0,0,0,0,0,0,0,0,0,0,0,0,0,0,0]
[null,{"$f":"Input_IKT_Einzel!AA11","v":"Energieverbrauch gemäss E TEC - Wert von Energy Star"},{"$f":"Input_IKT_Einzel!D39","v":0},{"$f":"Input_IKT_Einzel!E39","v":0},{"$f":"Input_IKT_Einzel!F39","v":0},{"$f":"Input_IKT_Einzel!G39","v":0},{"$f":"Input_IKT_Einzel!H39","v":0},{"$f":"Input_IKT_Einzel!I39","v":0},{"$f":"Input_IKT_Einzel!J39","v":0},{"$f":"Input_IKT_Einzel!K39","v":0},{"$f":"Input_IKT_Einzel!L39","v":0},{"$f":"Input_IKT_Einzel!M39","v":0},{"$f":"Input_IKT_Einzel!N39","v":0},{"$f":"Input_IKT_Einzel!O39","v":0},{"$f":"Input_IKT_Einzel!P39","v":0},{"$f":"Input_IKT_Einzel!Q39","v":0},{"$f":"Input_IKT_Einzel!R39","v":0},{"$f":"Input_IKT_Einzel!S39","v":0},{"$f":"Input_IKT_Einzel!T39","v":0},{"$f":"Input_IKT_Einzel!U39","v":0},{"$f":"Input_IKT_Einzel!V39","v":0},{"$f":"Input_IKT_Einzel!W39","v":0}]
[null,{"$f":"Input_IKT_Einzel!AA12","v":"Energieverbrauch über Leistungsaufnahme berechnen"},{"$f":"8760/1000*(IKT_ZustandComputer_Idle*Input_IKT_Einzel!D41+IKT_ZustandComputer_Sleep*Input_IKT_Einzel!D42+IKT_ZustandComputer_Off*Input_IKT_Einzel!D43)+8760/1000*(IKT_ZustandMonitor_On*Input_IKT_Einzel!D45+IKT_ZustandMonitor_Sleep*Input_IKT_Einzel!D46)","v":0},{"$f":"8760/1000*(IKT_ZustandComputer_Idle*Input_IKT_Einzel!E41+IKT_ZustandComputer_Sleep*Input_IKT_Einzel!E42+IKT_ZustandComputer_Off*Input_IKT_Einzel!E43)+8760/1000*(IKT_ZustandMonitor_On*Input_IKT_Einzel!E45+IKT_ZustandMonitor_Sleep*Input_IKT_Einzel!E46)","v":0},{"$f":"8760/1000*(IKT_ZustandComputer_Idle*Input_IKT_Einzel!F41+IKT_ZustandComputer_Sleep*Input_IKT_Einzel!F42+IKT_ZustandComputer_Off*Input_IKT_Einzel!F43)+8760/1000*(IKT_ZustandMonitor_On*Input_IKT_Einzel!F45+IKT_ZustandMonitor_Sleep*Input_IKT_Einzel!F46)","v":0},{"$f":"8760/1000*(IKT_ZustandComputer_Idle*Input_IKT_Einzel!G41+IKT_ZustandComputer_Sleep*Input_IKT_Einzel!G42+IKT_ZustandComputer_Off*Input_IKT_Einzel!G43)+8760/1000*(IKT_ZustandMonitor_On*Input_IKT_Einzel!G45+IKT_ZustandMonitor_Sleep*Input_IKT_Einzel!G46)","v":0},{"$f":"8760/1000*(IKT_ZustandComputer_Idle*Input_IKT_Einzel!H41+IKT_ZustandComputer_Sleep*Input_IKT_Einzel!H42+IKT_ZustandComputer_Off*Input_IKT_Einzel!H43)+8760/1000*(IKT_ZustandMonitor_On*Input_IKT_Einzel!H45+IKT_ZustandMonitor_Sleep*Input_IKT_Einzel!H46)","v":0},{"$f":"8760/1000*(IKT_ZustandComputer_Idle*Input_IKT_Einzel!I41+IKT_ZustandComputer_Sleep*Input_IKT_Einzel!I42+IKT_ZustandComputer_Off*Input_IKT_Einzel!I43)+8760/1000*(IKT_ZustandMonitor_On*Input_IKT_Einzel!I45+IKT_ZustandMonitor_Sleep*Input_IKT_Einzel!I46)","v":0},{"$f":"8760/1000*(IKT_ZustandComputer_Idle*Input_IKT_Einzel!J41+IKT_ZustandComputer_Sleep*Input_IKT_Einzel!J42+IKT_ZustandComputer_Off*Input_IKT_Einzel!J43)+8760/1000*(IKT_ZustandMonitor_On*Input_IKT_Einzel!J45+IKT_ZustandMonitor_Sleep*Input_IKT_Einzel!J46)","v":0},{"$f":"8760/1000*(IKT_ZustandComputer_Idle*Input_IKT_Einzel!K41+IKT_ZustandComputer_Sleep*Input_IKT_Einzel!K42+IKT_ZustandComputer_Off*Input_IKT_Einzel!K43)+8760/1000*(IKT_ZustandMonitor_On*Input_IKT_Einzel!K45+IKT_ZustandMonitor_Sleep*Input_IKT_Einzel!K46)","v":0},{"$f":"8760/1000*(IKT_ZustandComputer_Idle*Input_IKT_Einzel!L41+IKT_ZustandComputer_Sleep*Input_IKT_Einzel!L42+IKT_ZustandComputer_Off*Input_IKT_Einzel!L43)+8760/1000*(IKT_ZustandMonitor_On*Input_IKT_Einzel!L45+IKT_ZustandMonitor_Sleep*Input_IKT_Einzel!L46)","v":0},{"$f":"8760/1000*(IKT_ZustandComputer_Idle*Input_IKT_Einzel!M41+IKT_ZustandComputer_Sleep*Input_IKT_Einzel!M42+IKT_ZustandComputer_Off*Input_IKT_Einzel!M43)+8760/1000*(IKT_ZustandMonitor_On*Input_IKT_Einzel!M45+IKT_ZustandMonitor_Sleep*Input_IKT_Einzel!M46)","v":0},{"$f":"8760/1000*(IKT_ZustandComputer_Idle*Input_IKT_Einzel!N41+IKT_ZustandComputer_Sleep*Input_IKT_Einzel!N42+IKT_ZustandComputer_Off*Input_IKT_Einzel!N43)+8760/1000*(IKT_ZustandMonitor_On*Input_IKT_Einzel!N45+IKT_ZustandMonitor_Sleep*Input_IKT_Einzel!N46)","v":0},{"$f":"8760/1000*(IKT_ZustandComputer_Idle*Input_IKT_Einzel!O41+IKT_ZustandComputer_Sleep*Input_IKT_Einzel!O42+IKT_ZustandComputer_Off*Input_IKT_Einzel!O43)+8760/1000*(IKT_ZustandMonitor_On*Input_IKT_Einzel!O45+IKT_ZustandMonitor_Sleep*Input_IKT_Einzel!O46)","v":0},{"$f":"8760/1000*(IKT_ZustandComputer_Idle*Input_IKT_Einzel!P41+IKT_ZustandComputer_Sleep*Input_IKT_Einzel!P42+IKT_ZustandComputer_Off*Input_IKT_Einzel!P43)+8760/1000*(IKT_ZustandMonitor_On*Input_IKT_Einzel!P45+IKT_ZustandMonitor_Sleep*Input_IKT_Einzel!P46)","v":0},{"$f":"8760/1000*(IKT_ZustandComputer_Idle*Input_IKT_Einzel!Q41+IKT_ZustandComputer_Sleep*Input_IKT_Einzel!Q42+IKT_ZustandComputer_Off*Input_IKT_Einzel!Q43)+8760/1000*(IKT_ZustandMonitor_On*Input_IKT_Einzel!Q45+IKT_ZustandMonitor_Sleep*Input_IKT_Einzel!Q46)","v":0},{"$f":"8760/1000*(IKT_ZustandComputer_Idle*Input_IKT_Einzel!R41+IKT_ZustandComputer_Sleep*Input_IKT_Einzel!R42+IKT_ZustandComputer_Off*Input_IKT_Einzel!R43)+8760/1000*(IKT_ZustandMonitor_On*Input_IKT_Einzel!R45+IKT_ZustandMonitor_Sleep*Input_IKT_Einzel!R46)","v":0},{"$f":"8760/1000*(IKT_ZustandComputer_Idle*Input_IKT_Einzel!S41+IKT_ZustandComputer_Sleep*Input_IKT_Einzel!S42+IKT_ZustandComputer_Off*Input_IKT_Einzel!S43)+8760/1000*(IKT_ZustandMonitor_On*Input_IKT_Einzel!S45+IKT_ZustandMonitor_Sleep*Input_IKT_Einzel!S46)","v":0},{"$f":"8760/1000*(IKT_ZustandComputer_Idle*Input_IKT_Einzel!T41+IKT_ZustandComputer_Sleep*Input_IKT_Einzel!T42+IKT_ZustandComputer_Off*Input_IKT_Einzel!T43)+8760/1000*(IKT_ZustandMonitor_On*Input_IKT_Einzel!T45+IKT_ZustandMonitor_Sleep*Input_IKT_Einzel!T46)","v":0},{"$f":"8760/1000*(IKT_ZustandComputer_Idle*Input_IKT_Einzel!U41+IKT_ZustandComputer_Sleep*Input_IKT_Einzel!U42+IKT_ZustandComputer_Off*Input_IKT_Einzel!U43)+8760/1000*(IKT_ZustandMonitor_On*Input_IKT_Einzel!U45+IKT_ZustandMonitor_Sleep*Input_IKT_Einzel!U46)","v":0},{"$f":"8760/1000*(IKT_ZustandComputer_Idle*Input_IKT_Einzel!V41+IKT_ZustandComputer_Sleep*Input_IKT_Einzel!V42+IKT_ZustandComputer_Off*Input_IKT_Einzel!V43)+8760/1000*(IKT_ZustandMonitor_On*Input_IKT_Einzel!V45+IKT_ZustandMonitor_Sleep*Input_IKT_Einzel!V46)","v":0},{"$f":"8760/1000*(IKT_ZustandComputer_Idle*Input_IKT_Einzel!W41+IKT_ZustandComputer_Sleep*Input_IKT_Einzel!W42+IKT_ZustandComputer_Off*Input_IKT_Einzel!W43)+8760/1000*(IKT_ZustandMonitor_On*Input_IKT_Einzel!W45+IKT_ZustandMonitor_Sleep*Input_IKT_Einzel!W46)","v":0}]
[null,"Energieverbrauch [kWh/a]",{"$f":"SUMIF($B$29:$B$31,vba_ICT_EnergieMethode,C29:C31)","v":0},0,0,0,0,0,0,0,0,0,0,0,0,0,0,0,0,0,0,0]
[null,"Energiekosten [CHF/a]",{"$f":"C32*Strompreis/100","v":0},0,0,0,0,0,0,0,0,0,0,0,0,0,0,0,0,0,0,0]
[null,"Energiekosten [CHF] mit Berücksichtigung der Energiepreissteigerung am Ende des Jahres…"]
[null,"Jahr","V1","V2","V3","V4","V5","V6","V7","V8","V9","V10","V11","V12","V13","V14","V15","V16","V17","V18","V19","V20",null,"Jahr","V1","V2","V3","V4","V5","V6","V7","V8","V9","V10","V11","V12","V13","V14","V15","V16","V17","V18","V19","V20"]
[null,0,0,0,0,0,0,0,0,0,0,0,0,0,0,0,0,0,0,0,0,0,null,0,{"$f":"C36*(1+Kalkulationszinssatz)^-$X13","v":0},{"$f":"D36*(1+Kalkulationszinssatz)^-$X13","v":0},{"$f":"E36*(1+Kalkulationszinssatz)^-$X13","v":0},{"$f":"F36*(1+Kalkulationszinssatz)^-$X13","v":0},{"$f":"G36*(1+Kalkulationszinssatz)^-$X13","v":0},{"$f":"H36*(1+Kalkulationszinssatz)^-$X13","v":0},{"$f":"I36*(1+Kalkulationszinssatz)^-$X13","v":0},{"$f":"J36*(1+Kalkulationszinssatz)^-$X13","v":0},{"$f":"K36*(1+Kalkulationszinssatz)^-$X13","v":0},{"$f":"L36*(1+Kalkulationszinssatz)^-$X13","v":0},{"$f":"M36*(1+Kalkulationszinssatz)^-$X13","v":0},{"$f":"N36*(1+Kalkulationszinssatz)^-$X13","v":0},{"$f":"O36*(1+Kalkulationszinssatz)^-$X13","v":0},{"$f":"P36*(1+Kalkulationszinssatz)^-$X13","v":0},{"$f":"Q36*(1+Kalkulationszinssatz)^-$X13","v":0},{"$f":"R36*(1+Kalkulationszinssatz)^-$X13","v":0},{"$f":"S36*(1+Kalkulationszinssatz)^-$X13","v":0},{"$f":"T36*(1+Kalkulationszinssatz)^-$X13","v":0},{"$f":"U36*(1+Kalkulationszinssatz)^-$X13","v":0},{"$f":"V36*(1+Kalkulationszinssatz)^-$X13","v":0}]
[null,1,{"$f":"IF($B37<=Betrachtungszeit_IKT_Einzel,C33*(1+Energiepreissteigerung),0)","v":0},0,0,0,0,0,0,0,0,0,0,0,0,0,0,0,0,0,0,0,null,1,0,0,0,0,0,0,0,0,0,0,0,0,0,0,0,0,0,0,0,0]
[null,2,{"$f":"IF($B38<=Betrachtungszeit_IKT_Einzel,C37*(1+Energiepreissteigerung),0)","v":0},{"$f":"IF($B38<=Betrachtungszeit_IKT_Einzel,D37*(1+Energiepreissteigerung),0)","v":0},{"$f":"IF($B38<=Betrachtungszeit_IKT_Einzel,E37*(1+Energiepreissteigerung),0)","v":0},{"$f":"IF($B38<=Betrachtungszeit_IKT_Einzel,F37*(1+Energiepreissteigerung),0)","v":0},{"$f":"IF($B38<=Betrachtungszeit_IKT_Einzel,G37*(1+Energiepreissteigerung),0)","v":0},{"$f":"IF($B38<=Betrachtungszeit_IKT_Einzel,H37*(1+Energiepreissteigerung),0)","v":0},{"$f":"IF($B38<=Betrachtungszeit_IKT_Einzel,I37*(1+Energiepreissteigerung),0)","v":0},{"$f":"IF($B38<=Betrachtungszeit_IKT_Einzel,J37*(1+Energiepreissteigerung),0)","v":0},{"$f":"IF($B38<=Betrachtungszeit_IKT_Einzel,K37*(1+Energiepreissteigerung),0)","v":0},{"$f":"IF($B38<=Betrachtungszeit_IKT_Einzel,L37*(1+Energiepreissteigerung),0)","v":0},{"$f":"IF($B38<=Betrachtungszeit_IKT_Einzel,M37*(1+Energiepreissteigerung),0)","v":0},{"$f":"IF($B38<=Betrachtungszeit_IKT_Einzel,N37*(1+Energiepreissteigerung),0)","v":0},{"$f":"IF($B38<=Betrachtungszeit_IKT_Einzel,O37*(1+Energiepreissteigerung),0)","v":0},{"$f":"IF($B38<=Betrachtungszeit_IKT_Einzel,P37*(1+Energiepreissteigerung),0)","v":0},{"$f":"IF($B38<=Betrachtungszeit_IKT_Einzel,Q37*(1+Energiepreissteigerung),0)","v":0},{"$f":"IF($B38<=Betrachtungszeit_IKT_Einzel,R37*(1+Energiepreissteigerung),0)","v":0},{"$f":"IF($B38<=Betrachtungszeit_IKT_Einzel,S37*(1+Energiepreissteigerung),0)","v":0},{"$f":"IF($B38<=Betrachtungszeit_IKT_Einzel,T37*(1+Energiepreissteigerung),0)","v":0},{"$f":"IF($B38<=Betrachtungszeit_IKT_Einzel,U37*(1+Energiepreissteigerung),0)","v":0},{"$f":"IF($B38<=Betrachtungszeit_IKT_Einzel,V37*(1+Energiepreissteigerung),0)","v":0},null,2,0,0,0,0,0,0,0,0,0,0,0,0,0,0,0,0,0,0,0,0]
[null,3,0,0,0,0,0,0,0,0,0,0,0,0,0,0,0,0,0,0,0,0,null,3,0,0,0,0,0,0,0,0,0,0,0,0,0,0,0,0,0,0,0,0]
[null,4,0,0,0,0,0,0,0,0,0,0,0,0,0,0,0,0,0,0,0,0,null,4,0,0,0,0,0,0,0,0,0,0,0,0,0,0,0,0,0,0,0,0]
[null,5,0,0,0,0,0,0,0,0,0,0,0,0,0,0,0,0,0,0,0,0,null,5,0,0,0,0,0,0,0,0,0,0,0,0,0,0,0,0,0,0,0,0]
[null,6,0,0,0,0,0,0,0,0,0,0,0,0,0,0,0,0,0,0,0,0,null,6,0,0,0,0,0,0,0,0,0,0,0,0,0,0,0,0,0,0,0,0]
[null,7,0,0,0,0,0,0,0,0,0,0,0,0,0,0,0,0,0,0,0,0,null,7,0,0,0,0,0,0,0,0,0,0,0,0,0,0,0,0,0,0,0,0]
[null,8,0,0,0,0,0,0,0,0,0,0,0,0,0,0,0,0,0,0,0,0,null,8,0,0,0,0,0,0,0,0,0,0,0,0,0,0,0,0,0,0,0,0]
[null,9,0,0,0,0,0,0,0,0,0,0,0,0,0,0,0,0,0,0,0,0,null,9,0,0,0,0,0,0,0,0,0,0,0,0,0,0,0,0,0,0,0,0]
[null,10,0,0,0,0,0,0,0,0,0,0,0,0,0,0,0,0,0,0,0,0,null,10,0,0,0,0,0,0,0,0,0,0,0,0,0,0,0,0,0,0,0,0]
[null,null,null,null,null,null,null,null,null,null,null,null,null,null,null,null,null,null,null,null,null,null,null,"Total",{"$f":"SUM(Y36:Y46)","v":0},0,0,0,0,0,0,0,0,0,0,0,0,0,0,0,0,0,0,0]
[]
[null,"Betriebskosten",null,null,null,null,null,null,null,null,null,null,null,null,null,null,null,null,null,null,null,null,null,{"$f":"\"Barwert \"&B49","v":"Barwert Betriebskosten"}]
[]
[null,null,"V1","V2","V3","V4","V5","V6","V7","V8","V9","V10","V11","V12","V13","V14","V15","V16","V17","V18","V19","V20"]
[null,"Ersatzinstallation [CHF/a]",{"$f":"Input_IKT_Einzel!D50","v":0},{"$f":"Input_IKT_Einzel!E50","v":0},{"$f":"Input_IKT_Einzel!F50","v":0},{"$f":"Input_IKT_Einzel!G50","v":0},{"$f":"Input_IKT_Einzel!H50","v":0},{"$f":"Input_IKT_Einzel!I50","v":0},{"$f":"Input_IKT_Einzel!J50","v":0},{"$f":"Input_IKT_Einzel!K50","v":0},{"$f":"Input_IKT_Einzel!L50","v":0},{"$f":"Input_IKT_Einzel!M50","v":0},{"$f":"Input_IKT_Einzel!N50","v":0},{"$f":"Input_IKT_Einzel!O50","v":0},{"$f":"Input_IKT_Einzel!P50","v":0},{"$f":"Input_IKT_Einzel!Q50","v":0},{"$f":"Input_IKT_Einzel!R50","v":0},{"$f":"Input_IKT_Einzel!S50","v":0},{"$f":"Input_IKT_Einzel!T50","v":0},{"$f":"Input_IKT_Einzel!U50","v":0},{"$f":"Input_IKT_Einzel!V50","v":0},{"$f":"Input_IKT_Einzel!W50","v":0}]
[null,"Lagerkosten [CHF/a]",{"$f":"Input_IKT_Einzel!D51","v":0},{"$f":"Input_IKT_Einzel!E51","v":0},{"$f":"Input_IKT_Einzel!F51","v":0},{"$f":"Input_IKT_Einzel!G51","v":0},{"$f":"Input_IKT_Einzel!H51","v":0},{"$f":"Input_IKT_Einzel!I51","v":0},{"$f":"Input_IKT_Einzel!J51","v":0},{"$f":"Input_IKT_Einzel!K51","v":0},{"$f":"Input_IKT_Einzel!L51","v":0},{"$f":"Input_IKT_Einzel!M51","v":0},{"$f":"Input_IKT_Einzel!N51","v":0},{"$f":"Input_IKT_Einzel!O51","v":0},{"$f":"Input_IKT_Einzel!P51","v":0},{"$f":"Input_IKT_Einzel!Q51","v":0},{"$f":"Input_IKT_Einzel!R51","v":0},{"$f":"Input_IKT_Einzel!S51","v":0},{"$f":"Input_IKT_Einzel!T51","v":0},{"$f":"Input_IKT_Einzel!U51","v":0},{"$f":"Input_IKT_Einzel!V51","v":0},{"$f":"Input_IKT_Einzel!W51","v":0}]
[null,"Wartung intern und extern [CHF/a]",{"$f":"Input_IKT_Einzel!D52+Input_IKT_Einzel!D53","v":0},{"$f":"Input_IKT_Einzel!E52+Input_IKT_Einzel!E53","v":0},{"$f":"Input_IKT_Einzel!F52+Input_IKT_Einzel!F53","v":0},{"$f":"Input_IKT_Einzel!G52+Input_IKT_Einzel!G53","v":0},{"$f":"Input_IKT_Einzel!H52+Input_IKT_Einzel!H53","v":0},{"$f":"Input_IKT_Einzel!I52+Input_IKT_Einzel!I53","v":0},{"$f":"Input_IKT_Einzel!J52+Input_IKT_Einzel!J53","v":0},{"$f":"Input_IKT_Einzel!K52+Input_IKT_Einzel!K53","v":0},{"$f":"Input_IKT_Einzel!L52+Input_IKT_Einzel!L53","v":0},{"$f":"Input_IKT_Einzel!M52+Input_IKT_Einzel!M53","v":0},{"$f":"Input_IKT_Einzel!N52+Input_IKT_Einzel!N53","v":0},{"$f":"Input_IKT_Einzel!O52+Input_IKT_Einzel!O53","v":0},{"$f":"Input_IKT_Einzel!P52+Input_IKT_Einzel!P53","v":0},{"$f":"Input_IKT_Einzel!Q52+Input_IKT_Einzel!Q53","v":0},{"$f":"Input_IKT_Einzel!R52+Input_IKT_Einzel!R53","v":0},{"$f":"Input_IKT_Einzel!S52+Input_IKT_Einzel!S53","v":0},{"$f":"Input_IKT_Einzel!T52+Input_IKT_Einzel!T53","v":0},{"$f":"Input_IKT_Einzel!U52+Input_IKT_Einzel!U53","v":0},{"$f":"Input_IKT_Einzel!V52+Input_IKT_Einzel!V53","v":0},{"$f":"Input_IKT_Einzel!W52+Input_IKT_Einzel!W53","v":0}]
[null,"Versicherungen, Steuern und Gebühren [CHF/a]",{"$f":"Input_IKT_Einzel!D54","v":0},{"$f":"Input_IKT_Einzel!E54","v":0},{"$f":"Input_IKT_Einzel!F54","v":0},{"$f":"Input_IKT_Einzel!G54","v":0},{"$f":"Input_IKT_Einzel!H54","v":0},{"$f":"Input_IKT_Einzel!I54","v":0},{"$f":"Input_IKT_Einzel!J54","v":0},{"$f":"Input_IKT_Einzel!K54","v":0},{"$f":"Input_IKT_Einzel!L54","v":0},{"$f":"Input_IKT_Einzel!M54","v":0},{"$f":"Input_IKT_Einzel!N54","v":0},{"$f":"Input_IKT_Einzel!O54","v":0},{"$f":"Input_IKT_Einzel!P54","v":0},{"$f":"Input_IKT_Einzel!Q54","v":0},{"$f":"Input_IKT_Einzel!R54","v":0},{"$f":"Input_IKT_Einzel!S54","v":0},{"$f":"Input_IKT_Einzel!T54","v":0},{"$f":"Input_IKT_Einzel!U54","v":0},{"$f":"Input_IKT_Einzel!V54","v":0},{"$f":"Input_IKT_Einzel!W54","v":0}]
[null,"Weitere Betriebskosten [CHF/a]",{"$f":"Input_IKT_Einzel!D55","v":0},{"$f":"Input_IKT_Einzel!E55","v":0},{"$f":"Input_IKT_Einzel!F55","v":0},{"$f":"Input_IKT_Einzel!G55","v":0},{"$f":"Input_IKT_Einzel!H55","v":0},{"$f":"Input_IKT_Einzel!I55","v":0},{"$f":"Input_IKT_Einzel!J55","v":0},{"$f":"Input_IKT_Einzel!K55","v":0},{"$f":"Input_IKT_Einzel!L55","v":0},{"$f":"Input_IKT_Einzel!M55","v":0},{"$f":"Input_IKT_Einzel!N55","v":0},{"$f":"Input_IKT_Einzel!O55","v":0},{"$f":"Input_IKT_Einzel!P55","v":0},{"$f":"Input_IKT_Einzel!Q55","v":0},{"$f":"Input_IKT_Einzel!R55","v":0},{"$f":"Input_IKT_Einzel!S55","v":0},{"$f":"Input_IKT_Einzel!T55","v":0},{"$f":"Input_IKT_Einzel!U55","v":0},{"$f":"Input_IKT_Einzel!V55","v":0},{"$f":"Input_IKT_Einzel!W55","v":0}]
[null,"Total [CHF/a]",{"$f":"SUM(C52:C56)","v":0},{"$f":"SUM(D52:D56)","v":0},{"$f":"SUM(E52:E56)","v":0},{"$f":"SUM(F52:F56)","v":0},{"$f":"SUM(G52:G56)","v":0},{"$f":"SUM(H52:H56)","v":0},0,0,0,0,0,0,0,0,0,0,0,0,0,0]
[null,"Betriebskosten [CHF] mit Berücksichtigung der Preissteigerung am Ende des Jahres…"]
[null,"Jahr","V1","V2","V3","V4","V5","V6","V7","V8","V9","V10","V11","V12","V13","V14","V15","V16","V17","V18","V19","V20",null,"Jahr","V1","V2","V3","V4","V5","V6","V7","V8","V9","V10","V11","V12","V13","V14","V15","V16","V17","V18","V19","V20"]
[null,0,0,0,0,0,0,0,0,0,0,0,0,0,0,0,0,0,0,0,0,0,null,0,{"$f":"C60*(1+Kalkulationszinssatz)^-$X13","v":0},{"$f":"D60*(1+Kalkulationszinssatz)^-$X13","v":0},{"$f":"E60*(1+Kalkulationszinssatz)^-$X13","v":0},{"$f":"F60*(1+Kalkulationszinssatz)^-$X13","v":0},{"$f":"G60*(1+Kalkulationszinssatz)^-$X13","v":0},{"$f":"H60*(1+Kalkulationszinssatz)^-$X13","v":0},{"$f":"I60*(1+Kalkulationszinssatz)^-$X13","v":0},{"$f":"J60*(1+Kalkulationszinssatz)^-$X13","v":0},{"$f":"K60*(1+Kalkulationszinssatz)^-$X13","v":0},{"$f":"L60*(1+Kalkulationszinssatz)^-$X13","v":0},{"$f":"M60*(1+Kalkulationszinssatz)^-$X13","v":0},{"$f":"N60*(1+Kalkulationszinssatz)^-$X13","v":0},{"$f":"O60*(1+Kalkulationszinssatz)^-$X13","v":0},{"$f":"P60*(1+Kalkulationszinssatz)^-$X13","v":0},{"$f":"Q60*(1+Kalkulationszinssatz)^-$X13","v":0},{"$f":"R60*(1+Kalkulationszinssatz)^-$X13","v":0},{"$f":"S60*(1+Kalkulationszinssatz)^-$X13","v":0},{"$f":"T60*(1+Kalkulationszinssatz)^-$X13","v":0},{"$f":"U60*(1+Kalkulationszinssatz)^-$X13","v":0},{"$f":"V60*(1+Kalkulationszinssatz)^-$X13","v":0}]
[null,1,{"$f":"IF($B61<=Betrachtungszeit_IKT_Einzel,C57*(1+Inflationsindex),0)","v":0},0,0,0,0,0,0,0,0,0,0,0,0,0,0,0,0,0,0,0,null,1,0,0,0,0,0,0,0,0,0,0,0,0,0,0,0,0,0,0,0,0]
[null,2,{"$f":"IF($B62<=Betrachtungszeit_IKT_Einzel,C61*(1+Inflationsindex),0)","v":0},{"$f":"IF($B62<=Betrachtungszeit_IKT_Einzel,D61*(1+Inflationsindex),0)","v":0},{"$f":"IF($B62<=Betrachtungszeit_IKT_Einzel,E61*(1+Inflationsindex),0)","v":0},{"$f":"IF($B62<=Betrachtungszeit_IKT_Einzel,F61*(1+Inflationsindex),0)","v":0},{"$f":"IF($B62<=Betrachtungszeit_IKT_Einzel,G61*(1+Inflationsindex),0)","v":0},{"$f":"IF($B62<=Betrachtungszeit_IKT_Einzel,H61*(1+Inflationsindex),0)","v":0},{"$f":"IF($B62<=Betrachtungszeit_IKT_Einzel,I61*(1+Inflationsindex),0)","v":0},{"$f":"IF($B62<=Betrachtungszeit_IKT_Einzel,J61*(1+Inflationsindex),0)","v":0},{"$f":"IF($B62<=Betrachtungszeit_IKT_Einzel,K61*(1+Inflationsindex),0)","v":0},{"$f":"IF($B62<=Betrachtungszeit_IKT_Einzel,L61*(1+Inflationsindex),0)","v":0},{"$f":"IF($B62<=Betrachtungszeit_IKT_Einzel,M61*(1+Inflationsindex),0)","v":0},{"$f":"IF($B62<=Betrachtungszeit_IKT_Einzel,N61*(1+Inflationsindex),0)","v":0},{"$f":"IF($B62<=Betrachtungszeit_IKT_Einzel,O61*(1+Inflationsindex),0)","v":0},{"$f":"IF($B62<=Betrachtungszeit_IKT_Einzel,P61*(1+Inflationsindex),0)","v":0},{"$f":"IF($B62<=Betrachtungszeit_IKT_Einzel,Q61*(1+Inflationsindex),0)","v":0},{"$f":"IF($B62<=Betrachtungszeit_IKT_Einzel,R61*(1+Inflationsindex),0)","v":0},{"$f":"IF($B62<=Betrachtungszeit_IKT_Einzel,S61*(1+Inflationsindex),0)","v":0},{"$f":"IF($B62<=Betrachtungszeit_IKT_Einzel,T61*(1+Inflationsindex),0)","v":0},{"$f":"IF($B62<=Betrachtungszeit_IKT_Einzel,U61*(1+Inflationsindex),0)","v":0},{"$f":"IF($B62<=Betrachtungszeit_IKT_Einzel,V61*(1+Inflationsindex),0)","v":0},null,2,0,0,0,0,0,0,0,0,0,0,0,0,0,0,0,0,0,0,0,0]
[null,3,0,0,0,0,0,0,0,0,0,0,0,0,0,0,0,0,0,0,0,0,null,3,0,0,0,0,0,0,0,0,0,0,0,0,0,0,0,0,0,0,0,0]
[null,4,0,0,0,0,0,0,0,0,0,0,0,0,0,0,0,0,0,0,0,0,null,4,0,0,0,0,0,0,0,0,0,0,0,0,0,0,0,0,0,0,0,0]
[null,5,0,0,0,0,0,0,0,0,0,0,0,0,0,0,0,0,0,0,0,0,null,5,0,0,0,0,0,0,0,0,0,0,0,0,0,0,0,0,0,0,0,0]
[null,6,0,0,0,0,0,0,0,0,0,0,0,0,0,0,0,0,0,0,0,0,null,6,0,0,0,0,0,0,0,0,0,0,0,0,0,0,0,0,0,0,0,0]
[null,7,0,0,0,0,0,0,0,0,0,0,0,0,0,0,0,0,0,0,0,0,null,7,0,0,0,0,0,0,0,0,0,0,0,0,0,0,0,0,0,0,0,0]
[null,8,0,0,0,0,0,0,0,0,0,0,0,0,0,0,0,0,0,0,0,0,null,8,0,0,0,0,0,0,0,0,0,0,0,0,0,0,0,0,0,0,0,0]
[null,9,0,0,0,0,0,0,0,0,0,0,0,0,0,0,0,0,0,0,0,0,null,9,0,0,0,0,0,0,0,0,0,0,0,0,0,0,0,0,0,0,0,0]
[null,10,0,0,0,0,0,0,0,0,0,0,0,0,0,0,0,0,0,0,0,0,null,10,0,0,0,0,0,0,0,0,0,0,0,0,0,0,0,0,0,0,0,0]
[null,null,null,null,null,null,null,null,null,null,null,null,null,null,null,null,null,null,null,null,null,null,null,"Total",{"$f":"SUM(Y60:Y70)","v":0},0,0,0,0,0,0,0,0,0,0,0,0,0,0,0,0,0,0,0]
[]
[null,"Externe Kosten der Treibhausgas-Emissionen (THG-Emissionen)",null,null,null,null,null,null,null,null,null,null,null,null,null,null,null,null,null,null,null,null,null,{"$f":"\"Barwert \"&B73","v":"Barwert Externe Kosten der Treibhausgas-Emissionen (THG-Emissionen)"}]
[]
[null,null,"V1","V2","V3","V4","V5","V6","V7","V8","V9","V10","V11","V12","V13","V14","V15","V16","V17","V18","V19","V20"]
[null,"Umweltbelastungspunkte [UBP'13/a]",{"$f":"C32*UBP_Strom","v":0},0,0,0,0,0,0,0,0,0,0,0,0,0,0,0,0,0,0,0]
[null,"THG-Emissionen (Scope 2) [tCO2eq/a]",{"$f":"C32*EF_Strom/1000000","v":0},0,0,0,0,0,0,0,0,0,0,0,0,0,0,0,0,0,0,0]
["K",{"$f":"VLOOKUP(Input_Generell!B12,Input_Generell!B36:F39,5,0)","v":"Kosten für THG: nicht gewählt"},{"$f":"C77*Kosten_THG","v":0},0,0,0,0,0,0,0,0,0,0,0,0,0,0,0,0,0,0,0]
[]
[null,"THG-Emissionen (Scope 3) [tCO2eq]",{"$f":"Input_IKT_Einzel!D38/1000","v":0},{"$f":"Input_IKT_Einzel!E38/1000","v":0},{"$f":"Input_IKT_Einzel!F38/1000","v":0},{"$f":"Input_IKT_Einzel!G38/1000","v":0},{"$f":"Input_IKT_Einzel!H38/1000","v":0},{"$f":"Input_IKT_Einzel!I38/1000","v":0},{"$f":"Input_IKT_Einzel!J38/1000","v":0},{"$f":"Input_IKT_Einzel!K38/1000","v":0},{"$f":"Input_IKT_Einzel!L38/1000","v":0},{"$f":"Input_IKT_Einzel!M38/1000","v":0},{"$f":"Input_IKT_Einzel!N38/1000","v":0},{"$f":"Input_IKT_Einzel!O38/1000","v":0},{"$f":"Input_IKT_Einzel!P38/1000","v":0},{"$f":"Input_IKT_Einzel!Q38/1000","v":0},{"$f":"Input_IKT_Einzel!R38/1000","v":0},{"$f":"Input_IKT_Einzel!S38/1000","v":0},{"$f":"Input_IKT_Einzel!T38/1000","v":0},{"$f":"Input_IKT_Einzel!U38/1000","v":0},{"$f":"Input_IKT_Einzel!V38/1000","v":0},{"$f":"Input_IKT_Einzel!W38/1000","v":0}]
["K",{"$f":"VLOOKUP(Input_Generell!B12,Input_Generell!B36:F39,5,0)","v":"Kosten für THG: nicht gewählt"},{"$f":"C80*Kosten_THG","v":0},0,0,0,0,0,0,0,0,0,0,0,0,0,0,0,0,0,0,0]
[null,"Externe Kosten [CHF] mit Berücksichtigung der Preissteigerung am Ende des Jahres…"]
[null,"Jahr","V1","V2","V3","V4","V5","V6","V7","V8","V9","V10","V11","V12","V13","V14","V15","V16","V17","V18","V19","V20",null,"Jahr","V1","V2","V3","V4","V5","V6","V7","V8","V9","V10","V11","V12","V13","V14","V15","V16","V17","V18","V19","V20"]
[null,0,{"$f":"C81","v":0},{"$f":"D81","v":0},0,0,0,0,0,0,0,0,0,0,0,0,0,0,0,0,0,0,null,0,{"$f":"C84*(1+Kalkulationszinssatz)^-$X13","v":0},{"$f":"D84*(1+Kalkulationszinssatz)^-$X13","v":0},{"$f":"E84*(1+Kalkulationszinssatz)^-$X13","v":0},{"$f":"F84*(1+Kalkulationszinssatz)^-$X13","v":0},{"$f":"G84*(1+Kalkulationszinssatz)^-$X13","v":0},{"$f":"H84*(1+Kalkulationszinssatz)^-$X13","v":0},{"$f":"I84*(1+Kalkulationszinssatz)^-$X13","v":0},{"$f":"J84*(1+Kalkulationszinssatz)^-$X13","v":0},{"$f":"K84*(1+Kalkulationszinssatz)^-$X13","v":0},{"$f":"L84*(1+Kalkulationszinssatz)^-$X13","v":0},{"$f":"M84*(1+Kalkulationszinssatz)^-$X13","v":0},{"$f":"N84*(1+Kalkulationszinssatz)^-$X13","v":0},{"$f":"O84*(1+Kalkulationszinssatz)^-$X13","v":0},{"$f":"P84*(1+Kalkulationszinssatz)^-$X13","v":0},{"$f":"Q84*(1+Kalkulationszinssatz)^-$X13","v":0},{"$f":"R84*(1+Kalkulationszinssatz)^-$X13","v":0},{"$f":"S84*(1+Kalkulationszinssatz)^-$X13","v":0},{"$f":"T84*(1+Kalkulationszinssatz)^-$X13","v":0},{"$f":"U84*(1+Kalkulationszinssatz)^-$X13","v":0},{"$f":"V84*(1+Kalkulationszinssatz)^-$X13","v":0}]
[null,1,{"$f":"IF($B85<=Betrachtungszeit_IKT_Einzel,C78*(1+Inflationsindex),0)","v":0},0,0,0,0,0,0,0,0,0,0,0,0,0,0,0,0,0,0,0,null,1,0,0,0,0,0,0,0,0,0,0,0,0,0,0,0,0,0,0,0,0]
[null,2,{"$f":"IF($B86<=Betrachtungszeit_IKT_Einzel,C85*(1+Inflationsindex),0)","v":0},{"$f":"IF($B86<=Betrachtungszeit_IKT_Einzel,D85*(1+Inflationsindex),0)","v":0},{"$f":"IF($B86<=Betrachtungszeit_IKT_Einzel,E85*(1+Inflationsindex),0)","v":0},{"$f":"IF($B86<=Betrachtungszeit_IKT_Einzel,F85*(1+Inflationsindex),0)","v":0},{"$f":"IF($B86<=Betrachtungszeit_IKT_Einzel,G85*(1+Inflationsindex),0)","v":0},{"$f":"IF($B86<=Betrachtungszeit_IKT_Einzel,H85*(1+Inflationsindex),0)","v":0},{"$f":"IF($B86<=Betrachtungszeit_IKT_Einzel,I85*(1+Inflationsindex),0)","v":0},{"$f":"IF($B86<=Betrachtungszeit_IKT_Einzel,J85*(1+Inflationsindex),0)","v":0},{"$f":"IF($B86<=Betrachtungszeit_IKT_Einzel,K85*(1+Inflationsindex),0)","v":0},{"$f":"IF($B86<=Betrachtungszeit_IKT_Einzel,L85*(1+Inflationsindex),0)","v":0},{"$f":"IF($B86<=Betrachtungszeit_IKT_Einzel,M85*(1+Inflationsindex),0)","v":0},{"$f":"IF($B86<=Betrachtungszeit_IKT_Einzel,N85*(1+Inflationsindex),0)","v":0},{"$f":"IF($B86<=Betrachtungszeit_IKT_Einzel,O85*(1+Inflationsindex),0)","v":0},{"$f":"IF($B86<=Betrachtungszeit_IKT_Einzel,P85*(1+Inflationsindex),0)","v":0},{"$f":"IF($B86<=Betrachtungszeit_IKT_Einzel,Q85*(1+Inflationsindex),0)","v":0},{"$f":"IF($B86<=Betrachtungszeit_IKT_Einzel,R85*(1+Inflationsindex),0)","v":0},{"$f":"IF($B86<=Betrachtungszeit_IKT_Einzel,S85*(1+Inflationsindex),0)","v":0},{"$f":"IF($B86<=Betrachtungszeit_IKT_Einzel,T85*(1+Inflationsindex),0)","v":0},{"$f":"IF($B86<=Betrachtungszeit_IKT_Einzel,U85*(1+Inflationsindex),0)","v":0},{"$f":"IF($B86<=Betrachtungszeit_IKT_Einzel,V85*(1+Inflationsindex),0)","v":0},null,2,0,0,0,0,0,0,0,0,0,0,0,0,0,0,0,0,0,0,0,0]
[null,3,0,0,0,0,0,0,0,0,0,0,0,0,0,0,0,0,0,0,0,0,null,3,0,0,0,0,0,0,0,0,0,0,0,0,0,0,0,0,0,0,0,0]
[null,4,0,0,0,0,0,0,0,0,0,0,0,0,0,0,0,0,0,0,0,0,null,4,0,0,0,0,0,0,0,0,0,0,0,0,0,0,0,0,0,0,0,0]
[null,5,0,0,0,0,0,0,0,0,0,0,0,0,0,0,0,0,0,0,0,0,null,5,0,0,0,0,0,0,0,0,0,0,0,0,0,0,0,0,0,0,0,0]
[null,6,0,0,0,0,0,0,0,0,0,0,0,0,0,0,0,0,0,0,0,0,null,6,0,0,0,0,0,0,0,0,0,0,0,0,0,0,0,0,0,0,0,0]
[null,7,0,0,0,0,0,0,0,0,0,0,0,0,0,0,0,0,0,0,0,0,null,7,0,0,0,0,0,0,0,0,0,0,0,0,0,0,0,0,0,0,0,0]
[null,8,0,0,0,0,0,0,0,0,0,0,0,0,0,0,0,0,0,0,0,0,null,8,0,0,0,0,0,0,0,0,0,0,0,0,0,0,0,0,0,0,0,0]
[null,9,0,0,0,0,0,0,0,0,0,0,0,0,0,0,0,0,0,0,0,0,null,9,0,0,0,0,0,0,0,0,0,0,0,0,0,0,0,0,0,0,0,0]
[null,10,0,0,0,0,0,0,0,0,0,0,0,0,0,0,0,0,0,0,0,0,null,10,0,0,0,0,0,0,0,0,0,0,0,0,0,0,0,0,0,0,0,0]
[null,null,null,null,null,null,null,null,null,null,null,null,null,null,null,null,null,null,null,null,null,null,null,"Total",{"$f":"SUM(Y84:Y94)","v":0},0,0,0,0,0,0,0,0,0,0,0,0,0,0,0,0,0,0,0]
[]
[null,"Entsorgung am Ende der Betrachtungszeit der Lebenszyklusrechnung",null,null,null,null,null,null,null,null,null,null,null,null,null,null,null,null,null,null,null,null,null,{"$f":"\"Barwert \"&B97","v":"Barwert Entsorgung am Ende der Betrachtungszeit der Lebenszyklusrechnung"}]
[]
[null,null,"V1","V2","V3","V4","V5","V6","V7","V8","V9","V10","V11","V12","V13","V14","V15","V16","V17","V18","V19","V20"]
[null,"Entsorgungskosten [CHF]",{"$f":"Input_IKT_Einzel!D59","v":0},{"$f":"Input_IKT_Einzel!E59","v":0},{"$f":"Input_IKT_Einzel!F59","v":0},{"$f":"Input_IKT_Einzel!G59","v":0},{"$f":"Input_IKT_Einzel!H59","v":0},{"$f":"Input_IKT_Einzel!I59","v":0},{"$f":"Input_IKT_Einzel!J59","v":0},{"$f":"Input_IKT_Einzel!K59","v":0},{"$f":"Input_IKT_Einzel!L59","v":0},{"$f":"Input_IKT_Einzel!M59","v":0},{"$f":"Input_IKT_Einzel!N59","v":0},{"$f":"Input_IKT_Einzel!O59","v":0},{"$f":"Input_IKT_Einzel!P59","v":0},{"$f":"Input_IKT_Einzel!Q59","v":0},{"$f":"Input_IKT_Einzel!R59","v":0},{"$f":"Input_IKT_Einzel!S59","v":0},{"$f":"Input_IKT_Einzel!T59","v":0},{"$f":"Input_IKT_Einzel!U59","v":0},{"$f":"Input_IKT_Einzel!V59","v":0},{"$f":"Input_IKT_Einzel!W59","v":0}]
[null,"Entsorgungskosten [CHF] mit Berücksichtigung der Preissteigerung am Ende des Jahres…"]
[null,"Jahr","V1","V2","V3","V4","V5","V6","V7","V8","V9","V10","V11","V12","V13","V14","V15","V16","V17","V18","V19","V20",null,"Jahr","V1","V2","V3","V4","V5","V6","V7","V8","V9","V10","V11","V12","V13","V14","V15","V16","V17","V18","V19","V20"]
[null,0,{"$f":"IF($B103=Betrachtungszeit_IKT_Einzel,C$100*(1+Inflationsindex)^$B103,0)","v":0},0,0,0,0,0,0,0,0,0,{"$f":"IF($B103=Betrachtungszeit_IKT_Einzel,M$100*(1+Inflationsindex)^$B103,0)","v":0},0,0,0,0,0,0,0,0,0,null,0,{"$f":"C103*(1+Kalkulationszinssatz)^-$X13","v":0},{"$f":"D103*(1+Kalkulationszinssatz)^-$X13","v":0},{"$f":"E103*(1+Kalkulationszinssatz)^-$X13","v":0},{"$f":"F103*(1+Kalkulationszinssatz)^-$X13","v":0},{"$f":"G103*(1+Kalkulationszinssatz)^-$X13","v":0},{"$f":"H103*(1+Kalkulationszinssatz)^-$X13","v":0},{"$f":"I103*(1+Kalkulationszinssatz)^-$X13","v":0},{"$f":"J103*(1+Kalkulationszinssatz)^-$X13","v":0},{"$f":"K103*(1+Kalkulationszinssatz)^-$X13","v":0},{"$f":"L103*(1+Kalkulationszinssatz)^-$X13","v":0},{"$f":"M103*(1+Kalkulationszinssatz)^-$X13","v":0},{"$f":"N103*(1+Kalkulationszinssatz)^-$X13","v":0},{"$f":"O103*(1+Kalkulationszinssatz)^-$X13","v":0},{"$f":"P103*(1+Kalkulationszinssatz)^-$X13","v":0},{"$f":"Q103*(1+Kalkulationszinssatz)^-$X13","v":0},{"$f":"R103*(1+Kalkulationszinssatz)^-$X13","v":0},{"$f":"S103*(1+Kalkulationszinssatz)^-$X13","v":0},{"$f":"T103*(1+Kalkulationszinssatz)^-$X13","v":0},{"$f":"U103*(1+Kalkulationszinssatz)^-$X13","v":0},{"$f":"V103*(1+Kalkulationszinssatz)^-$X13","v":0}]
[null,1,0,0,0,0,0,0,0,0,0,0,0,0,0,0,0,0,0,0,0,0,null,1,0,0,0,0,0,0,0,0,0,0,0,0,0,0,0,0,0,0,0,0]
[null,2,0,0,0,0,0,0,0,0,0,0,0,0,0,0,0,0,0,0,0,0,null,2,0,0,0,0,0,0,0,0,0,0,0,0,0,0,0,0,0,0,0,0]
[null,3,0,0,0,0,0,0,0,0,0,0,0,0,0,0,0,0,0,0,0,0,null,3,0,0,0,0,0,0,0,0,0,0,0,0,0,0,0,0,0,0,0,0]
[null,4,0,0,0,0,0,0,0,0,0,0,0,0,0,0,0,0,0,0,0,0,null,4,0,0,0,0,0,0,0,0,0,0,0,0,0,0,0,0,0,0,0,0]
[null,5,0,0,0,0,0,0,0,0,0,0,0,0,0,0,0,0,0,0,0,0,null,5,0,0,0,0,0,0,0,0,0,0,0,0,0,0,0,0,0,0,0,0]
[null,6,0,0,0,0,0,0,0,0,0,0,0,0,0,0,0,0,0,0,0,0,null,6,0,0,0,0,0,0,0,0,0,0,0,0,0,0,0,0,0,0,0,0]
[null,7,0,0,0,0,0,0,0,0,0,0,0,0,0,0,0,0,0,0,0,0,null,7,0,0,0,0,0,0,0,0,0,0,0,0,0,0,0,0,0,0,0,0]
[null,8,0,0,0,0,0,0,0,0,0,0,0,0,0,0,0,0,0,0,0,0,null,8,0,0,0,0,0,0,0,0,0,0,0,0,0,0,0,0,0,0,0,0]
[null,9,0,0,0,0,0,0,0,0,0,0,0,0,0,0,0,0,0,0,0,0,null,9,0,0,0,0,0,0,0,0,0,0,0,0,0,0,0,0,0,0,0,0]
[null,10,0,0,0,0,0,0,0,0,0,0,0,0,0,0,0,0,0,0,0,0,null,10,0,0,0,0,0,0,0,0,0,0,0,0,0,0,0,0,0,0,0,0]
[null,null,null,null,null,null,null,null,null,null,null,null,null,null,null,null,null,null,null,null,null,null,null,"Total",{"$f":"SUM(Y103:Y113)","v":0},0,0,0,0,0,0,0,0,0,0,0,0,0,0,0,0,0,0,0]
[]
[null,null,null,null,null,null,null,null,null,null,null,null,null,null,null,null,null,null,null,null,null,null,null,"Aufsummierte Kosten (Barwert) über Betrachtungszeit und alle Stück"]
[]
[null,null,null,null,null,null,null,null,null,null,null,null,null,null,null,null,null,null,null,null,null,null,null,"Jahr",{"$f":"Resultate_IKT_Einzel!D5","v":"V1"},{"$f":"Resultate_IKT_Einzel!E5","v":"V2"},{"$f":"Resultate_IKT_Einzel!F5","v":"V3"},{"$f":"Resultate_IKT_Einzel!G5","v":"V4"},{"$f":"Resultate_IKT_Einzel!H5","v":"V5"},{"$f":"Resultate_IKT_Einzel!I5","v":"V6"},{"$f":"Resultate_IKT_Einzel!J5","v":"V7"},{"$f":"Resultate_IKT_Einzel!K5","v":"V8"},{"$f":"Resultate_IKT_Einzel!L5","v":"V9"},{"$f":"Resultate_IKT_Einzel!M5","v":"V10"},{"$f":"Resultate_IKT_Einzel!N5","v":"V11"},{"$f":"Resultate_IKT_Einzel!O5","v":"V12"},{"$f":"Resultate_IKT_Einzel!P5","v":"V13"},{"$f":"Resultate_IKT_Einzel!Q5","v":"V14"},{"$f":"Resultate_IKT_Einzel!R5","v":"V15"},{"$f":"Resultate_IKT_Einzel!S5","v":"V16"},{"$f":"Resultate_IKT_Einzel!T5","v":"V17"},{"$f":"Resultate_IKT_Einzel!U5","v":"V18"},{"$f":"Resultate_IKT_Einzel!V5","v":"V19"},{"$f":"Resultate_IKT_Einzel!W5","v":"V20"}]
[null,null,null,null,null,null,null,null,null,null,null,null,null,null,null,null,null,null,null,null,null,null,null,0,{"$f":"SUM(Y13,Y36,Y60,Y84,Y103)*Anzahl_IKT","v":0},0,0,0,0,0,0,0,0,0,0,0,0,0,0,0,0,0,0,0]
[null,null,null,null,null,null,null,null,null,null,null,null,null,null,null,null,null,null,null,null,null,null,null,1,{"$f":"SUM(Y14,Y37,Y61,Y85,Y104)*Anzahl_IKT+Y119","v":0},{"$f":"SUM(Z14,Z37,Z61,Z85,Z104)*Anzahl_IKT+Z119","v":0},{"$f":"SUM(AA14,AA37,AA61,AA85,AA104)*Anzahl_IKT+AA119","v":0},{"$f":"SUM(AB14,AB37,AB61,AB85,AB104)*Anzahl_IKT+AB119","v":0},{"$f":"SUM(AC14,AC37,AC61,AC85,AC104)*Anzahl_IKT+AC119","v":0},{"$f":"SUM(AD14,AD37,AD61,AD85,AD104)*Anzahl_IKT+AD119","v":0},{"$f":"SUM(AE14,AE37,AE61,AE85,AE104)*Anzahl_IKT+AE119","v":0},{"$f":"SUM(AF14,AF37,AF61,AF85,AF104)*Anzahl_IKT+AF119","v":0},{"$f":"SUM(AG14,AG37,AG61,AG85,AG104)*Anzahl_IKT+AG119","v":0},{"$f":"SUM(AH14,AH37,AH61,AH85,AH104)*Anzahl_IKT+AH119","v":0},{"$f":"SUM(AI14,AI37,AI61,AI85,AI104)*Anzahl_IKT+AI119","v":0},{"$f":"SUM(AJ14,AJ37,AJ61,AJ85,AJ104)*Anzahl_IKT+AJ119","v":0},{"$f":"SUM(AK14,AK37,AK61,AK85,AK104)*Anzahl_IKT+AK119","v":0},{"$f":"SUM(AL14,AL37,AL61,AL85,AL104)*Anzahl_IKT+AL119","v":0},{"$f":"SUM(AM14,AM37,AM61,AM85,AM104)*Anzahl_IKT+AM119","v":0},{"$f":"SUM(AN14,AN37,AN61,AN85,AN104)*Anzahl_IKT+AN119","v":0},{"$f":"SUM(AO14,AO37,AO61,AO85,AO104)*Anzahl_IKT+AO119","v":0},{"$f":"SUM(AP14,AP37,AP61,AP85,AP104)*Anzahl_IKT+AP119","v":0},{"$f":"SUM(AQ14,AQ37,AQ61,AQ85,AQ104)*Anzahl_IKT+AQ119","v":0},{"$f":"SUM(AR14,AR37,AR61,AR85,AR104)*Anzahl_IKT+AR119","v":0}]
[null,null,null,null,null,null,null,null,null,null,null,null,null,null,null,null,null,null,null,null,null,null,null,2,0,0,0,0,0,0,0,0,0,0,0,0,0,0,0,0,0,0,0,0]
[null,null,null,null,null,null,null,null,null,null,null,null,null,null,null,null,null,null,null,null,null,null,null,3,0,0,0,0,0,0,0,0,0,0,0,0,0,0,0,0,0,0,0,0]
[null,null,null,null,null,null,null,null,null,null,null,null,null,null,null,null,null,null,null,null,null,null,null,4,0,0,0,0,0,0,0,0,0,0,0,0,0,0,0,0,0,0,0,0]
[null,null,null,null,null,null,null,null,null,null,null,null,null,null,null,null,null,null,null,null,null,null,null,5,0,0,0,0,0,0,0,0,0,0,0,0,0,0,0,0,0,0,0,0]
[null,null,null,null,null,null,null,null,null,null,null,null,null,null,null,null,null,null,null,null,null,null,null,6,0,0,0,0,0,0,0,0,0,0,0,0,0,0,0,0,0,0,0,0]
[null,null,null,null,null,null,null,null,null,null,null,null,null,null,null,null,null,null,null,null,null,null,null,7,0,0,0,0,0,0,0,0,0,0,0,0,0,0,0,0,0,0,0,0]
[null,null,null,null,null,null,null,null,null,null,null,null,null,null,null,null,null,null,null,null,null,null,null,8,0,0,0,0,0,0,0,0,0,0,0,0,0,0,0,0,0,0,0,0]
[null,null,null,null,null,null,null,null,null,null,null,null,null,null,null,null,null,null,null,null,null,null,null,9,0,0,0,0,0,0,0,0,0,0,0,0,0,0,0,0,0,0,0,0]
[null,null,null,null,null,null,null,null,null,null,null,null,null,null,null,null,null,null,null,null,null,null,null,10,0,0,0,0,0,0,0,0,0,0,0,0,0,0,0,0,0,0,0,0]
[]
[]
[null,null,null,null,null,null,null,null,null,null,null,null,null,null,null,null,null,null,null,null,null,null,null,"Darstellung Diagramm Blatt Resultate"]
[]
[null,null,null,null,null,null,null,null,null,null,null,null,null,null,null,null,null,null,null,null,null,null,null,"Jahr",{"$f":"Resultate_IKT_Einzel!I25","v":"BITTE WÄHLEN"},{"$f":"Resultate_IKT_Einzel!I26","v":"BITTE WÄHLEN"},{"$f":"Resultate_IKT_Einzel!I27","v":"BITTE WÄHLEN"},{"$f":"Resultate_IKT_Einzel!I28","v":"BITTE WÄHLEN"}]
[null,null,null,null,null,null,null,null,null,null,null,null,null,null,null,null,null,null,null,null,null,null,null,0,{"$f":"HLOOKUP(Resultate_IKT_Einzel!$I$25,Berechnung_IKT_Einzel!$Y$118:$AR$129,$X135+2,0)","v":{"$error":"#N/A"}},{"$f":"HLOOKUP(Resultate_IKT_Einzel!$I$26,Berechnung_IKT_Einzel!$Y$118:$AR$129,$X135+2,0)","v":{"$error":"#N/A"}},{"$f":"HLOOKUP(Resultate_IKT_Einzel!$I$27,Berechnung_IKT_Einzel!$Y$118:$AR$129,$X135+2,0)","v":{"$error":"#N/A"}},{"$f":"HLOOKUP(Resultate_IKT_Einzel!$I$28,Berechnung_IKT_Einzel!$Y$118:$AR$129,$X135+2,0)","v":{"$error":"#N/A"}}]
[null,null,null,null,null,null,null,null,null,null,null,null,null,null,null,null,null,null,null,null,null,null,null,1,{"$f":"HLOOKUP(Resultate_IKT_Einzel!$I$25,Berechnung_IKT_Einzel!$Y$118:$AR$129,$X136+2,0)","v":{"$error":"#N/A"}},{"$f":"HLOOKUP(Resultate_IKT_Einzel!$I$26,Berechnung_IKT_Einzel!$Y$118:$AR$129,$X136+2,0)","v":{"$error":"#N/A"}},{"$f":"HLOOKUP(Resultate_IKT_Einzel!$I$27,Berechnung_IKT_Einzel!$Y$118:$AR$129,$X136+2,0)","v":{"$error":"#N/A"}},{"$f":"HLOOKUP(Resultate_IKT_Einzel!$I$28,Berechnung_IKT_Einzel!$Y$118:$AR$129,$X136+2,0)","v":{"$error":"#N/A"}}]
[null,null,null,null,null,null,null,null,null,null,null,null,null,null,null,null,null,null,null,null,null,null,null,2,{"$f":"HLOOKUP(Resultate_IKT_Einzel!$I$25,Berechnung_IKT_Einzel!$Y$118:$AR$129,$X137+2,0)","v":{"$error":"#N/A"}},{"$f":"HLOOKUP(Resultate_IKT_Einzel!$I$26,Berechnung_IKT_Einzel!$Y$118:$AR$129,$X137+2,0)","v":{"$error":"#N/A"}},{"$f":"HLOOKUP(Resultate_IKT_Einzel!$I$27,Berechnung_IKT_Einzel!$Y$118:$AR$129,$X137+2,0)","v":{"$error":"#N/A"}},{"$f":"HLOOKUP(Resultate_IKT_Einzel!$I$28,Berechnung_IKT_Einzel!$Y$118:$AR$129,$X137+2,0)","v":{"$error":"#N/A"}}]
[null,null,null,null,null,null,null,null,null,null,null,null,null,null,null,null,null,null,null,null,null,null,null,3,{"$f":"HLOOKUP(Resultate_IKT_Einzel!$I$25,Berechnung_IKT_Einzel!$Y$118:$AR$129,$X138+2,0)","v":{"$error":"#N/A"}},{"$f":"HLOOKUP(Resultate_IKT_Einzel!$I$26,Berechnung_IKT_Einzel!$Y$118:$AR$129,$X138+2,0)","v":{"$error":"#N/A"}},{"$f":"HLOOKUP(Resultate_IKT_Einzel!$I$27,Berechnung_IKT_Einzel!$Y$118:$AR$129,$X138+2,0)","v":{"$error":"#N/A"}},{"$f":"HLOOKUP(Resultate_IKT_Einzel!$I$28,Berechnung_IKT_Einzel!$Y$118:$AR$129,$X138+2,0)","v":{"$error":"#N/A"}}]
[null,null,null,null,null,null,null,null,null,null,null,null,null,null,null,null,null,null,null,null,null,null,null,4,{"$f":"HLOOKUP(Resultate_IKT_Einzel!$I$25,Berechnung_IKT_Einzel!$Y$118:$AR$129,$X139+2,0)","v":{"$error":"#N/A"}},{"$f":"HLOOKUP(Resultate_IKT_Einzel!$I$26,Berechnung_IKT_Einzel!$Y$118:$AR$129,$X139+2,0)","v":{"$error":"#N/A"}},{"$f":"HLOOKUP(Resultate_IKT_Einzel!$I$27,Berechnung_IKT_Einzel!$Y$118:$AR$129,$X139+2,0)","v":{"$error":"#N/A"}},{"$f":"HLOOKUP(Resultate_IKT_Einzel!$I$28,Berechnung_IKT_Einzel!$Y$118:$AR$129,$X139+2,0)","v":{"$error":"#N/A"}}]
[null,null,null,null,null,null,null,null,null,null,null,null,null,null,null,null,null,null,null,null,null,null,null,5,{"$f":"HLOOKUP(Resultate_IKT_Einzel!$I$25,Berechnung_IKT_Einzel!$Y$118:$AR$129,$X140+2,0)","v":{"$error":"#N/A"}},{"$f":"HLOOKUP(Resultate_IKT_Einzel!$I$26,Berechnung_IKT_Einzel!$Y$118:$AR$129,$X140+2,0)","v":{"$error":"#N/A"}},{"$f":"HLOOKUP(Resultate_IKT_Einzel!$I$27,Berechnung_IKT_Einzel!$Y$118:$AR$129,$X140+2,0)","v":{"$error":"#N/A"}},{"$f":"HLOOKUP(Resultate_IKT_Einzel!$I$28,Berechnung_IKT_Einzel!$Y$118:$AR$129,$X140+2,0)","v":{"$error":"#N/A"}}]
[null,null,null,null,null,null,null,null,null,null,null,null,null,null,null,null,null,null,null,null,null,null,null,6,{"$f":"HLOOKUP(Resultate_IKT_Einzel!$I$25,Berechnung_IKT_Einzel!$Y$118:$AR$129,$X141+2,0)","v":{"$error":"#N/A"}},{"$f":"HLOOKUP(Resultate_IKT_Einzel!$I$26,Berechnung_IKT_Einzel!$Y$118:$AR$129,$X141+2,0)","v":{"$error":"#N/A"}},{"$f":"HLOOKUP(Resultate_IKT_Einzel!$I$27,Berechnung_IKT_Einzel!$Y$118:$AR$129,$X141+2,0)","v":{"$error":"#N/A"}},{"$f":"HLOOKUP(Resultate_IKT_Einzel!$I$28,Berechnung_IKT_Einzel!$Y$118:$AR$129,$X141+2,0)","v":{"$error":"#N/A"}}]
[null,null,null,null,null,null,null,null,null,null,null,null,null,null,null,null,null,null,null,null,null,null,null,7,{"$f":"HLOOKUP(Resultate_IKT_Einzel!$I$25,Berechnung_IKT_Einzel!$Y$118:$AR$129,$X142+2,0)","v":{"$error":"#N/A"}},{"$f":"HLOOKUP(Resultate_IKT_Einzel!$I$26,Berechnung_IKT_Einzel!$Y$118:$AR$129,$X142+2,0)","v":{"$error":"#N/A"}},{"$f":"HLOOKUP(Resultate_IKT_Einzel!$I$27,Berechnung_IKT_Einzel!$Y$118:$AR$129,$X142+2,0)","v":{"$error":"#N/A"}},{"$f":"HLOOKUP(Resultate_IKT_Einzel!$I$28,Berechnung_IKT_Einzel!$Y$118:$AR$129,$X142+2,0)","v":{"$error":"#N/A"}}]
[null,null,null,null,null,null,null,null,null,null,null,null,null,null,null,null,null,null,null,null,null,null,null,8,{"$f":"HLOOKUP(Resultate_IKT_Einzel!$I$25,Berechnung_IKT_Einzel!$Y$118:$AR$129,$X143+2,0)","v":{"$error":"#N/A"}},{"$f":"HLOOKUP(Resultate_IKT_Einzel!$I$26,Berechnung_IKT_Einzel!$Y$118:$AR$129,$X143+2,0)","v":{"$error":"#N/A"}},{"$f":"HLOOKUP(Resultate_IKT_Einzel!$I$27,Berechnung_IKT_Einzel!$Y$118:$AR$129,$X143+2,0)","v":{"$error":"#N/A"}},{"$f":"HLOOKUP(Resultate_IKT_Einzel!$I$28,Berechnung_IKT_Einzel!$Y$118:$AR$129,$X143+2,0)","v":{"$error":"#N/A"}}]
[null,null,null,null,null,null,null,null,null,null,null,null,null,null,null,null,null,null,null,null,null,null,null,9,{"$f":"HLOOKUP(Resultate_IKT_Einzel!$I$25,Berechnung_IKT_Einzel!$Y$118:$AR$129,$X144+2,0)","v":{"$error":"#N/A"}},{"$f":"HLOOKUP(Resultate_IKT_Einzel!$I$26,Berechnung_IKT_Einzel!$Y$118:$AR$129,$X144+2,0)","v":{"$error":"#N/A"}},{"$f":"HLOOKUP(Resultate_IKT_Einzel!$I$27,Berechnung_IKT_Einzel!$Y$118:$AR$129,$X144+2,0)","v":{"$error":"#N/A"}},{"$f":"HLOOKUP(Resultate_IKT_Einzel!$I$28,Berechnung_IKT_Einzel!$Y$118:$AR$129,$X144+2,0)","v":{"$error":"#N/A"}}]
[null,null,null,null,null,null,null,null,null,null,null,null,null,null,null,null,null,null,null,null,null,null,null,10,{"$f":"HLOOKUP(Resultate_IKT_Einzel!$I$25,Berechnung_IKT_Einzel!$Y$118:$AR$129,$X145+2,0)","v":{"$error":"#N/A"}},{"$f":"HLOOKUP(Resultate_IKT_Einzel!$I$26,Berechnung_IKT_Einzel!$Y$118:$AR$129,$X145+2,0)","v":{"$error":"#N/A"}},{"$f":"HLOOKUP(Resultate_IKT_Einzel!$I$27,Berechnung_IKT_Einzel!$Y$118:$AR$129,$X145+2,0)","v":{"$error":"#N/A"}},{"$f":"HLOOKUP(Resultate_IKT_Einzel!$I$28,Berechnung_IKT_Einzel!$Y$118:$AR$129,$X145+2,0)","v":{"$error":"#N/A"}}]

{"sheet":"Input_IKT_Gesamt","index":5,"n_rows":125,"n_cols":23,"rows_kept":125,"cut":false,"hidden":false,"merged":[[4,2,4,4],[6,2,6,4],[5,2,5,4]]}
[null,"DATENEINGABE  IKT-GESAMTEINRICHTUNG"]
[]
[null,"Allgemeine Angaben"]
[]
[null,"Projekt"]
[null,"Unternehmen"]
[null,"Zuständig"]
[null,"Datum"]
[]
["K","Betrachtungszeit der Lebenszyklusrechnung",null,"Jahre"]
["K","Ausgeschriebene IKT-Geräte"]
[null,"Bezeichnung","Stückzahl"]
[]
[]
[]
[]
[]
[]
[]
[]
[]
[]
[]
[]
[]
[]
[]
[]
[]
[]
[]
[]
[]
[]
[null,"Produkt"]
[null,"Variante",null,"V1","V2","V3","V4","V5","V6","V7","V8","V9","V10","V11","V12","V13","V14","V15","V16","V17","V18","V19","V20"]
["K","Variantenbezeichnung"]
[null,"Anbieter"]
["K","Angebotene Stückzahlen (inkl. Ersatz im Garantiezeitraum)"]
[null,{"$f":"IF(B13=\"\",\"Bezeichnung unter 'Allg. Angaben' eintragen\",B13)","v":"Bezeichnung unter 'Allg. Angaben' eintragen"},{"$f":"IF(B13=\"\",\"\",IF(MIN(D40:W40)<C13,\"Stückzahl mind. einer Variante < Stückzahl Ausschreibung\",\"\"))","v":""}]
[null,"Bezeichnung unter 'Allg. Angaben' eintragen",""]
[null,"Bezeichnung unter 'Allg. Angaben' eintragen",{"$f":"IF(B15=\"\",\"\",IF(MIN(D42:W42)<C15,\"Stückzahl mind. einer Variante < Stückzahl Ausschreibung\",\"\"))","v":""}]
[null,"Bezeichnung unter 'Allg. Angaben' eintragen",{"$f":"IF(B16=\"\",\"\",IF(MIN(D43:W43)<C16,\"Stückzahl mind. einer Variante < Stückzahl Ausschreibung\",\"\"))","v":""}]
[null,"Bezeichnung unter 'Allg. Angaben' eintragen",""]
[null,"Bezeichnung unter 'Allg. Angaben' eintragen",{"$f":"IF(B18=\"\",\"\",IF(MIN(D45:W45)<C18,\"Stückzahl mind. einer Variante < Stückzahl Ausschreibung\",\"\"))","v":""}]
[null,"Bezeichnung unter 'Allg. Angaben' eintragen",""]
[null,"Bezeichnung unter 'Allg. Angaben' eintragen",""]
[null,"Bezeichnung unter 'Allg. Angaben' eintragen",""]
[null,"Bezeichnung unter 'Allg. Angaben' eintragen",""]
[null,"Bezeichnung unter 'Allg. Angaben' eintragen",""]
[null,"Bezeichnung unter 'Allg. Angaben' eintragen",""]
[null,"Bezeichnung unter 'Allg. Angaben' eintragen",""]
[null,"Bezeichnung unter 'Allg. Angaben' eintragen",""]
[null,"Bezeichnung unter 'Allg. Angaben' eintragen",""]
[null,"Bezeichnung unter 'Allg. Angaben' eintragen",""]
[null,"Bezeichnung unter 'Allg. Angaben' eintragen",""]
[null,"Bezeichnung unter 'Allg. Angaben' eintragen",""]
[null,"Bezeichnung unter 'Allg. Angaben' eintragen",""]
[null,"Bezeichnung unter 'Allg. Angaben' eintragen",""]
[]
[null,"Beschaffungskosten"]
[]
[null,"Offertpreis Brutto","CHF"]
[null,"Rabatt","%"]
[null,"Einkaufspreis verhandelt","CHF",{"$f":"D63*(1-D64)","v":0},{"$f":"E63*(1-E64)","v":0},0,0,0,0,0,0,0,0,0,0,0,0,0,0,0,0,0,0]
[null,"Transportkosten","CHF"]
[null,"Einmalige Initialkosten","CHF"]
[]
[null,"Energieverbrauch und Treibhausgas-Emissionen (Angaben zur Berechnung der Energiekosten und externen Kosten)"]
[]
["K","Product Carbon Footprint (ohne Phase \"Use\")",null,"V1","V2","V3","V4","V5","V6","V7","V8","V9","V10","V11","V12","V13","V14","V15","V16","V17","V18","V19","V20"]
[null,{"$f":"IF(B13=\"\",\"Bezeichnung unter 'Allg. Angaben' eintragen\",B13)","v":"Bezeichnung unter 'Allg. Angaben' eintragen"},"kgCO2eq/Stück"]
[null,{"$f":"IF(B14=\"\",\"Bezeichnung unter 'Allg. Angaben' eintragen\",B14)","v":"Bezeichnung unter 'Allg. Angaben' eintragen"},"kgCO2eq/Stück"]
[null,"Bezeichnung unter 'Allg. Angaben' eintragen","kgCO2eq/Stück"]
[null,"Bezeichnung unter 'Allg. Angaben' eintragen","kgCO2eq/Stück"]
[null,"Bezeichnung unter 'Allg. Angaben' eintragen","kgCO2eq/Stück"]
[null,"Bezeichnung unter 'Allg. Angaben' eintragen","kgCO2eq/Stück"]
[null,"Bezeichnung unter 'Allg. Angaben' eintragen","kgCO2eq/Stück"]
[null,"Bezeichnung unter 'Allg. Angaben' eintragen","kgCO2eq/Stück"]
[null,"Bezeichnung unter 'Allg. Angaben' eintragen","kgCO2eq/Stück"]
[null,"Bezeichnung unter 'Allg. Angaben' eintragen","kgCO2eq/Stück"]
[null,"Bezeichnung unter 'Allg. Angaben' eintragen","kgCO2eq/Stück"]
[null,"Bezeichnung unter 'Allg. Angaben' eintragen","kgCO2eq/Stück"]
[null,"Bezeichnung unter 'Allg. Angaben' eintragen","kgCO2eq/Stück"]
[null,"Bezeichnung unter 'Allg. Angaben' eintragen","kgCO2eq/Stück"]
[null,"Bezeichnung unter 'Allg. Angaben' eintragen","kgCO2eq/Stück"]
[null,"Bezeichnung unter 'Allg. Angaben' eintragen","kgCO2eq/Stück"]
[null,"Bezeichnung unter 'Allg. Angaben' eintragen","kgCO2eq/Stück"]
[null,"Bezeichnung unter 'Allg. Angaben' eintragen","kgCO2eq/Stück"]
[null,"Bezeichnung unter 'Allg. Angaben' eintragen","kgCO2eq/Stück"]
[null,"Bezeichnung unter 'Allg. Angaben' eintragen","kgCO2eq/Stück"]
["K","Energieverbrauch gemäss Energy Star (ETEC-Wert)"]
[null,{"$f":"IF(B13=\"\",\"Bezeichnung unter 'Allg. Angaben' eintragen\",B13)","v":"Bezeichnung unter 'Allg. Angaben' eintragen"},"kWh/Stück/a"]
[null,{"$f":"IF(B14=\"\",\"Bezeichnung unter 'Allg. Angaben' eintragen\",B14)","v":"Bezeichnung unter 'Allg. Angaben' eintragen"},"kWh/Stück/a"]
[null,"Bezeichnung unter 'Allg. Angaben' eintragen","kWh/Stück/a"]
[null,"Bezeichnung unter 'Allg. Angaben' eintragen","kWh/Stück/a"]
[null,"Bezeichnung unter 'Allg. Angaben' eintragen","kWh/Stück/a"]
[null,"Bezeichnung unter 'Allg. Angaben' eintragen","kWh/Stück/a"]
[null,"Bezeichnung unter 'Allg. Angaben' eintragen","kWh/Stück/a"]
[null,"Bezeichnung unter 'Allg. Angaben' eintragen","kWh/Stück/a"]
[null,"Bezeichnung unter 'Allg. Angaben' eintragen","kWh/Stück/a"]
[null,"Bezeichnung unter 'Allg. Angaben' eintragen","kWh/Stück/a"]
[null,"Bezeichnung unter 'Allg. Angaben' eintragen","kWh/Stück/a"]
[null,"Bezeichnung unter 'Allg. Angaben' eintragen","kWh/Stück/a"]
[null,"Bezeichnung unter 'Allg. Angaben' eintragen","kWh/Stück/a"]
[null,"Bezeichnung unter 'Allg. Angaben' eintragen","kWh/Stück/a"]
[null,"Bezeichnung unter 'Allg. Angaben' eintragen","kWh/Stück/a"]
[null,"Bezeichnung unter 'Allg. Angaben' eintragen","kWh/Stück/a"]
[null,"Bezeichnung unter 'Allg. Angaben' eintragen","kWh/Stück/a"]
[null,"Bezeichnung unter 'Allg. Angaben' eintragen","kWh/Stück/a"]
[null,"Bezeichnung unter 'Allg. Angaben' eintragen","kWh/Stück/a"]
[null,"Bezeichnung unter 'Allg. Angaben' eintragen","kWh/Stück/a"]
[]
[null,"Betriebskosten"]
[null,null,null,"V1","V2","V3","V4","V5","V6","V7","V8","V9","V10","V11","V12","V13","V14","V15","V16","V17","V18","V19","V20"]
[null,"Lagerkosten","CHF/a"]
[null,"Servicekosten","CHF/a"]
[null,"Interne Betriebskosten","CHF/a"]
[null,"Versicherungen, Steuern und Gebühren","CHF/a"]
[null,"Weitere Betriebskosten","CHF/a"]
[]
[null,"Entsorgungskosten"]
[]
["K","Entsorgungskosten","CHF"]
["K","Restwert am Ende der Lebenszyklusrechnung","CHF"]

{"sheet":"Resultate_IKT_Gesamt","index":6,"n_rows":77,"n_cols":23,"rows_kept":77,"cut":false,"hidden":false,"merged":[]}
[null,"RESULTATE  IKT-GESAMTEINRICHTUNG"]
[]
[null,"Lebenszykluskosten"]
[null,"Kosten der verschiedenen Varianten über den gesamten Lebenszyklus gesehen (in Form des Nettobarwertes)."]
[null,null,null,{"$f":"Input_IKT_Gesamt!D$36&IF(ISBLANK(Input_IKT_Gesamt!D$37),\"\",\" (\"&LEFT(Input_IKT_Gesamt!D$37,MIN(8,LEN(Input_IKT_Gesamt!D$37)))&\")\")","v":"V1"},{"$f":"Input_IKT_Gesamt!E$36&IF(ISBLANK(Input_IKT_Gesamt!E$37),\"\",\" (\"&LEFT(Input_IKT_Gesamt!E$37,MIN(8,LEN(Input_IKT_Gesamt!E$37)))&\")\")","v":"V2"},{"$f":"Input_IKT_Gesamt!F$36&IF(ISBLANK(Input_IKT_Gesamt!F$37),\"\",\" (\"&LEFT(Input_IKT_Gesamt!F$37,MIN(8,LEN(Input_IKT_Gesamt!F$37)))&\")\")","v":"V3"},{"$f":"Input_IKT_Gesamt!G$36&IF(ISBLANK(Input_IKT_Gesamt!G$37),\"\",\" (\"&LEFT(Input_IKT_Gesamt!G$37,MIN(8,LEN(Input_IKT_Gesamt!G$37)))&\")\")","v":"V4"},{"$f":"Input_IKT_Gesamt!H$36&IF(ISBLANK(Input_IKT_Gesamt!H$37),\"\",\" (\"&LEFT(Input_IKT_Gesamt!H$37,MIN(8,LEN(Input_IKT_Gesamt!H$37)))&\")\")","v":"V5"},{"$f":"Input_IKT_Gesamt!I$36&IF(ISBLANK(Input_IKT_Gesamt!I$37),\"\",\" (\"&LEFT(Input_IKT_Gesamt!I$37,MIN(8,LEN(Input_IKT_Gesamt!I$37)))&\")\")","v":"V6"},{"$f":"Input_IKT_Gesamt!J$36&IF(ISBLANK(Input_IKT_Gesamt!J$37),\"\",\" (\"&LEFT(Input_IKT_Gesamt!J$37,MIN(8,LEN(Input_IKT_Gesamt!J$37)))&\")\")","v":"V7"},{"$f":"Input_IKT_Gesamt!K$36&IF(ISBLANK(Input_IKT_Gesamt!K$37),\"\",\" (\"&LEFT(Input_IKT_Gesamt!K$37,MIN(8,LEN(Input_IKT_Gesamt!K$37)))&\")\")","v":"V8"},{"$f":"Input_IKT_Gesamt!L$36&IF(ISBLANK(Input_IKT_Gesamt!L$37),\"\",\" (\"&LEFT(Input_IKT_Gesamt!L$37,MIN(8,LEN(Input_IKT_Gesamt!L$37)))&\")\")","v":"V9"},{"$f":"Input_IKT_Gesamt!M$36&IF(ISBLANK(Input_IKT_Gesamt!M$37),\"\",\" (\"&LEFT(Input_IKT_Gesamt!M$37,MIN(8,LEN(Input_IKT_Gesamt!M$37)))&\")\")","v":"V10"},{"$f":"Input_IKT_Gesamt!N$36&IF(ISBLANK(Input_IKT_Gesamt!N$37),\"\",\" (\"&LEFT(Input_IKT_Gesamt!N$37,MIN(8,LEN(Input_IKT_Gesamt!N$37)))&\")\")","v":"V11"},{"$f":"Input_IKT_Gesamt!O$36&IF(ISBLANK(Input_IKT_Gesamt!O$37),\"\",\" (\"&LEFT(Input_IKT_Gesamt!O$37,MIN(8,LEN(Input_IKT_Gesamt!O$37)))&\")\")","v":"V12"},{"$f":"Input_IKT_Gesamt!P$36&IF(ISBLANK(Input_IKT_Gesamt!P$37),\"\",\" (\"&LEFT(Input_IKT_Gesamt!P$37,MIN(8,LEN(Input_IKT_Gesamt!P$37)))&\")\")","v":"V13"},{"$f":"Input_IKT_Gesamt!Q$36&IF(ISBLANK(Input_IKT_Gesamt!Q$37),\"\",\" (\"&LEFT(Input_IKT_Gesamt!Q$37,MIN(8,LEN(Input_IKT_Gesamt!Q$37)))&\")\")","v":"V14"},{"$f":"Input_IKT_Gesamt!R$36&IF(ISBLANK(Input_IKT_Gesamt!R$37),\"\",\" (\"&LEFT(Input_IKT_Gesamt!R$37,MIN(8,LEN(Input_IKT_Gesamt!R$37)))&\")\")","v":"V15"},{"$f":"Input_IKT_Gesamt!S$36&IF(ISBLANK(Input_IKT_Gesamt!S$37),\"\",\" (\"&LEFT(Input_IKT_Gesamt!S$37,MIN(8,LEN(Input_IKT_Gesamt!S$37)))&\")\")","v":"V16"},{"$f":"Input_IKT_Gesamt!T$36&IF(ISBLANK(Input_IKT_Gesamt!T$37),\"\",\" (\"&LEFT(Input_IKT_Gesamt!T$37,MIN(8,LEN(Input_IKT_Gesamt!T$37)))&\")\")","v":"V17"},{"$f":"Input_IKT_Gesamt!U$36&IF(ISBLANK(Input_IKT_Gesamt!U$37),\"\",\" (\"&LEFT(Input_IKT_Gesamt!U$37,MIN(8,LEN(Input_IKT_Gesamt!U$37)))&\")\")","v":"V18"},{"$f":"Input_IKT_Gesamt!V$36&IF(ISBLANK(Input_IKT_Gesamt!V$37),\"\",\" (\"&LEFT(Input_IKT_Gesamt!V$37,MIN(8,LEN(Input_IKT_Gesamt!V$37)))&\")\")","v":"V19"},{"$f":"Input_IKT_Gesamt!W$36&IF(ISBLANK(Input_IKT_Gesamt!W$37),\"\",\" (\"&LEFT(Input_IKT_Gesamt!W$37,MIN(8,LEN(Input_IKT_Gesamt!W$37)))&\")\")","v":"V20"}]
[null,"Nettobarwert",null,{"$f":"Input_IKT_Gesamt!D38","v":0},{"$f":"Input_IKT_Gesamt!E38","v":0},{"$f":"Input_IKT_Gesamt!F38","v":0},{"$f":"Input_IKT_Gesamt!G38","v":0},{"$f":"Input_IKT_Gesamt!H38","v":0},{"$f":"Input_IKT_Gesamt!I38","v":0},{"$f":"Input_IKT_Gesamt!J38","v":0},{"$f":"Input_IKT_Gesamt!K38","v":0},{"$f":"Input_IKT_Gesamt!L38","v":0},{"$f":"Input_IKT_Gesamt!M38","v":0},{"$f":"Input_IKT_Gesamt!N38","v":0},{"$f":"Input_IKT_Gesamt!O38","v":0},{"$f":"Input_IKT_Gesamt!P38","v":0},{"$f":"Input_IKT_Gesamt!Q38","v":0},{"$f":"Input_IKT_Gesamt!R38","v":0},{"$f":"Input_IKT_Gesamt!S38","v":0},{"$f":"Input_IKT_Gesamt!T38","v":0},{"$f":"Input_IKT_Gesamt!U38","v":0},{"$f":"Input_IKT_Gesamt!V38","v":0},{"$f":"Input_IKT_Gesamt!W38","v":0}]
[null,"Beschaffung: Anschaffungskosten abzüglich Restwert","CHF",{"$f":"Berechnung_IKT_Gesamt!Y25","v":0},{"$f":"Berechnung_IKT_Gesamt!Z25","v":0},{"$f":"Berechnung_IKT_Gesamt!AA25","v":0},{"$f":"Berechnung_IKT_Gesamt!AB25","v":0},{"$f":"Berechnung_IKT_Gesamt!AC25","v":0},{"$f":"Berechnung_IKT_Gesamt!AD25","v":0},{"$f":"Berechnung_IKT_Gesamt!AE25","v":0},{"$f":"Berechnung_IKT_Gesamt!AF25","v":0},{"$f":"Berechnung_IKT_Gesamt!AG25","v":0},{"$f":"Berechnung_IKT_Gesamt!AH25","v":0},{"$f":"Berechnung_IKT_Gesamt!AI25","v":0},{"$f":"Berechnung_IKT_Gesamt!AJ25","v":0},{"$f":"Berechnung_IKT_Gesamt!AK25","v":0},{"$f":"Berechnung_IKT_Gesamt!AL25","v":0},{"$f":"Berechnung_IKT_Gesamt!AM25","v":0},{"$f":"Berechnung_IKT_Gesamt!AN25","v":0},{"$f":"Berechnung_IKT_Gesamt!AO25","v":0},{"$f":"Berechnung_IKT_Gesamt!AP25","v":0},{"$f":"Berechnung_IKT_Gesamt!AQ25","v":0},{"$f":"Berechnung_IKT_Gesamt!AR25","v":0}]
[null,"Energiekosten","CHF",{"$f":"Berechnung_IKT_Gesamt!Y46","v":0},{"$f":"Berechnung_IKT_Gesamt!Z46","v":0},{"$f":"Berechnung_IKT_Gesamt!AA46","v":0},{"$f":"Berechnung_IKT_Gesamt!AB46","v":0},{"$f":"Berechnung_IKT_Gesamt!AC46","v":0},{"$f":"Berechnung_IKT_Gesamt!AD46","v":0},{"$f":"Berechnung_IKT_Gesamt!AE46","v":0},{"$f":"Berechnung_IKT_Gesamt!AF46","v":0},{"$f":"Berechnung_IKT_Gesamt!AG46","v":0},{"$f":"Berechnung_IKT_Gesamt!AH46","v":0},{"$f":"Berechnung_IKT_Gesamt!AI46","v":0},{"$f":"Berechnung_IKT_Gesamt!AJ46","v":0},{"$f":"Berechnung_IKT_Gesamt!AK46","v":0},{"$f":"Berechnung_IKT_Gesamt!AL46","v":0},{"$f":"Berechnung_IKT_Gesamt!AM46","v":0},{"$f":"Berechnung_IKT_Gesamt!AN46","v":0},{"$f":"Berechnung_IKT_Gesamt!AO46","v":0},{"$f":"Berechnung_IKT_Gesamt!AP46","v":0},{"$f":"Berechnung_IKT_Gesamt!AQ46","v":0},{"$f":"Berechnung_IKT_Gesamt!AR46","v":0}]
[null,"Betriebskosten","CHF",{"$f":"Berechnung_IKT_Gesamt!Y66","v":0},{"$f":"Berechnung_IKT_Gesamt!Z66","v":0},{"$f":"Berechnung_IKT_Gesamt!AA66","v":0},{"$f":"Berechnung_IKT_Gesamt!AB66","v":0},{"$f":"Berechnung_IKT_Gesamt!AC66","v":0},{"$f":"Berechnung_IKT_Gesamt!AD66","v":0},{"$f":"Berechnung_IKT_Gesamt!AE66","v":0},{"$f":"Berechnung_IKT_Gesamt!AF66","v":0},{"$f":"Berechnung_IKT_Gesamt!AG66","v":0},{"$f":"Berechnung_IKT_Gesamt!AH66","v":0},{"$f":"Berechnung_IKT_Gesamt!AI66","v":0},{"$f":"Berechnung_IKT_Gesamt!AJ66","v":0},{"$f":"Berechnung_IKT_Gesamt!AK66","v":0},{"$f":"Berechnung_IKT_Gesamt!AL66","v":0},{"$f":"Berechnung_IKT_Gesamt!AM66","v":0},{"$f":"Berechnung_IKT_Gesamt!AN66","v":0},{"$f":"Berechnung_IKT_Gesamt!AO66","v":0},{"$f":"Berechnung_IKT_Gesamt!AP66","v":0},{"$f":"Berechnung_IKT_Gesamt!AQ66","v":0},{"$f":"Berechnung_IKT_Gesamt!AR66","v":0}]
["K",{"$f":"VLOOKUP(Input_Generell!$B$12,Input_Generell!$B$36:$D$39,3,0)","v":"Kosten für THG: nicht gewählt"},"CHF",{"$f":"Berechnung_IKT_Gesamt!Y90","v":0},{"$f":"Berechnung_IKT_Gesamt!Z90","v":0},{"$f":"Berechnung_IKT_Gesamt!AA90","v":0},{"$f":"Berechnung_IKT_Gesamt!AB90","v":0},{"$f":"Berechnung_IKT_Gesamt!AC90","v":0},{"$f":"Berechnung_IKT_Gesamt!AD90","v":0},{"$f":"Berechnung_IKT_Gesamt!AE90","v":0},{"$f":"Berechnung_IKT_Gesamt!AF90","v":0},{"$f":"Berechnung_IKT_Gesamt!AG90","v":0},{"$f":"Berechnung_IKT_Gesamt!AH90","v":0},{"$f":"Berechnung_IKT_Gesamt!AI90","v":0},{"$f":"Berechnung_IKT_Gesamt!AJ90","v":0},{"$f":"Berechnung_IKT_Gesamt!AK90","v":0},{"$f":"Berechnung_IKT_Gesamt!AL90","v":0},{"$f":"Berechnung_IKT_Gesamt!AM90","v":0},{"$f":"Berechnung_IKT_Gesamt!AN90","v":0},{"$f":"Berechnung_IKT_Gesamt!AO90","v":0},{"$f":"Berechnung_IKT_Gesamt!AP90","v":0},{"$f":"Berechnung_IKT_Gesamt!AQ90","v":0},{"$f":"Berechnung_IKT_Gesamt!AR90","v":0}]
[null,"Entsorgung: Entsorgungskosten","CHF",{"$f":"Berechnung_IKT_Gesamt!Y109","v":0},{"$f":"Berechnung_IKT_Gesamt!Z109","v":0},{"$f":"Berechnung_IKT_Gesamt!AA109","v":0},{"$f":"Berechnung_IKT_Gesamt!AB109","v":0},{"$f":"Berechnung_IKT_Gesamt!AC109","v":0},{"$f":"Berechnung_IKT_Gesamt!AD109","v":0},{"$f":"Berechnung_IKT_Gesamt!AE109","v":0},{"$f":"Berechnung_IKT_Gesamt!AF109","v":0},{"$f":"Berechnung_IKT_Gesamt!AG109","v":0},{"$f":"Berechnung_IKT_Gesamt!AH109","v":0},{"$f":"Berechnung_IKT_Gesamt!AI109","v":0},{"$f":"Berechnung_IKT_Gesamt!AJ109","v":0},{"$f":"Berechnung_IKT_Gesamt!AK109","v":0},{"$f":"Berechnung_IKT_Gesamt!AL109","v":0},{"$f":"Berechnung_IKT_Gesamt!AM109","v":0},{"$f":"Berechnung_IKT_Gesamt!AN109","v":0},{"$f":"Berechnung_IKT_Gesamt!AO109","v":0},{"$f":"Berechnung_IKT_Gesamt!AP109","v":0},{"$f":"Berechnung_IKT_Gesamt!AQ109","v":0},{"$f":"Berechnung_IKT_Gesamt!AR109","v":0}]
[null,"Total","CHF",{"$f":"SUM(D7:D11)","v":0},{"$f":"SUM(E7:E11)","v":0},0,0,0,0,0,0,0,0,0,0,0,0,0,0,0,0,0,0]
[]
["K","Umweltbelastungspunkte UBP'13 Betrieb","UBP",{"$f":"Berechnung_IKT_Gesamt!C71*Betrachtungszeit_IKT_Gesamt","v":0},{"$f":"Berechnung_IKT_Gesamt!D71*Betrachtungszeit_IKT_Gesamt","v":0},{"$f":"Berechnung_IKT_Gesamt!E71*Betrachtungszeit_IKT_Gesamt","v":0},{"$f":"Berechnung_IKT_Gesamt!F71*Betrachtungszeit_IKT_Gesamt","v":0},{"$f":"Berechnung_IKT_Gesamt!G71*Betrachtungszeit_IKT_Gesamt","v":0},{"$f":"Berechnung_IKT_Gesamt!H71*Betrachtungszeit_IKT_Gesamt","v":0},{"$f":"Berechnung_IKT_Gesamt!I71*Betrachtungszeit_IKT_Gesamt","v":0},{"$f":"Berechnung_IKT_Gesamt!J71*Betrachtungszeit_IKT_Gesamt","v":0},{"$f":"Berechnung_IKT_Gesamt!K71*Betrachtungszeit_IKT_Gesamt","v":0},{"$f":"Berechnung_IKT_Gesamt!L71*Betrachtungszeit_IKT_Gesamt","v":0},{"$f":"Berechnung_IKT_Gesamt!M71*Betrachtungszeit_IKT_Gesamt","v":0},{"$f":"Berechnung_IKT_Gesamt!N71*Betrachtungszeit_IKT_Gesamt","v":0},{"$f":"Berechnung_IKT_Gesamt!O71*Betrachtungszeit_IKT_Gesamt","v":0},{"$f":"Berechnung_IKT_Gesamt!P71*Betrachtungszeit_IKT_Gesamt","v":0},{"$f":"Berechnung_IKT_Gesamt!Q71*Betrachtungszeit_IKT_Gesamt","v":0},{"$f":"Berechnung_IKT_Gesamt!R71*Betrachtungszeit_IKT_Gesamt","v":0},{"$f":"Berechnung_IKT_Gesamt!S71*Betrachtungszeit_IKT_Gesamt","v":0},{"$f":"Berechnung_IKT_Gesamt!T71*Betrachtungszeit_IKT_Gesamt","v":0},{"$f":"Berechnung_IKT_Gesamt!U71*Betrachtungszeit_IKT_Gesamt","v":0},{"$f":"Berechnung_IKT_Gesamt!V71*Betrachtungszeit_IKT_Gesamt","v":0}]
[null,"Treibhausgasemissionen Betrieb (Scope 2)","tCO2eq",{"$f":"Berechnung_IKT_Gesamt!C72*Betrachtungszeit_IKT_Gesamt","v":0},{"$f":"Berechnung_IKT_Gesamt!D72*Betrachtungszeit_IKT_Gesamt","v":0},{"$f":"Berechnung_IKT_Gesamt!E72*Betrachtungszeit_IKT_Gesamt","v":0},{"$f":"Berechnung_IKT_Gesamt!F72*Betrachtungszeit_IKT_Gesamt","v":0},{"$f":"Berechnung_IKT_Gesamt!G72*Betrachtungszeit_IKT_Gesamt","v":0},{"$f":"Berechnung_IKT_Gesamt!H72*Betrachtungszeit_IKT_Gesamt","v":0},{"$f":"Berechnung_IKT_Gesamt!I72*Betrachtungszeit_IKT_Gesamt","v":0},{"$f":"Berechnung_IKT_Gesamt!J72*Betrachtungszeit_IKT_Gesamt","v":0},{"$f":"Berechnung_IKT_Gesamt!K72*Betrachtungszeit_IKT_Gesamt","v":0},{"$f":"Berechnung_IKT_Gesamt!L72*Betrachtungszeit_IKT_Gesamt","v":0},{"$f":"Berechnung_IKT_Gesamt!M72*Betrachtungszeit_IKT_Gesamt","v":0},{"$f":"Berechnung_IKT_Gesamt!N72*Betrachtungszeit_IKT_Gesamt","v":0},{"$f":"Berechnung_IKT_Gesamt!O72*Betrachtungszeit_IKT_Gesamt","v":0},{"$f":"Berechnung_IKT_Gesamt!P72*Betrachtungszeit_IKT_Gesamt","v":0},{"$f":"Berechnung_IKT_Gesamt!Q72*Betrachtungszeit_IKT_Gesamt","v":0},{"$f":"Berechnung_IKT_Gesamt!R72*Betrachtungszeit_IKT_Gesamt","v":0},{"$f":"Berechnung_IKT_Gesamt!S72*Betrachtungszeit_IKT_Gesamt","v":0},{"$f":"Berechnung_IKT_Gesamt!T72*Betrachtungszeit_IKT_Gesamt","v":0},{"$f":"Berechnung_IKT_Gesamt!U72*Betrachtungszeit_IKT_Gesamt","v":0},{"$f":"Berechnung_IKT_Gesamt!V72*Betrachtungszeit_IKT_Gesamt","v":0}]
[null,"Treibhausgasemissionen Herstellung (Scope 3)","tCO2eq",{"$f":"Berechnung_IKT_Gesamt!C75","v":0},{"$f":"Berechnung_IKT_Gesamt!D75","v":0},{"$f":"Berechnung_IKT_Gesamt!E75","v":0},{"$f":"Berechnung_IKT_Gesamt!F75","v":0},{"$f":"Berechnung_IKT_Gesamt!G75","v":0},{"$f":"Berechnung_IKT_Gesamt!H75","v":0},{"$f":"Berechnung_IKT_Gesamt!I75","v":0},{"$f":"Berechnung_IKT_Gesamt!J75","v":0},{"$f":"Berechnung_IKT_Gesamt!K75","v":0},{"$f":"Berechnung_IKT_Gesamt!L75","v":0},{"$f":"Berechnung_IKT_Gesamt!M75","v":0},{"$f":"Berechnung_IKT_Gesamt!N75","v":0},{"$f":"Berechnung_IKT_Gesamt!O75","v":0},{"$f":"Berechnung_IKT_Gesamt!P75","v":0},{"$f":"Berechnung_IKT_Gesamt!Q75","v":0},{"$f":"Berechnung_IKT_Gesamt!R75","v":0},{"$f":"Berechnung_IKT_Gesamt!S75","v":0},{"$f":"Berechnung_IKT_Gesamt!T75","v":0},{"$f":"Berechnung_IKT_Gesamt!U75","v":0},{"$f":"Berechnung_IKT_Gesamt!V75","v":0}]
[]
[null,"Lebenszykluskosten Diagramm"]
[]
[]
[null,"Aufsummierte Kosten (Barwerte) der einzelnen Varianten über die Betrachtungszeit"]
[]
[]
[null,null,null,null,null,null,null,null,"Dargestellte Varianten"]
[null,null,null,null,null,null,null,null,"BITTE WÄHLEN"]
[null,null,null,null,null,null,null,null,"BITTE WÄHLEN"]
[null,null,null,null,null,null,null,null,"BITTE WÄHLEN"]
[null,null,null,null,null,null,null,null,"BITTE WÄHLEN"]
[]
[]
[]
[]
[]
[]
[]
[]
[]
[]
[]
[]
[]
[]
[]
[]
[]
[]
[]
[]
[]
[]
[]
[]
[]
[]
[null,"Auswahlfeld Dastellung Variante"]
[null,"BITTE WÄHLEN"]
[null,{"$f":"D$5","v":"V1"}]
[null,{"$f":"E$5","v":"V2"}]
[null,{"$f":"F$5","v":"V3"}]
[null,{"$f":"G$5","v":"V4"}]
[null,{"$f":"H$5","v":"V5"}]
[null,{"$f":"I$5","v":"V6"}]
[null,{"$f":"J$5","v":"V7"}]
[null,{"$f":"K$5","v":"V8"}]
[null,{"$f":"L$5","v":"V9"}]
[null,{"$f":"L$5","v":"V9"}]
[null,{"$f":"M$5","v":"V10"}]
[null,{"$f":"N$5","v":"V11"}]
[null,{"$f":"O$5","v":"V12"}]
[null,{"$f":"P$5","v":"V13"}]
[null,{"$f":"Q$5","v":"V14"}]
[null,{"$f":"R$5","v":"V15"}]
[null,{"$f":"S$5","v":"V16"}]
[null,{"$f":"T$5","v":"V17"}]
[null,{"$f":"U$5","v":"V18"}]
[null,{"$f":"V$5","v":"V19"}]
[null,{"$f":"W$5","v":"V20"}]

{"sheet":"Berechnung_IKT_Gesamt","index":7,"n_rows":140,"n_cols":44,"rows_kept":140,"cut":false,"hidden":false,"merged":[[110,23,110,43],[127,28,128,28],[2,1,2,6],[48,1,48,6],[67,1,67,6],[27,23,27,28],[48,23,48,28],[91,23,91,28]]}
[null,"BERECHNUNGEN IKT-GESAMTEINRICHTUNG"]
[]
[null,"Beschaffung",null,null,null,null,null,null,null,null,null,null,null,null,null,null,null,null,null,null,null,null,null,{"$f":"\"Barwert \"&B3","v":"Barwert Beschaffung"}]
[]
[null,null,"V1","V2","V3","V4","V5","V6","V7","V8","V9","V10","V11","V12","V13","V14","V15","V16","V17","V18","V19","V20"]
[null,"Anschaffungskosten [CHF]",{"$f":"Input_IKT_Gesamt!D65","v":0},{"$f":"Input_IKT_Gesamt!E65","v":0},{"$f":"Input_IKT_Gesamt!F65","v":0},{"$f":"Input_IKT_Gesamt!G65","v":0},{"$f":"Input_IKT_Gesamt!H65","v":0},{"$f":"Input_IKT_Gesamt!I65","v":0},{"$f":"Input_IKT_Gesamt!J65","v":0},{"$f":"Input_IKT_Gesamt!K65","v":0},{"$f":"Input_IKT_Gesamt!L65","v":0},{"$f":"Input_IKT_Gesamt!M65","v":0},{"$f":"Input_IKT_Gesamt!N65","v":0},{"$f":"Input_IKT_Gesamt!O65","v":0},{"$f":"Input_IKT_Gesamt!P65","v":0},{"$f":"Input_IKT_Gesamt!Q65","v":0},{"$f":"Input_IKT_Gesamt!R65","v":0},{"$f":"Input_IKT_Gesamt!S65","v":0},{"$f":"Input_IKT_Gesamt!T65","v":0},{"$f":"Input_IKT_Gesamt!U65","v":0},{"$f":"Input_IKT_Gesamt!V65","v":0},{"$f":"Input_IKT_Gesamt!W65","v":0}]
[null,"Transportkosten [CHF]",{"$f":"Input_IKT_Gesamt!D66","v":0},{"$f":"Input_IKT_Gesamt!E66","v":0},{"$f":"Input_IKT_Gesamt!F66","v":0},{"$f":"Input_IKT_Gesamt!G66","v":0},{"$f":"Input_IKT_Gesamt!H66","v":0},{"$f":"Input_IKT_Gesamt!I66","v":0},{"$f":"Input_IKT_Gesamt!J66","v":0},{"$f":"Input_IKT_Gesamt!K66","v":0},{"$f":"Input_IKT_Gesamt!L66","v":0},{"$f":"Input_IKT_Gesamt!M66","v":0},{"$f":"Input_IKT_Gesamt!N66","v":0},{"$f":"Input_IKT_Gesamt!O66","v":0},{"$f":"Input_IKT_Gesamt!P66","v":0},{"$f":"Input_IKT_Gesamt!Q66","v":0},{"$f":"Input_IKT_Gesamt!R66","v":0},{"$f":"Input_IKT_Gesamt!S66","v":0},{"$f":"Input_IKT_Gesamt!T66","v":0},{"$f":"Input_IKT_Gesamt!U66","v":0},{"$f":"Input_IKT_Gesamt!V66","v":0},{"$f":"Input_IKT_Gesamt!W66","v":0}]
[null,"Einmalige Initialkosten [CHF]",{"$f":"Input_IKT_Gesamt!D67","v":0},{"$f":"Input_IKT_Gesamt!E67","v":0},{"$f":"Input_IKT_Gesamt!F67","v":0},{"$f":"Input_IKT_Gesamt!G67","v":0},{"$f":"Input_IKT_Gesamt!H67","v":0},{"$f":"Input_IKT_Gesamt!I67","v":0},{"$f":"Input_IKT_Gesamt!J67","v":0},{"$f":"Input_IKT_Gesamt!K67","v":0},{"$f":"Input_IKT_Gesamt!L67","v":0},{"$f":"Input_IKT_Gesamt!M67","v":0},{"$f":"Input_IKT_Gesamt!N67","v":0},{"$f":"Input_IKT_Gesamt!O67","v":0},{"$f":"Input_IKT_Gesamt!P67","v":0},{"$f":"Input_IKT_Gesamt!Q67","v":0},{"$f":"Input_IKT_Gesamt!R67","v":0},{"$f":"Input_IKT_Gesamt!S67","v":0},{"$f":"Input_IKT_Gesamt!T67","v":0},{"$f":"Input_IKT_Gesamt!U67","v":0},{"$f":"Input_IKT_Gesamt!V67","v":0},{"$f":"Input_IKT_Gesamt!W67","v":0}]
[null,"Total [CHF]",{"$f":"SUM(C6:C8)","v":0},{"$f":"SUM(D6:D8)","v":0},0,0,0,0,0,0,0,0,0,0,0,0,0,0,0,0,0,0]
["K","Restwert am Ende des Lebenszyklus [CHF]",{"$f":"Input_IKT_Gesamt!D125","v":0},{"$f":"Input_IKT_Gesamt!E125","v":0},{"$f":"Input_IKT_Gesamt!F125","v":0},{"$f":"Input_IKT_Gesamt!G125","v":0},{"$f":"Input_IKT_Gesamt!H125","v":0},{"$f":"Input_IKT_Gesamt!I125","v":0},{"$f":"Input_IKT_Gesamt!J125","v":0},{"$f":"Input_IKT_Gesamt!K125","v":0},{"$f":"Input_IKT_Gesamt!L125","v":0},{"$f":"Input_IKT_Gesamt!M125","v":0},{"$f":"Input_IKT_Gesamt!N125","v":0},{"$f":"Input_IKT_Gesamt!O125","v":0},{"$f":"Input_IKT_Gesamt!P125","v":0},{"$f":"Input_IKT_Gesamt!Q125","v":0},{"$f":"Input_IKT_Gesamt!R125","v":0},{"$f":"Input_IKT_Gesamt!S125","v":0},{"$f":"Input_IKT_Gesamt!T125","v":0},{"$f":"Input_IKT_Gesamt!U125","v":0},{"$f":"Input_IKT_Gesamt!V125","v":0},{"$f":"Input_IKT_Gesamt!W125","v":0}]
[]
[null,"Anschaffungskosten abzügl. Restwert [CHF] mit Berücksichtigung der Preissteigerung im Jahr…"]
[null,null,"V1","V2","V3","V4","V5","V6","V7","V8","V9","V10","V11","V12","V13","V14","V15","V16","V17","V18","V19","V20",null,"Jahr","V1","V2","V3","V4","V5","V6","V7","V8","V9","V10","V11","V12","V13","V14","V15","V16","V17","V18","V19","V20"]
[null,0,{"$f":"C9","v":0},{"$f":"D9","v":0},0,0,0,0,0,0,0,0,0,0,0,0,0,0,0,0,0,0,null,0,{"$f":"C14*(1+Kalkulationszinssatz)^-$X14","v":0},{"$f":"D14*(1+Kalkulationszinssatz)^-$X14","v":0},{"$f":"E14*(1+Kalkulationszinssatz)^-$X14","v":0},{"$f":"F14*(1+Kalkulationszinssatz)^-$X14","v":0},{"$f":"G14*(1+Kalkulationszinssatz)^-$X14","v":0},{"$f":"H14*(1+Kalkulationszinssatz)^-$X14","v":0},{"$f":"I14*(1+Kalkulationszinssatz)^-$X14","v":0},{"$f":"J14*(1+Kalkulationszinssatz)^-$X14","v":0},{"$f":"K14*(1+Kalkulationszinssatz)^-$X14","v":0},{"$f":"L14*(1+Kalkulationszinssatz)^-$X14","v":0},{"$f":"M14*(1+Kalkulationszinssatz)^-$X14","v":0},{"$f":"N14*(1+Kalkulationszinssatz)^-$X14","v":0},{"$f":"O14*(1+Kalkulationszinssatz)^-$X14","v":0},{"$f":"P14*(1+Kalkulationszinssatz)^-$X14","v":0},{"$f":"Q14*(1+Kalkulationszinssatz)^-$X14","v":0},{"$f":"R14*(1+Kalkulationszinssatz)^-$X14","v":0},{"$f":"S14*(1+Kalkulationszinssatz)^-$X14","v":0},{"$f":"T14*(1+Kalkulationszinssatz)^-$X14","v":0},{"$f":"U14*(1+Kalkulationszinssatz)^-$X14","v":0},{"$f":"V14*(1+Kalkulationszinssatz)^-$X14","v":0}]
[null,1,{"$f":"IF($B15=Betrachtungszeit_IKT_Gesamt,C$10*(1+Inflationsindex)^$B15,0)","v":0},0,0,0,0,0,0,0,0,0,{"$f":"IF($B15=Betrachtungszeit_IKT_Gesamt,M$10*(1+Inflationsindex)^$B15,0)","v":0},0,0,0,0,0,0,0,0,0,null,1,0,0,0,0,0,0,0,0,0,0,0,0,0,0,0,0,0,0,0,0]
[null,2,0,0,0,0,0,0,0,0,0,0,0,0,0,0,0,0,0,0,0,0,null,2,0,0,0,0,0,0,0,0,0,0,0,0,0,0,0,0,0,0,0,0]
[null,3,0,0,0,0,0,0,0,0,0,0,0,0,0,0,0,0,0,0,0,0,null,3,0,0,0,0,0,0,0,0,0,0,0,0,0,0,0,0,0,0,0,0]
[null,4,0,0,0,0,0,0,0,0,0,0,0,0,0,0,0,0,0,0,0,0,null,4,0,0,0,0,0,0,0,0,0,0,0,0,0,0,0,0,0,0,0,0]
[null,5,0,0,0,0,0,0,0,0,0,0,0,0,0,0,0,0,0,0,0,0,null,5,0,0,0,0,0,0,0,0,0,0,0,0,0,0,0,0,0,0,0,0]
[null,6,0,0,0,0,0,0,0,0,0,0,0,0,0,0,0,0,0,0,0,0,null,6,0,0,0,0,0,0,0,0,0,0,0,0,0,0,0,0,0,0,0,0]
[null,7,0,0,0,0,0,0,0,0,0,0,0,0,0,0,0,0,0,0,0,0,null,7,0,0,0,0,0,0,0,0,0,0,0,0,0,0,0,0,0,0,0,0]
[null,8,0,0,0,0,0,0,0,0,0,0,0,0,0,0,0,0,0,0,0,0,null,8,0,0,0,0,0,0,0,0,0,0,0,0,0,0,0,0,0,0,0,0]
[null,9,0,0,0,0,0,0,0,0,0,0,0,0,0,0,0,0,0,0,0,0,null,9,0,0,0,0,0,0,0,0,0,0,0,0,0,0,0,0,0,0,0,0]
[null,10,0,0,0,0,0,0,0,0,0,0,0,0,0,0,0,0,0,0,0,0,null,10,0,0,0,0,0,0,0,0,0,0,0,0,0,0,0,0,0,0,0,0]
[null,null,null,null,null,null,null,null,null,null,null,null,null,null,null,null,null,null,null,null,null,null,null,"Total",{"$f":"SUM(Y14:Y24)","v":0},0,0,0,0,0,0,0,0,0,0,0,0,0,0,0,0,0,0,0]
[]
[]
[null,"Energiekosten",null,null,null,null,null,null,null,null,null,null,null,null,null,null,null,null,null,null,null,null,null,{"$f":"\"Barwert \"&B28","v":"Barwert Energiekosten"}]
[]
[null,null,"V1","V2","V3","V4","V5","V6","V7","V8","V9","V10","V11","V12","V13","V14","V15","V16","V17","V18","V19","V20"]
[null,"Energieverbrauch [kWh/a]",{"$f":"SUMPRODUCT(Input_IKT_Gesamt!$C$13:$C$32,Input_IKT_Gesamt!D$93:D$112)","v":0},{"$f":"SUMPRODUCT(Input_IKT_Gesamt!$C$13:$C$32,Input_IKT_Gesamt!E$93:E$112)","v":0},{"$f":"SUMPRODUCT(Input_IKT_Gesamt!$C$13:$C$32,Input_IKT_Gesamt!F$93:F$112)","v":0},{"$f":"SUMPRODUCT(Input_IKT_Gesamt!$C$13:$C$32,Input_IKT_Gesamt!G$93:G$112)","v":0},{"$f":"SUMPRODUCT(Input_IKT_Gesamt!$C$13:$C$32,Input_IKT_Gesamt!H$93:H$112)","v":0},{"$f":"SUMPRODUCT(Input_IKT_Gesamt!$C$13:$C$32,Input_IKT_Gesamt!I$93:I$112)","v":0},{"$f":"SUMPRODUCT(Input_IKT_Gesamt!$C$13:$C$32,Input_IKT_Gesamt!J$93:J$112)","v":0},{"$f":"SUMPRODUCT(Input_IKT_Gesamt!$C$13:$C$32,Input_IKT_Gesamt!K$93:K$112)","v":0},{"$f":"SUMPRODUCT(Input_IKT_Gesamt!$C$13:$C$32,Input_IKT_Gesamt!L$93:L$112)","v":0},{"$f":"SUMPRODUCT(Input_IKT_Gesamt!$C$13:$C$32,Input_IKT_Gesamt!M$93:M$112)","v":0},{"$f":"SUMPRODUCT(Input_IKT_Gesamt!$C$13:$C$32,Input_IKT_Gesamt!N$93:N$112)","v":0},{"$f":"SUMPRODUCT(Input_IKT_Gesamt!$C$13:$C$32,Input_IKT_Gesamt!O$93:O$112)","v":0},{"$f":"SUMPRODUCT(Input_IKT_Gesamt!$C$13:$C$32,Input_IKT_Gesamt!P$93:P$112)","v":0},{"$f":"SUMPRODUCT(Input_IKT_Gesamt!$C$13:$C$32,Input_IKT_Gesamt!Q$93:Q$112)","v":0},{"$f":"SUMPRODUCT(Input_IKT_Gesamt!$C$13:$C$32,Input_IKT_Gesamt!R$93:R$112)","v":0},{"$f":"SUMPRODUCT(Input_IKT_Gesamt!$C$13:$C$32,Input_IKT_Gesamt!S$93:S$112)","v":0},{"$f":"SUMPRODUCT(Input_IKT_Gesamt!$C$13:$C$32,Input_IKT_Gesamt!T$93:T$112)","v":0},{"$f":"SUMPRODUCT(Input_IKT_Gesamt!$C$13:$C$32,Input_IKT_Gesamt!U$93:U$112)","v":0},{"$f":"SUMPRODUCT(Input_IKT_Gesamt!$C$13:$C$32,Input_IKT_Gesamt!V$93:V$112)","v":0},{"$f":"SUMPRODUCT(Input_IKT_Gesamt!$C$13:$C$32,Input_IKT_Gesamt!W$93:W$112)","v":0}]
[null,"Energiekosten [CHF/a]",{"$f":"C31*Strompreis/100","v":0},{"$f":"D31*Strompreis/100","v":0},0,0,0,0,0,0,0,0,0,0,0,0,0,0,0,0,0,0]
[null,"Energiekosten [CHF] mit Berücksichtigung der Energiepreissteigerung am Ende des Jahres…"]
[null,"Jahr","V1","V2","V3","V4","V5","V6","V7","V8","V9","V10","V11","V12","V13","V14","V15","V16","V17","V18","V19","V20",null,"Jahr","V1","V2","V3","V4","V5","V6","V7","V8","V9","V10","V11","V12","V13","V14","V15","V16","V17","V18","V19","V20"]
[null,0,0,0,0,0,0,0,0,0,0,0,0,0,0,0,0,0,0,0,0,0,null,0,{"$f":"C35*(1+Kalkulationszinssatz)^-$X14","v":0},{"$f":"D35*(1+Kalkulationszinssatz)^-$X14","v":0},{"$f":"E35*(1+Kalkulationszinssatz)^-$X14","v":0},{"$f":"F35*(1+Kalkulationszinssatz)^-$X14","v":0},{"$f":"G35*(1+Kalkulationszinssatz)^-$X14","v":0},{"$f":"H35*(1+Kalkulationszinssatz)^-$X14","v":0},{"$f":"I35*(1+Kalkulationszinssatz)^-$X14","v":0},{"$f":"J35*(1+Kalkulationszinssatz)^-$X14","v":0},{"$f":"K35*(1+Kalkulationszinssatz)^-$X14","v":0},{"$f":"L35*(1+Kalkulationszinssatz)^-$X14","v":0},{"$f":"M35*(1+Kalkulationszinssatz)^-$X14","v":0},{"$f":"N35*(1+Kalkulationszinssatz)^-$X14","v":0},{"$f":"O35*(1+Kalkulationszinssatz)^-$X14","v":0},{"$f":"P35*(1+Kalkulationszinssatz)^-$X14","v":0},{"$f":"Q35*(1+Kalkulationszinssatz)^-$X14","v":0},{"$f":"R35*(1+Kalkulationszinssatz)^-$X14","v":0},{"$f":"S35*(1+Kalkulationszinssatz)^-$X14","v":0},{"$f":"T35*(1+Kalkulationszinssatz)^-$X14","v":0},{"$f":"U35*(1+Kalkulationszinssatz)^-$X14","v":0},{"$f":"V35*(1+Kalkulationszinssatz)^-$X14","v":0}]
[null,1,{"$f":"IF($B36<=Betrachtungszeit_IKT_Gesamt,C32*(1+Energiepreissteigerung),0)","v":0},0,0,0,0,0,0,0,0,0,0,0,0,0,0,0,0,0,0,0,null,1,0,0,0,0,0,0,0,0,0,0,0,0,0,0,0,0,0,0,0,0]
[null,2,{"$f":"IF($B37<=Betrachtungszeit_IKT_Gesamt,C36*(1+Energiepreissteigerung),0)","v":0},{"$f":"IF($B37<=Betrachtungszeit_IKT_Gesamt,D36*(1+Energiepreissteigerung),0)","v":0},{"$f":"IF($B37<=Betrachtungszeit_IKT_Gesamt,E36*(1+Energiepreissteigerung),0)","v":0},{"$f":"IF($B37<=Betrachtungszeit_IKT_Gesamt,F36*(1+Energiepreissteigerung),0)","v":0},{"$f":"IF($B37<=Betrachtungszeit_IKT_Gesamt,G36*(1+Energiepreissteigerung),0)","v":0},{"$f":"IF($B37<=Betrachtungszeit_IKT_Gesamt,H36*(1+Energiepreissteigerung),0)","v":0},{"$f":"IF($B37<=Betrachtungszeit_IKT_Gesamt,I36*(1+Energiepreissteigerung),0)","v":0},{"$f":"IF($B37<=Betrachtungszeit_IKT_Gesamt,J36*(1+Energiepreissteigerung),0)","v":0},{"$f":"IF($B37<=Betrachtungszeit_IKT_Gesamt,K36*(1+Energiepreissteigerung),0)","v":0},{"$f":"IF($B37<=Betrachtungszeit_IKT_Gesamt,L36*(1+Energiepreissteigerung),0)","v":0},{"$f":"IF($B37<=Betrachtungszeit_IKT_Gesamt,M36*(1+Energiepreissteigerung),0)","v":0},{"$f":"IF($B37<=Betrachtungszeit_IKT_Gesamt,N36*(1+Energiepreissteigerung),0)","v":0},{"$f":"IF($B37<=Betrachtungszeit_IKT_Gesamt,O36*(1+Energiepreissteigerung),0)","v":0},{"$f":"IF($B37<=Betrachtungszeit_IKT_Gesamt,P36*(1+Energiepreissteigerung),0)","v":0},{"$f":"IF($B37<=Betrachtungszeit_IKT_Gesamt,Q36*(1+Energiepreissteigerung),0)","v":0},{"$f":"IF($B37<=Betrachtungszeit_IKT_Gesamt,R36*(1+Energiepreissteigerung),0)","v":0},{"$f":"IF($B37<=Betrachtungszeit_IKT_Gesamt,S36*(1+Energiepreissteigerung),0)","v":0},{"$f":"IF($B37<=Betrachtungszeit_IKT_Gesamt,T36*(1+Energiepreissteigerung),0)","v":0},{"$f":"IF($B37<=Betrachtungszeit_IKT_Gesamt,U36*(1+Energiepreissteigerung),0)","v":0},{"$f":"IF($B37<=Betrachtungszeit_IKT_Gesamt,V36*(1+Energiepreissteigerung),0)","v":0},null,2,0,0,0,0,0,0,0,0,0,0,0,0,0,0,0,0,0,0,0,0]
[null,3,0,0,0,0,0,0,0,0,0,0,0,0,0,0,0,0,0,0,0,0,null,3,0,0,0,0,0,0,0,0,0,0,0,0,0,0,0,0,0,0,0,0]
[null,4,0,0,0,0,0,0,0,0,0,0,0,0,0,0,0,0,0,0,0,0,null,4,0,0,0,0,0,0,0,0,0,0,0,0,0,0,0,0,0,0,0,0]
[null,5,0,0,0,0,0,0,0,0,0,0,0,0,0,0,0,0,0,0,0,0,null,5,0,0,0,0,0,0,0,0,0,0,0,0,0,0,0,0,0,0,0,0]
[null,6,0,0,0,0,0,0,0,0,0,0,0,0,0,0,0,0,0,0,0,0,null,6,0,0,0,0,0,0,0,0,0,0,0,0,0,0,0,0,0,0,0,0]
[null,7,0,0,0,0,0,0,0,0,0,0,0,0,0,0,0,0,0,0,0,0,null,7,0,0,0,0,0,0,0,0,0,0,0,0,0,0,0,0,0,0,0,0]
[null,8,0,0,0,0,0,0,0,0,0,0,0,0,0,0,0,0,0,0,0,0,null,8,0,0,0,0,0,0,0,0,0,0,0,0,0,0,0,0,0,0,0,0]
[null,9,0,0,0,0,0,0,0,0,0,0,0,0,0,0,0,0,0,0,0,0,null,9,0,0,0,0,0,0,0,0,0,0,0,0,0,0,0,0,0,0,0,0]
[null,10,0,0,0,0,0,0,0,0,0,0,0,0,0,0,0,0,0,0,0,0,null,10,0,0,0,0,0,0,0,0,0,0,0,0,0,0,0,0,0,0,0,0]
[null,null,null,null,null,null,null,null,null,null,null,null,null,null,null,null,null,null,null,null,null,null,null,"Total",{"$f":"SUM(Y35:Y45)","v":0},0,0,0,0,0,0,0,0,0,0,0,0,0,0,0,0,0,0,0]
[]
[]
[null,"Betriebskosten",null,null,null,null,null,null,null,null,null,null,null,null,null,null,null,null,null,null,null,null,null,{"$f":"\"Barwert \"&B49","v":"Barwert Betriebskosten"}]
[]
[null,null,"V1","V2","V3","V4","V5","V6","V7","V8","V9","V10","V11","V12","V13","V14","V15","V16","V17","V18","V19","V20"]
[null,"Betriebskosten Total [CHF/a]",{"$f":"SUM(Input_IKT_Gesamt!D116:D120)","v":0},{"$f":"SUM(Input_IKT_Gesamt!E116:E120)","v":0},{"$f":"SUM(Input_IKT_Gesamt!F116:F120)","v":0},{"$f":"SUM(Input_IKT_Gesamt!G116:G120)","v":0},{"$f":"SUM(Input_IKT_Gesamt!H116:H120)","v":0},{"$f":"SUM(Input_IKT_Gesamt!I116:I120)","v":0},{"$f":"SUM(Input_IKT_Gesamt!J116:J120)","v":0},{"$f":"SUM(Input_IKT_Gesamt!K116:K120)","v":0},{"$f":"SUM(Input_IKT_Gesamt!L116:L120)","v":0},{"$f":"SUM(Input_IKT_Gesamt!M116:M120)","v":0},{"$f":"SUM(Input_IKT_Gesamt!N116:N120)","v":0},{"$f":"SUM(Input_IKT_Gesamt!O116:O120)","v":0},{"$f":"SUM(Input_IKT_Gesamt!P116:P120)","v":0},{"$f":"SUM(Input_IKT_Gesamt!Q116:Q120)","v":0},{"$f":"SUM(Input_IKT_Gesamt!R116:R120)","v":0},{"$f":"SUM(Input_IKT_Gesamt!S116:S120)","v":0},{"$f":"SUM(Input_IKT_Gesamt!T116:T120)","v":0},{"$f":"SUM(Input_IKT_Gesamt!U116:U120)","v":0},{"$f":"SUM(Input_IKT_Gesamt!V116:V120)","v":0},{"$f":"SUM(Input_IKT_Gesamt!W116:W120)","v":0}]
[null,"Betriebskosten [CHF] mit Berücksichtigung der Preissteigerung am Ende des Jahres…"]
[null,"Jahr","V1","V2","V3","V4","V5","V6","V7","V8","V9","V10","V11","V12","V13","V14","V15","V16","V17","V18","V19","V20",null,"Jahr","V1","V2","V3","V4","V5","V6","V7","V8","V9","V10","V11","V12","V13","V14","V15","V16","V17","V18","V19","V20"]
[null,0,0,0,0,0,0,0,0,0,0,0,0,0,0,0,0,0,0,0,0,0,null,0,{"$f":"C55*(1+Kalkulationszinssatz)^-$X14","v":0},{"$f":"D55*(1+Kalkulationszinssatz)^-$X14","v":0},{"$f":"E55*(1+Kalkulationszinssatz)^-$X14","v":0},{"$f":"F55*(1+Kalkulationszinssatz)^-$X14","v":0},{"$f":"G55*(1+Kalkulationszinssatz)^-$X14","v":0},{"$f":"H55*(1+Kalkulationszinssatz)^-$X14","v":0},{"$f":"I55*(1+Kalkulationszinssatz)^-$X14","v":0},{"$f":"J55*(1+Kalkulationszinssatz)^-$X14","v":0},{"$f":"K55*(1+Kalkulationszinssatz)^-$X14","v":0},{"$f":"L55*(1+Kalkulationszinssatz)^-$X14","v":0},{"$f":"M55*(1+Kalkulationszinssatz)^-$X14","v":0},{"$f":"N55*(1+Kalkulationszinssatz)^-$X14","v":0},{"$f":"O55*(1+Kalkulationszinssatz)^-$X14","v":0},{"$f":"P55*(1+Kalkulationszinssatz)^-$X14","v":0},{"$f":"Q55*(1+Kalkulationszinssatz)^-$X14","v":0},{"$f":"R55*(1+Kalkulationszinssatz)^-$X14","v":0},{"$f":"S55*(1+Kalkulationszinssatz)^-$X14","v":0},{"$f":"T55*(1+Kalkulationszinssatz)^-$X14","v":0},{"$f":"U55*(1+Kalkulationszinssatz)^-$X14","v":0},{"$f":"V55*(1+Kalkulationszinssatz)^-$X14","v":0}]
[null,1,{"$f":"IF($B56<=Betrachtungszeit_IKT_Gesamt,C52*(1+Inflationsindex),0)","v":0},0,0,0,0,0,0,0,0,0,0,0,0,0,0,0,0,0,0,0,null,1,0,0,0,0,0,0,0,0,0,0,0,0,0,0,0,0,0,0,0,0]
[null,2,{"$f":"IF($B57<=Betrachtungszeit_IKT_Gesamt,C56*(1+Inflationsindex),0)","v":0},{"$f":"IF($B57<=Betrachtungszeit_IKT_Gesamt,D56*(1+Inflationsindex),0)","v":0},{"$f":"IF($B57<=Betrachtungszeit_IKT_Gesamt,E56*(1+Inflationsindex),0)","v":0},{"$f":"IF($B57<=Betrachtungszeit_IKT_Gesamt,F56*(1+Inflationsindex),0)","v":0},{"$f":"IF($B57<=Betrachtungszeit_IKT_Gesamt,G56*(1+Inflationsindex),0)","v":0},{"$f":"IF($B57<=Betrachtungszeit_IKT_Gesamt,H56*(1+Inflationsindex),0)","v":0},{"$f":"IF($B57<=Betrachtungszeit_IKT_Gesamt,I56*(1+Inflationsindex),0)","v":0},{"$f":"IF($B57<=Betrachtungszeit_IKT_Gesamt,J56*(1+Inflationsindex),0)","v":0},{"$f":"IF($B57<=Betrachtungszeit_IKT_Gesamt,K56*(1+Inflationsindex),0)","v":0},{"$f":"IF($B57<=Betrachtungszeit_IKT_Gesamt,L56*(1+Inflationsindex),0)","v":0},{"$f":"IF($B57<=Betrachtungszeit_IKT_Gesamt,M56*(1+Inflationsindex),0)","v":0},{"$f":"IF($B57<=Betrachtungszeit_IKT_Gesamt,N56*(1+Inflationsindex),0)","v":0},{"$f":"IF($B57<=Betrachtungszeit_IKT_Gesamt,O56*(1+Inflationsindex),0)","v":0},{"$f":"IF($B57<=Betrachtungszeit_IKT_Gesamt,P56*(1+Inflationsindex),0)","v":0},{"$f":"IF($B57<=Betrachtungszeit_IKT_Gesamt,Q56*(1+Inflationsindex),0)","v":0},{"$f":"IF($B57<=Betrachtungszeit_IKT_Gesamt,R56*(1+Inflationsindex),0)","v":0},{"$f":"IF($B57<=Betrachtungszeit_IKT_Gesamt,S56*(1+Inflationsindex),0)","v":0},{"$f":"IF($B57<=Betrachtungszeit_IKT_Gesamt,T56*(1+Inflationsindex),0)","v":0},{"$f":"IF($B57<=Betrachtungszeit_IKT_Gesamt,U56*(1+Inflationsindex),0)","v":0},{"$f":"IF($B57<=Betrachtungszeit_IKT_Gesamt,V56*(1+Inflationsindex),0)","v":0},null,2,0,0,0,0,0,0,0,0,0,0,0,0,0,0,0,0,0,0,0,0]
[null,3,0,0,0,0,0,0,0,0,0,0,0,0,0,0,0,0,0,0,0,0,null,3,0,0,0,0,0,0,0,0,0,0,0,0,0,0,0,0,0,0,0,0]
[null,4,0,0,0,0,0,0,0,0,0,0,0,0,0,0,0,0,0,0,0,0,null,4,0,0,0,0,0,0,0,0,0,0,0,0,0,0,0,0,0,0,0,0]
[null,5,0,0,0,0,0,0,0,0,0,0,0,0,0,0,0,0,0,0,0,0,null,5,0,0,0,0,0,0,0,0,0,0,0,0,0,0,0,0,0,0,0,0]
[null,6,0,0,0,0,0,0,0,0,0,0,0,0,0,0,0,0,0,0,0,0,null,6,0,0,0,0,0,0,0,0,0,0,0,0,0,0,0,0,0,0,0,0]
[null,7,0,0,0,0,0,0,0,0,0,0,0,0,0,0,0,0,0,0,0,0,null,7,0,0,0,0,0,0,0,0,0,0,0,0,0,0,0,0,0,0,0,0]
[null,8,0,0,0,0,0,0,0,0,0,0,0,0,0,0,0,0,0,0,0,0,null,8,0,0,0,0,0,0,0,0,0,0,0,0,0,0,0,0,0,0,0,0]
[null,9,0,0,0,0,0,0,0,0,0,0,0,0,0,0,0,0,0,0,0,0,null,9,0,0,0,0,0,0,0,0,0,0,0,0,0,0,0,0,0,0,0,0]
[null,10,0,0,0,0,0,0,0,0,0,0,0,0,0,0,0,0,0,0,0,0,null,10,0,0,0,0,0,0,0,0,0,0,0,0,0,0,0,0,0,0,0,0]
[null,null,null,null,null,null,null,null,null,null,null,null,null,null,null,null,null,null,null,null,null,null,null,"Total",{"$f":"SUM(Y55:Y65)","v":0},0,0,0,0,0,0,0,0,0,0,0,0,0,0,0,0,0,0,0]
[]
[null,"Externe Kosten der Treibhausgas-Emissionen (THG-Emissionen)",null,null,null,null,null,null,null,null,null,null,null,null,null,null,null,null,null,null,null,null,null,{"$f":"\"Barwert \"&B68","v":"Barwert Externe Kosten der Treibhausgas-Emissionen (THG-Emissionen)"}]
[]
[null,null,"V1","V2","V3","V4","V5","V6","V7","V8","V9","V10","V11","V12","V13","V14","V15","V16","V17","V18","V19","V20"]
[null,"Umweltbelastungspunkte [UBP'13/a]",{"$f":"C31*UBP_Strom","v":0},0,0,0,0,0,0,0,0,0,0,0,0,0,0,0,0,0,0,0]
[null,"THG-Emissionen (Scope 2) [tCO2eq/a]",{"$f":"C31*EF_Strom/1000000","v":0},0,0,0,0,0,0,0,0,0,0,0,0,0,0,0,0,0,0,0]
["K",{"$f":"VLOOKUP(Input_Generell!B12,Input_Generell!B36:F39,5,0)","v":"Kosten für THG: nicht gewählt"},{"$f":"C72*Kosten_THG","v":0},0,0,0,0,0,0,0,0,0,0,0,0,0,0,0,0,0,0,0]
[]
[null,"THG-Emissionen (Scope 3) [tCO2eq]",{"$f":"SUMPRODUCT(Input_IKT_Gesamt!D40:D59,Input_IKT_Gesamt!D72:D91)/1000","v":0},{"$f":"SUMPRODUCT(Input_IKT_Gesamt!E40:E59,Input_IKT_Gesamt!E72:E91)/1000","v":0},{"$f":"SUMPRODUCT(Input_IKT_Gesamt!F40:F59,Input_IKT_Gesamt!F72:F91)/1000","v":0},{"$f":"SUMPRODUCT(Input_IKT_Gesamt!G40:G59,Input_IKT_Gesamt!G72:G91)/1000","v":0},{"$f":"SUMPRODUCT(Input_IKT_Gesamt!H40:H59,Input_IKT_Gesamt!H72:H91)/1000","v":0},{"$f":"SUMPRODUCT(Input_IKT_Gesamt!I40:I59,Input_IKT_Gesamt!I72:I91)/1000","v":0},{"$f":"SUMPRODUCT(Input_IKT_Gesamt!J40:J59,Input_IKT_Gesamt!J72:J91)/1000","v":0},{"$f":"SUMPRODUCT(Input_IKT_Gesamt!K40:K59,Input_IKT_Gesamt!K72:K91)/1000","v":0},{"$f":"SUMPRODUCT(Input_IKT_Gesamt!L40:L59,Input_IKT_Gesamt!L72:L91)/1000","v":0},{"$f":"SUMPRODUCT(Input_IKT_Gesamt!M40:M59,Input_IKT_Gesamt!M72:M91)/1000","v":0},{"$f":"SUMPRODUCT(Input_IKT_Gesamt!N40:N59,Input_IKT_Gesamt!N72:N91)/1000","v":0},{"$f":"SUMPRODUCT(Input_IKT_Gesamt!O40:O59,Input_IKT_Gesamt!O72:O91)/1000","v":0},{"$f":"SUMPRODUCT(Input_IKT_Gesamt!P40:P59,Input_IKT_Gesamt!P72:P91)/1000","v":0},{"$f":"SUMPRODUCT(Input_IKT_Gesamt!Q40:Q59,Input_IKT_Gesamt!Q72:Q91)/1000","v":0},{"$f":"SUMPRODUCT(Input_IKT_Gesamt!R40:R59,Input_IKT_Gesamt!R72:R91)/1000","v":0},{"$f":"SUMPRODUCT(Input_IKT_Gesamt!S40:S59,Input_IKT_Gesamt!S72:S91)/1000","v":0},{"$f":"SUMPRODUCT(Input_IKT_Gesamt!T40:T59,Input_IKT_Gesamt!T72:T91)/1000","v":0},{"$f":"SUMPRODUCT(Input_IKT_Gesamt!U40:U59,Input_IKT_Gesamt!U72:U91)/1000","v":0},{"$f":"SUMPRODUCT(Input_IKT_Gesamt!V40:V59,Input_IKT_Gesamt!V72:V91)/1000","v":0},{"$f":"SUMPRODUCT(Input_IKT_Gesamt!W40:W59,Input_IKT_Gesamt!W72:W91)/1000","v":0}]
["K",{"$f":"VLOOKUP(Input_Generell!B12,Input_Generell!B36:F39,5,0)","v":"Kosten für THG: nicht gewählt"},{"$f":"C75*Kosten_THG","v":0},{"$f":"D75*Kosten_THG","v":0},0,0,0,0,0,0,0,0,0,0,0,0,0,0,0,0,0,0]
[null,"Externe Kosten [CHF] mit Berücksichtigung der Preissteigerung am Ende des Jahres…"]
[null,"Jahr","V1","V2","V3","V4","V5","V6","V7","V8","V9","V10","V11","V12","V13","V14","V15","V16","V17","V18","V19","V20",null,"Jahr","V1","V2","V3","V4","V5","V6","V7","V8","V9","V10","V11","V12","V13","V14","V15","V16","V17","V18","V19","V20"]
[null,0,{"$f":"C76","v":0},{"$f":"D76","v":0},0,0,0,0,0,0,0,0,0,0,0,0,0,0,0,0,0,0,null,0,{"$f":"C79*(1+Kalkulationszinssatz)^-$X14","v":0},{"$f":"D79*(1+Kalkulationszinssatz)^-$X14","v":0},{"$f":"E79*(1+Kalkulationszinssatz)^-$X14","v":0},{"$f":"F79*(1+Kalkulationszinssatz)^-$X14","v":0},{"$f":"G79*(1+Kalkulationszinssatz)^-$X14","v":0},{"$f":"H79*(1+Kalkulationszinssatz)^-$X14","v":0},{"$f":"I79*(1+Kalkulationszinssatz)^-$X14","v":0},{"$f":"J79*(1+Kalkulationszinssatz)^-$X14","v":0},{"$f":"K79*(1+Kalkulationszinssatz)^-$X14","v":0},{"$f":"L79*(1+Kalkulationszinssatz)^-$X14","v":0},{"$f":"M79*(1+Kalkulationszinssatz)^-$X14","v":0},{"$f":"N79*(1+Kalkulationszinssatz)^-$X14","v":0},{"$f":"O79*(1+Kalkulationszinssatz)^-$X14","v":0},{"$f":"P79*(1+Kalkulationszinssatz)^-$X14","v":0},{"$f":"Q79*(1+Kalkulationszinssatz)^-$X14","v":0},{"$f":"R79*(1+Kalkulationszinssatz)^-$X14","v":0},{"$f":"S79*(1+Kalkulationszinssatz)^-$X14","v":0},{"$f":"T79*(1+Kalkulationszinssatz)^-$X14","v":0},{"$f":"U79*(1+Kalkulationszinssatz)^-$X14","v":0},{"$f":"V79*(1+Kalkulationszinssatz)^-$X14","v":0}]
[null,1,{"$f":"IF($B80<=Betrachtungszeit_IKT_Gesamt,C73*(1+Inflationsindex),0)","v":0},0,0,0,0,0,0,0,0,0,0,0,0,0,0,0,0,0,0,0,null,1,0,0,0,0,0,0,0,0,0,0,0,0,0,0,0,0,0,0,0,0]
[null,2,{"$f":"IF($B81<=Betrachtungszeit_IKT_Gesamt,C80*(1+Inflationsindex),0)","v":0},{"$f":"IF($B81<=Betrachtungszeit_IKT_Gesamt,D80*(1+Inflationsindex),0)","v":0},{"$f":"IF($B81<=Betrachtungszeit_IKT_Gesamt,E80*(1+Inflationsindex),0)","v":0},{"$f":"IF($B81<=Betrachtungszeit_IKT_Gesamt,F80*(1+Inflationsindex),0)","v":0},{"$f":"IF($B81<=Betrachtungszeit_IKT_Gesamt,G80*(1+Inflationsindex),0)","v":0},{"$f":"IF($B81<=Betrachtungszeit_IKT_Gesamt,H80*(1+Inflationsindex),0)","v":0},{"$f":"IF($B81<=Betrachtungszeit_IKT_Gesamt,I80*(1+Inflationsindex),0)","v":0},{"$f":"IF($B81<=Betrachtungszeit_IKT_Gesamt,J80*(1+Inflationsindex),0)","v":0},{"$f":"IF($B81<=Betrachtungszeit_IKT_Gesamt,K80*(1+Inflationsindex),0)","v":0},{"$f":"IF($B81<=Betrachtungszeit_IKT_Gesamt,L80*(1+Inflationsindex),0)","v":0},{"$f":"IF($B81<=Betrachtungszeit_IKT_Gesamt,M80*(1+Inflationsindex),0)","v":0},{"$f":"IF($B81<=Betrachtungszeit_IKT_Gesamt,N80*(1+Inflationsindex),0)","v":0},{"$f":"IF($B81<=Betrachtungszeit_IKT_Gesamt,O80*(1+Inflationsindex),0)","v":0},{"$f":"IF($B81<=Betrachtungszeit_IKT_Gesamt,P80*(1+Inflationsindex),0)","v":0},{"$f":"IF($B81<=Betrachtungszeit_IKT_Gesamt,Q80*(1+Inflationsindex),0)","v":0},{"$f":"IF($B81<=Betrachtungszeit_IKT_Gesamt,R80*(1+Inflationsindex),0)","v":0},{"$f":"IF($B81<=Betrachtungszeit_IKT_Gesamt,S80*(1+Inflationsindex),0)","v":0},{"$f":"IF($B81<=Betrachtungszeit_IKT_Gesamt,T80*(1+Inflationsindex),0)","v":0},{"$f":"IF($B81<=Betrachtungszeit_IKT_Gesamt,U80*(1+Inflationsindex),0)","v":0},{"$f":"IF($B81<=Betrachtungszeit_IKT_Gesamt,V80*(1+Inflationsindex),0)","v":0},null,2,0,0,0,0,0,0,0,0,0,0,0,0,0,0,0,0,0,0,0,0]
[null,3,0,0,0,0,0,0,0,0,0,0,0,0,0,0,0,0,0,0,0,0,null,3,0,0,0,0,0,0,0,0,0,0,0,0,0,0,0,0,0,0,0,0]
[null,4,0,0,0,0,0,0,0,0,0,0,0,0,0,0,0,0,0,0,0,0,null,4,0,0,0,0,0,0,0,0,0,0,0,0,0,0,0,0,0,0,0,0]
[null,5,0,0,0,0,0,0,0,0,0,0,0,0,0,0,0,0,0,0,0,0,null,5,0,0,0,0,0,0,0,0,0,0,0,0,0,0,0,0,0,0,0,0]
[null,6,0,0,0,0,0,0,0,0,0,0,0,0,0,0,0,0,0,0,0,0,null,6,0,0,0,0,0,0,0,0,0,0,0,0,0,0,0,0,0,0,0,0]
[null,7,0,0,0,0,0,0,0,0,0,0,0,0,0,0,0,0,0,0,0,0,null,7,0,0,0,0,0,0,0,0,0,0,0,0,0,0,0,0,0,0,0,0]
[null,8,0,0,0,0,0,0,0,0,0,0,0,0,0,0,0,0,0,0,0,0,null,8,0,0,0,0,0,0,0,0,0,0,0,0,0,0,0,0,0,0,0,0]
[null,9,0,0,0,0,0,0,0,0,0,0,0,0,0,0,0,0,0,0,0,0,null,9,0,0,0,0,0,0,0,0,0,0,0,0,0,0,0,0,0,0,0,0]
[null,10,0,0,0,0,0,0,0,0,0,0,0,0,0,0,0,0,0,0,0,0,null,10,0,0,0,0,0,0,0,0,0,0,0,0,0,0,0,0,0,0,0,0]
[null,null,null,null,null,null,null,null,null,null,null,null,null,null,null,null,null,null,null,null,null,null,null,"Total",{"$f":"SUM(Y79:Y89)","v":0},0,0,0,0,0,0,0,0,0,0,0,0,0,0,0,0,0,0,0]
[]
[null,"Entsorgung am Ende der Betrachtungszeit der Lebenszyklusrechnung",null,null,null,null,null,null,null,null,null,null,null,null,null,null,null,null,null,null,null,null,null,{"$f":"\"Barwert \"&B92","v":"Barwert Entsorgung am Ende der Betrachtungszeit der Lebenszyklusrechnung"}]
[]
[null,null,"V1","V2","V3","V4","V5","V6","V7","V8","V9","V10","V11","V12","V13","V14","V15","V16","V17","V18","V19","V20"]
[null,"Entsorgungskosten [CHF]",{"$f":"Input_IKT_Gesamt!D124","v":0},{"$f":"Input_IKT_Gesamt!E124","v":0},{"$f":"Input_IKT_Gesamt!F124","v":0},{"$f":"Input_IKT_Gesamt!G124","v":0},{"$f":"Input_IKT_Gesamt!H124","v":0},{"$f":"Input_IKT_Gesamt!I124","v":0},{"$f":"Input_IKT_Gesamt!J124","v":0},{"$f":"Input_IKT_Gesamt!K124","v":0},{"$f":"Input_IKT_Gesamt!L124","v":0},{"$f":"Input_IKT_Gesamt!M124","v":0},{"$f":"Input_IKT_Gesamt!N124","v":0},{"$f":"Input_IKT_Gesamt!O124","v":0},{"$f":"Input_IKT_Gesamt!P124","v":0},{"$f":"Input_IKT_Gesamt!Q124","v":0},{"$f":"Input_IKT_Gesamt!R124","v":0},{"$f":"Input_IKT_Gesamt!S124","v":0},{"$f":"Input_IKT_Gesamt!T124","v":0},{"$f":"Input_IKT_Gesamt!U124","v":0},{"$f":"Input_IKT_Gesamt!V124","v":0},{"$f":"Input_IKT_Gesamt!W124","v":0}]
[null,"Entsorgungskosten [CHF] mit Berücksichtigung der Preissteigerung am Ende des Jahres…"]
[null,"Jahr","V1","V2","V3","V4","V5","V6","V7","V8","V9","V10","V11","V12","V13","V14","V15","V16","V17","V18","V19","V20",null,"Jahr","V1","V2","V3","V4","V5","V6","V7","V8","V9","V10","V11","V12","V13","V14","V15","V16","V17","V18","V19","V20"]
[null,0,{"$f":"IF($B98=Betrachtungszeit_IKT_Gesamt,C$95*(1+Inflationsindex)^$B98,0)","v":0},0,0,0,0,0,0,0,0,0,{"$f":"IF($B98=Betrachtungszeit_IKT_Gesamt,M$95*(1+Inflationsindex)^$B98,0)","v":0},0,0,0,0,0,0,0,0,0,null,0,{"$f":"C98*(1+Kalkulationszinssatz)^-$X14","v":0},{"$f":"D98*(1+Kalkulationszinssatz)^-$X14","v":0},{"$f":"E98*(1+Kalkulationszinssatz)^-$X14","v":0},{"$f":"F98*(1+Kalkulationszinssatz)^-$X14","v":0},{"$f":"G98*(1+Kalkulationszinssatz)^-$X14","v":0},{"$f":"H98*(1+Kalkulationszinssatz)^-$X14","v":0},{"$f":"I98*(1+Kalkulationszinssatz)^-$X14","v":0},{"$f":"J98*(1+Kalkulationszinssatz)^-$X14","v":0},{"$f":"K98*(1+Kalkulationszinssatz)^-$X14","v":0},{"$f":"L98*(1+Kalkulationszinssatz)^-$X14","v":0},{"$f":"M98*(1+Kalkulationszinssatz)^-$X14","v":0},{"$f":"N98*(1+Kalkulationszinssatz)^-$X14","v":0},{"$f":"O98*(1+Kalkulationszinssatz)^-$X14","v":0},{"$f":"P98*(1+Kalkulationszinssatz)^-$X14","v":0},{"$f":"Q98*(1+Kalkulationszinssatz)^-$X14","v":0},{"$f":"R98*(1+Kalkulationszinssatz)^-$X14","v":0},{"$f":"S98*(1+Kalkulationszinssatz)^-$X14","v":0},{"$f":"T98*(1+Kalkulationszinssatz)^-$X14","v":0},{"$f":"U98*(1+Kalkulationszinssatz)^-$X14","v":0},{"$f":"V98*(1+Kalkulationszinssatz)^-$X14","v":0}]
[null,1,0,0,0,0,0,0,0,0,0,0,0,0,0,0,0,0,0,0,0,0,null,1,0,0,0,0,0,0,0,0,0,0,0,0,0,0,0,0,0,0,0,0]
[null,2,0,0,0,0,0,0,0,0,0,0,0,0,0,0,0,0,0,0,0,0,null,2,0,0,0,0,0,0,0,0,0,0,0,0,0,0,0,0,0,0,0,0]
[null,3,0,0,0,0,0,0,0,0,0,0,0,0,0,0,0,0,0,0,0,0,null,3,0,0,0,0,0,0,0,0,0,0,0,0,0,0,0,0,0,0,0,0]
[null,4,0,0,0,0,0,0,0,0,0,0,0,0,0,0,0,0,0,0,0,0,null,4,0,0,0,0,0,0,0,0,0,0,0,0,0,0,0,0,0,0,0,0]
[null,5,0,0,0,0,0,0,0,0,0,0,0,0,0,0,0,0,0,0,0,0,null,5,0,0,0,0,0,0,0,0,0,0,0,0,0,0,0,0,0,0,0,0]
[null,6,0,0,0,0,0,0,0,0,0,0,0,0,0,0,0,0,0,0,0,0,null,6,0,0,0,0,0,0,0,0,0,0,0,0,0,0,0,0,0,0,0,0]
[null,7,0,0,0,0,0,0,0,0,0,0,0,0,0,0,0,0,0,0,0,0,null,7,0,0,0,0,0,0,0,0,0,0,0,0,0,0,0,0,0,0,0,0]
[null,8,0,0,0,0,0,0,0,0,0,0,0,0,0,0,0,0,0,0,0,0,null,8,0,0,0,0,0,0,0,0,0,0,0,0,0,0,0,0,0,0,0,0]
[null,9,0,0,0,0,0,0,0,0,0,0,0,0,0,0,0,0,0,0,0,0,null,9,0,0,0,0,0,0,0,0,0,0,0,0,0,0,0,0,0,0,0,0]
[null,10,0,0,0,0,0,0,0,0,0,0,0,0,0,0,0,0,0,0,0,0,null,10,0,0,0,0,0,0,0,0,0,0,0,0,0,0,0,0,0,0,0,0]
[null,null,null,null,null,null,null,null,null,null,null,null,null,null,null,null,null,null,null,null,null,null,null,"Total",{"$f":"SUM(Y98:Y108)","v":0},0,0,0,0,0,0,0,0,0,0,0,0,0,0,0,0,0,0,0]
[]
[null,null,null,null,null,null,null,null,null,null,null,null,null,null,null,null,null,null,null,null,null,null,null,"Aufsummierte Kosten (Barwert) über Betrachtungszeit"]
[]
[null,null,null,null,null,null,null,null,null,null,null,null,null,null,null,null,null,null,null,null,null,null,null,"Jahr",{"$f":"Resultate_IKT_Gesamt!D5","v":"V1"},{"$f":"Resultate_IKT_Gesamt!E5","v":"V2"},{"$f":"Resultate_IKT_Gesamt!F5","v":"V3"},{"$f":"Resultate_IKT_Gesamt!G5","v":"V4"},{"$f":"Resultate_IKT_Gesamt!H5","v":"V5"},{"$f":"Resultate_IKT_Gesamt!I5","v":"V6"},{"$f":"Resultate_IKT_Gesamt!J5","v":"V7"},{"$f":"Resultate_IKT_Gesamt!K5","v":"V8"},{"$f":"Resultate_IKT_Gesamt!L5","v":"V9"},{"$f":"Resultate_IKT_Gesamt!M5","v":"V10"},{"$f":"Resultate_IKT_Gesamt!N5","v":"V11"},{"$f":"Resultate_IKT_Gesamt!O5","v":"V12"},{"$f":"Resultate_IKT_Gesamt!P5","v":"V13"},{"$f":"Resultate_IKT_Gesamt!Q5","v":"V14"},{"$f":"Resultate_IKT_Gesamt!R5","v":"V15"},{"$f":"Resultate_IKT_Gesamt!S5","v":"V16"},{"$f":"Resultate_IKT_Gesamt!T5","v":"V17"},{"$f":"Resultate_IKT_Gesamt!U5","v":"V18"},{"$f":"Resultate_IKT_Gesamt!V5","v":"V19"},{"$f":"Resultate_IKT_Gesamt!W5","v":"V20"}]
[null,null,null,null,null,null,null,null,null,null,null,null,null,null,null,null,null,null,null,null,null,null,null,0,{"$f":"SUM(Y14,Y35,Y55,Y79,Y98)","v":0},0,0,0,0,0,0,0,0,0,0,0,0,0,0,0,0,0,0,0]
[null,null,null,null,null,null,null,null,null,null,null,null,null,null,null,null,null,null,null,null,null,null,null,1,{"$f":"SUM(Y15,Y36,Y56,Y80,Y99)+Y114","v":0},{"$f":"SUM(Z15,Z36,Z56,Z80,Z99)+Z114","v":0},{"$f":"SUM(AA15,AA36,AA56,AA80,AA99)+AA114","v":0},{"$f":"SUM(AB15,AB36,AB56,AB80,AB99)+AB114","v":0},{"$f":"SUM(AC15,AC36,AC56,AC80,AC99)+AC114","v":0},{"$f":"SUM(AD15,AD36,AD56,AD80,AD99)+AD114","v":0},{"$f":"SUM(AE15,AE36,AE56,AE80,AE99)+AE114","v":0},{"$f":"SUM(AF15,AF36,AF56,AF80,AF99)+AF114","v":0},{"$f":"SUM(AG15,AG36,AG56,AG80,AG99)+AG114","v":0},{"$f":"SUM(AH15,AH36,AH56,AH80,AH99)+AH114","v":0},{"$f":"SUM(AI15,AI36,AI56,AI80,AI99)+AI114","v":0},{"$f":"SUM(AJ15,AJ36,AJ56,AJ80,AJ99)+AJ114","v":0},{"$f":"SUM(AK15,AK36,AK56,AK80,AK99)+AK114","v":0},{"$f":"SUM(AL15,AL36,AL56,AL80,AL99)+AL114","v":0},{"$f":"SUM(AM15,AM36,AM56,AM80,AM99)+AM114","v":0},{"$f":"SUM(AN15,AN36,AN56,AN80,AN99)+AN114","v":0},{"$f":"SUM(AO15,AO36,AO56,AO80,AO99)+AO114","v":0},{"$f":"SUM(AP15,AP36,AP56,AP80,AP99)+AP114","v":0},{"$f":"SUM(AQ15,AQ36,AQ56,AQ80,AQ99)+AQ114","v":0},{"$f":"SUM(AR15,AR36,AR56,AR80,AR99)+AR114","v":0}]
[null,null,null,null,null,null,null,null,null,null,null,null,null,null,null,null,null,null,null,null,null,null,null,2,0,0,0,0,0,0,0,0,0,0,0,0,0,0,0,0,0,0,0,0]
[null,null,null,null,null,null,null,null,null,null,null,null,null,null,null,null,null,null,null,null,null,null,null,3,0,0,0,0,0,0,0,0,0,0,0,0,0,0,0,0,0,0,0,0]
[null,null,null,null,null,null,null,null,null,null,null,null,null,null,null,null,null,null,null,null,null,null,null,4,0,0,0,0,0,0,0,0,0,0,0,0,0,0,0,0,0,0,0,0]
[null,null,null,null,null,null,null,null,null,null,null,null,null,null,null,null,null,null,null,null,null,null,null,5,0,0,0,0,0,0,0,0,0,0,0,0,0,0,0,0,0,0,0,0]
[null,null,null,null,null,null,null,null,null,null,null,null,null,null,null,null,null,null,null,null,null,null,null,6,0,0,0,0,0,0,0,0,0,0,0,0,0,0,0,0,0,0,0,0]
[null,null,null,null,null,null,null,null,null,null,null,null,null,null,null,null,null,null,null,null,null,null,null,7,0,0,0,0,0,0,0,0,0,0,0,0,0,0,0,0,0,0,0,0]
[null,null,null,null,null,null,null,null,null,null,null,null,null,null,null,null,null,null,null,null,null,null,null,8,0,0,0,0,0,0,0,0,0,0,0,0,0,0,0,0,0,0,0,0]
[null,null,null,null,null,null,null,null,null,null,null,null,null,null,null,null,null,null,null,null,null,null,null,9,0,0,0,0,0,0,0,0,0,0,0,0,0,0,0,0,0,0,0,0]
[null,null,null,null,null,null,null,null,null,null,null,null,null,null,null,null,null,null,null,null,null,null,null,10,0,0,0,0,0,0,0,0,0,0,0,0,0,0,0,0,0,0,0,0]
[]
[]
[null,null,null,null,null,null,null,null,null,null,null,null,null,null,null,null,null,null,null,null,null,null,null,"Darstellung Diagramm Blatt Resultate"]
[]
[null,null,null,null,null,null,null,null,null,null,null,null,null,null,null,null,null,null,null,null,null,null,null,"Jahr",{"$f":"Resultate_IKT_Gesamt!I25","v":"BITTE WÄHLEN"},{"$f":"Resultate_IKT_Gesamt!I26","v":"BITTE WÄHLEN"},{"$f":"Resultate_IKT_Gesamt!I27","v":"BITTE WÄHLEN"},{"$f":"Resultate_IKT_Gesamt!I28","v":"BITTE WÄHLEN"}]
[null,null,null,null,null,null,null,null,null,null,null,null,null,null,null,null,null,null,null,null,null,null,null,0,{"$f":"HLOOKUP(Resultate_IKT_Gesamt!$I$25,Berechnung_IKT_Gesamt!$Y$113:$AR$124,$X130+2,0)","v":{"$error":"#N/A"}},{"$f":"HLOOKUP(Resultate_IKT_Gesamt!$I$26,Berechnung_IKT_Gesamt!$Y$113:$AR$124,$X130+2,0)","v":{"$error":"#N/A"}},{"$f":"HLOOKUP(Resultate_IKT_Gesamt!$I$27,Berechnung_IKT_Gesamt!$Y$113:$AR$124,$X130+2,0)","v":{"$error":"#N/A"}},{"$f":"HLOOKUP(Resultate_IKT_Gesamt!$I$28,Berechnung_IKT_Gesamt!$Y$113:$AR$124,$X130+2,0)","v":{"$error":"#N/A"}}]
[null,null,null,null,null,null,null,null,null,null,null,null,null,null,null,null,null,null,null,null,null,null,null,1,{"$f":"HLOOKUP(Resultate_IKT_Gesamt!$I$25,Berechnung_IKT_Gesamt!$Y$113:$AR$124,$X131+2,0)","v":{"$error":"#N/A"}},{"$f":"HLOOKUP(Resultate_IKT_Gesamt!$I$26,Berechnung_IKT_Gesamt!$Y$113:$AR$124,$X131+2,0)","v":{"$error":"#N/A"}},{"$f":"HLOOKUP(Resultate_IKT_Gesamt!$I$27,Berechnung_IKT_Gesamt!$Y$113:$AR$124,$X131+2,0)","v":{"$error":"#N/A"}},{"$f":"HLOOKUP(Resultate_IKT_Gesamt!$I$28,Berechnung_IKT_Gesamt!$Y$113:$AR$124,$X131+2,0)","v":{"$error":"#N/A"}}]
[null,null,null,null,null,null,null,null,null,null,null,null,null,null,null,null,null,null,null,null,null,null,null,2,{"$f":"HLOOKUP(Resultate_IKT_Gesamt!$I$25,Berechnung_IKT_Gesamt!$Y$113:$AR$124,$X132+2,0)","v":{"$error":"#N/A"}},{"$f":"HLOOKUP(Resultate_IKT_Gesamt!$I$26,Berechnung_IKT_Gesamt!$Y$113:$AR$124,$X132+2,0)","v":{"$error":"#N/A"}},{"$f":"HLOOKUP(Resultate_IKT_Gesamt!$I$27,Berechnung_IKT_Gesamt!$Y$113:$AR$124,$X132+2,0)","v":{"$error":"#N/A"}},{"$f":"HLOOKUP(Resultate_IKT_Gesamt!$I$28,Berechnung_IKT_Gesamt!$Y$113:$AR$124,$X132+2,0)","v":{"$error":"#N/A"}}]
[null,null,null,null,null,null,null,null,null,null,null,null,null,null,null,null,null,null,null,null,null,null,null,3,{"$f":"HLOOKUP(Resultate_IKT_Gesamt!$I$25,Berechnung_IKT_Gesamt!$Y$113:$AR$124,$X133+2,0)","v":{"$error":"#N/A"}},{"$f":"HLOOKUP(Resultate_IKT_Gesamt!$I$26,Berechnung_IKT_Gesamt!$Y$113:$AR$124,$X133+2,0)","v":{"$error":"#N/A"}},{"$f":"HLOOKUP(Resultate_IKT_Gesamt!$I$27,Berechnung_IKT_Gesamt!$Y$113:$AR$124,$X133+2,0)","v":{"$error":"#N/A"}},{"$f":"HLOOKUP(Resultate_IKT_Gesamt!$I$28,Berechnung_IKT_Gesamt!$Y$113:$AR$124,$X133+2,0)","v":{"$error":"#N/A"}}]
[null,null,null,null,null,null,null,null,null,null,null,null,null,null,null,null,null,null,null,null,null,null,null,4,{"$f":"HLOOKUP(Resultate_IKT_Gesamt!$I$25,Berechnung_IKT_Gesamt!$Y$113:$AR$124,$X134+2,0)","v":{"$error":"#N/A"}},{"$f":"HLOOKUP(Resultate_IKT_Gesamt!$I$26,Berechnung_IKT_Gesamt!$Y$113:$AR$124,$X134+2,0)","v":{"$error":"#N/A"}},{"$f":"HLOOKUP(Resultate_IKT_Gesamt!$I$27,Berechnung_IKT_Gesamt!$Y$113:$AR$124,$X134+2,0)","v":{"$error":"#N/A"}},{"$f":"HLOOKUP(Resultate_IKT_Gesamt!$I$28,Berechnung_IKT_Gesamt!$Y$113:$AR$124,$X134+2,0)","v":{"$error":"#N/A"}}]
[null,null,null,null,null,null,null,null,null,null,null,null,null,null,null,null,null,null,null,null,null,null,null,5,{"$f":"HLOOKUP(Resultate_IKT_Gesamt!$I$25,Berechnung_IKT_Gesamt!$Y$113:$AR$124,$X135+2,0)","v":{"$error":"#N/A"}},{"$f":"HLOOKUP(Resultate_IKT_Gesamt!$I$26,Berechnung_IKT_Gesamt!$Y$113:$AR$124,$X135+2,0)","v":{"$error":"#N/A"}},{"$f":"HLOOKUP(Resultate_IKT_Gesamt!$I$27,Berechnung_IKT_Gesamt!$Y$113:$AR$124,$X135+2,0)","v":{"$error":"#N/A"}},{"$f":"HLOOKUP(Resultate_IKT_Gesamt!$I$28,Berechnung_IKT_Gesamt!$Y$113:$AR$124,$X135+2,0)","v":{"$error":"#N/A"}}]
[null,null,null,null,null,null,null,null,null,null,null,null,null,null,null,null,null,null,null,null,null,null,null,6,{"$f":"HLOOKUP(Resultate_IKT_Gesamt!$I$25,Berechnung_IKT_Gesamt!$Y$113:$AR$124,$X136+2,0)","v":{"$error":"#N/A"}},{"$f":"HLOOKUP(Resultate_IKT_Gesamt!$I$26,Berechnung_IKT_Gesamt!$Y$113:$AR$124,$X136+2,0)","v":{"$error":"#N/A"}},{"$f":"HLOOKUP(Resultate_IKT_Gesamt!$I$27,Berechnung_IKT_Gesamt!$Y$113:$AR$124,$X136+2,0)","v":{"$error":"#N/A"}},{"$f":"HLOOKUP(Resultate_IKT_Gesamt!$I$28,Berechnung_IKT_Gesamt!$Y$113:$AR$124,$X136+2,0)","v":{"$error":"#N/A"}}]
[null,null,null,null,null,null,null,null,null,null,null,null,null,null,null,null,null,null,null,null,null,null,null,7,{"$f":"HLOOKUP(Resultate_IKT_Gesamt!$I$25,Berechnung_IKT_Gesamt!$Y$113:$AR$124,$X137+2,0)","v":{"$error":"#N/A"}},{"$f":"HLOOKUP(Resultate_IKT_Gesamt!$I$26,Berechnung_IKT_Gesamt!$Y$113:$AR$124,$X137+2,0)","v":{"$error":"#N/A"}},{"$f":"HLOOKUP(Resultate_IKT_Gesamt!$I$27,Berechnung_IKT_Gesamt!$Y$113:$AR$124,$X137+2,0)","v":{"$error":"#N/A"}},{"$f":"HLOOKUP(Resultate_IKT_Gesamt!$I$28,Berechnung_IKT_Gesamt!$Y$113:$AR$124,$X137+2,0)","v":{"$error":"#N/A"}}]
[null,null,null,null,null,null,null,null,null,null,null,null,null,null,null,null,null,null,null,null,null,null,null,8,{"$f":"HLOOKUP(Resultate_IKT_Gesamt!$I$25,Berechnung_IKT_Gesamt!$Y$113:$AR$124,$X138+2,0)","v":{"$error":"#N/A"}},{"$f":"HLOOKUP(Resultate_IKT_Gesamt!$I$26,Berechnung_IKT_Gesamt!$Y$113:$AR$124,$X138+2,0)","v":{"$error":"#N/A"}},{"$f":"HLOOKUP(Resultate_IKT_Gesamt!$I$27,Berechnung_IKT_Gesamt!$Y$113:$AR$124,$X138+2,0)","v":{"$error":"#N/A"}},{"$f":"HLOOKUP(Resultate_IKT_Gesamt!$I$28,Berechnung_IKT_Gesamt!$Y$113:$AR$124,$X138+2,0)","v":{"$error":"#N/A"}}]
[null,null,null,null,null,null,null,null,null,null,null,null,null,null,null,null,null,null,null,null,null,null,null,9,{"$f":"HLOOKUP(Resultate_IKT_Gesamt!$I$25,Berechnung_IKT_Gesamt!$Y$113:$AR$124,$X139+2,0)","v":{"$error":"#N/A"}},{"$f":"HLOOKUP(Resultate_IKT_Gesamt!$I$26,Berechnung_IKT_Gesamt!$Y$113:$AR$124,$X139+2,0)","v":{"$error":"#N/A"}},{"$f":"HLOOKUP(Resultate_IKT_Gesamt!$I$27,Berechnung_IKT_Gesamt!$Y$113:$AR$124,$X139+2,0)","v":{"$error":"#N/A"}},{"$f":"HLOOKUP(Resultate_IKT_Gesamt!$I$28,Berechnung_IKT_Gesamt!$Y$113:$AR$124,$X139+2,0)","v":{"$error":"#N/A"}}]
[null,null,null,null,null,null,null,null,null,null,null,null,null,null,null,null,null,null,null,null,null,null,null,10,{"$f":"HLOOKUP(Resultate_IKT_Gesamt!$I$25,Berechnung_IKT_Gesamt!$Y$113:$AR$124,$X140+2,0)","v":{"$error":"#N/A"}},{"$f":"HLOOKUP(Resultate_IKT_Gesamt!$I$26,Berechnung_IKT_Gesamt!$Y$113:$AR$124,$X140+2,0)","v":{"$error":"#N/A"}},{"$f":"HLOOKUP(Resultate_IKT_Gesamt!$I$27,Berechnung_IKT_Gesamt!$Y$113:$AR$124,$X140+2,0)","v":{"$error":"#N/A"}},{"$f":"HLOOKUP(Resultate_IKT_Gesamt!$I$28,Berechnung_IKT_Gesamt!$Y$113:$AR$124,$X140+2,0)","v":{"$error":"#N/A"}}]

{"sheet":"Anhang","index":8,"n_rows":32,"n_cols":4,"rows_kept":32,"cut":false,"hidden":false,"merged":[[17,1,17,7],[23,1,23,7],[16,1,16,7],[25,1,25,7],[22,1,22,7],[20,1,20,7],[19,1,19,7],[21,1,21,7],[24,1,24,7],[18,1,18,7],[28,3,28,7],[29,3,29,7],[30,3,30,7],[31,3,31,7],[32,3,32,7],[33,3,33,7],[34,3,34,7],[35,3,35,7],[36,3,36,7],[37,3,37,7],[38,3,38,7],[39,3,39,7],[40,3,40,7],[41,3,41,7],[42,3,42,7],[48,3,48,7],[49,3,49,7],[50,3,50,7],[43,3,43,7],[44,3,44,7],[45,3,45,7],[46,3,46,7],[47,3,47,7],[9,1,9,7],[10,1,10,7],[11,1,11,7],[12,1,12,7],[4,1,4,7],[5,1,5,7],[6,1,6,7],[7,1,7,7],[8,1,8,7]]}
[null,"ANHANG"]
[]
[null,"Quellenverzeichnis"]
[]
[null,"ARE (2019): Externe Effekte des Verkehrs 2015, Bundesamt für Raumentwicklung ARE, 2019"]
[null,"BFS (2019): Konsumentenpreise für Energie, BFS, 2019"]
[null,"BFS (2019): LIK, Totalindex auf allen Indexbasen,  Landesindex der Konsumentenpreise im Juni 2019,  Bundesamt für Statistik BFS, 2019"]
[null,"Energy Star (2020): Program Requirements for Displays, Version 8.0, Energy Star, 2020"]
[null,"EU (2013): Verordnung (EU) Nr. 617/2013 der Kommission vom 26. Juni 2013 zur Durchführung der Richtlinie 2009/125/EG des Europäischen Parlaments und des Rates im Hinblick auf die Festlegung von Anforderungen an die umweltgerechte Gestaltung von Computern und Computerservern, EU, 2013"]
[null,"ISB (2019): P025 - Ressourcen- und Umweltvorgabe für die Beschaffung der IKT-Infrastruktur, Informatiksteuerungsorgan des Bundes ISB, März 2019"]
[null,"KBOB (2016): Ökobilanzdaten im Baubereich 2009/1:2016, KBOB, 2016"]
[null,"myclimate (2019): www.myclimate.org"]
[null,"Stadt Zürich Amt für Hochbauten (2011): Wirtschaftlichkeit von Neubau- und Erneuerungsinvestitionen in der 2000-Watt-Gesellschaft, Stadt Zürich Amt für Hochbauten, 2011"]
[]
[null,"Glossar"]
[]
[null,"Barwert: Der auf den Investitionszeitpunkt (Ausgangsjahr) mit dem Kalkulationszinssatz diskontierte Wert der Ausgaben (und Einnahmen)."]
[null,"Externe Kosten: Als externe Kosten bezeichnet man die unkompensierten Auswirkungen ökonomischer Entscheidungen auf Unbeteiligte, also Auswirkungen, für die niemand bezahlt. Ein Beispiel sind die durch die Allgemeinheit zu tragenden Folgen des Klimawandels, die nicht im Ticketpreis einer Flugreise enthalten sind, obwohl Flugreisen durch den CO2-Ausstoss zu einem erheblichen Mass zum Klimawandel beitragen. Die CO2-Bepreisung ist ein Weg der Internalisierung dieser externen Kosten. "]
[null,"IKT: Abkürzung für Informations- und Kommunikations-Technologie. Häufig wird auch die englische Form \"ICT\" verwendet."]
[null,"Kalkulationszinssatz: Im Rahmen der Wirtschaftlichkeitsanalyse bedeuten die Zinskosten die Verzinsung des gesamten eingesetzten Kapitals, also nicht nur die Verzinsung von Fremdkapital, sondern auch ein Zins auf dem durch Eigenkapital finanzierten Teil der Investitionen. Für das Eigenkapital erwartet der Investor ja ebenfalls eine Verzinsung, wenigstens im Umfang der entgangenen Zinseinnahmen bei einer alternativen Anlage seines Kapitals. Die Wahl des Kalkulationsszinssatzes ist bis zu einem gewissen Grad eine Ermessenssache."]
[null,"Kapitalwert: Summe der Barwerte aller Ausgaben (und Einnahmen) eines Projekts über die Betrachtungsperiode (= Nettobarwert)"]
[null,"Lebenszykluskosten: Unter Lebenszykluskosten im Sinne der ISO Norm 20400 werden nebst den Anschaffungs-, Betriebs- und Unterhaltkosten auch die indirekten Kosten verstanden, welche durch die Produktion, den Betrieb und die Entsorgung an die Umwelt/Gesellschaft entstehen und monetarisiert werden können. Die Monetarisierung der externen Kosten ist komplex und wird vom Bund zurzeit vorangetrieben. In diesem Tool können die bereits monetarisierten externen Kosten von Treibhausgasen eingerechnet werden. Übrige externe Kosten an die Umwelt/Gesellschaft werden einbezogen, sobald entsprechende Daten zur Verfügung stehen.\n\nDie Berechnung der Lebenszykluskosten erfolgt mit Hilfe der Kapitalwertmethode. Die Kapitalwertmethode ist ein dynamisches Verfahren der Investitionsrechnung, d.h. alle Geldflüsse werden dem Zeitpunkt ihres Anfalls zugeordnet, und mit Hilfe eines Zinsfaktors auf einen einheitlichen Zeitpunkt vergleichbar gemacht. \nDamit ermittelt man den gesamten, aktuellen Wert einer Investition (den Kapitalwert). Dies ist vor dem Hintergrund relevant, dass umweltfreundlichere Alternativen oft höhere Anschaffungskosten, dafür aber geringere Betriebskosten haben. Muss aber zu Beginn einer Investition mehr Geld ausgegeben werden, so müssen ggf. auch mehr Zinsen gezahlt werden, oder es kann weniger Geld anderweitig (gewinnbringend) angelegt werden. Diese Umstände werden durch die Abzinsung (auch: Diskontierung) zukünftiger Geldflüsse auf einen einheitlichen Zeitpunkt berücksichtigt."]
[null,"Mehrwertsteuer: Kosten sollen entweder alle mit oder alle ohne MWSt. angegeben werden."]
[null,"Nettobarwert: siehe Kapitalwert."]
[null,"Scope 1, 2 und 3: Das Perimeter-Konzept des Treibhausgas-Protokolls mit Scope 1, 2, und 3 hat sich etabliert und wird im vorliegenden Tool verwendet. Definitionen:\nScope 1: Direkt im Unternehmensperimeter entstandene Treibhausgas-Emissionen, z.B. aus der Verbrennung von fossilen Brenn- und Treibstoffen.\nScope 2: Emissionen, die durch Energielieferungen entstehen, die aber nicht im Unternehmensperimeter ausgestossen werden (z.B. Strom und Fernwärme).\nScope 3: Emissionen aller vor- und nachgelagerten Prozesse. Beschafft ein Unternehmen beispielsweise ein Produkt, so gehören die Emissionen aus der Herstellung und Entsorgung dieses Produktes zu Scope 3."]
[null,"Umweltbelastungspunkte: Die Umweltbelastungspunkte 2013 (UBP'13) quantifizieren die Umweltbelastungen durch die Nutzung von Energie- und stofflichen Ressourcen, von Land und Süsswasser, durch Emissionen in Luft, Gewässer und Boden, durch die Ablagerung von Rückständen aus der Abfallbehandlung sowie durch Verkehrslärm. Die Umweltbelastungspunkte aus dem Energieverbrauch im Betrieb und, wo verfügbar, aus der Herstellung/Entsorgung von Produkten werden ausgewiesen, fliessen jedoch nicht in die Lebenszykluskosten-Berechnung ein."]
[null,"Änderungsjournal"]
[]
[null,"Version, Datum","Tabellenblatt","Änderung"]
[null,"Betaversion, 15.09.2020"]
[null,"Betaversion, 01.02.2021","Input_Generell","Textliche Anpassungen"]
[null,"Betaversion, 03.08.2021","Anleitung","Text"]